Workbook

Sheet Navigation Pane
B2: Brisbane City Council
B3: Local Government Infrastructure Plan (LGIP)
B6: Version No | D6: 1 | F6: Date | G6: 2021-12-10 | J6: Author | K6: BCC
B8: Comments | D8: Version for LGIP Amendment 1a adoption. Effective as at 10 December 2021.
D10: Inputs | I10: Calculation | N10: Outputs
C12: General Input Sheet | H12: Calculation Function | M12: Summary Cost Schedule
C13: l Financial Inputs l Other "generic" inputs | H13: Catchment based summary of demand, infrastructure (existing and new) and cost allocation Infrastructure Cost calculation for each catchment Optional Discounted Cashflow | M13: l Summary of demand and cost allocation by catchment l Final costs by catchment
M15: Summary Cash flow Projections
C16: l Unit Cost of Passive Assets l Unit Cost of Land | M16: l Summary of forecast Cap X and anticipated IC revenues. Refer to Revenue and Cash Flow model for output.
C19: l Estimates of current and future demand (per cost catchment)
C21: Asset Inputs

Sheet General Input Sheet
B2: ='Navigation Pane'!B2 -> Brisbane City Council
A3: Return to Navigation Pane
B4: General Input Sheet
B6: General Inputs | E6: Reference | G6: Value | I6: Comments
C8: Base Year | E8: YEAR | G8: 2016
G9: =YEAR -> 2016
C10: Term (between 15 and 30 years) | E10: TERM | G10: 10
B12: Application of Discounted Cash flow
C14: Calculate charges using Discounted Cash flow? (Y/N) | E14: DCFTRIGGER | G14: Yes
B16: General Financial Inputs
B18: Discount Rate (WACC):
C19: Average 10 Year Bond Rate | E19: TenYr
B21: Option 1 | C21: Basic Margin on 10 Yr. Bond Rate | E21: Margin | I21: 3.5% is the baseline figure quoted in LG Bulletin 06/01
C23: WACC: | E23: WACC1 | G23: 0.0591
B25: Option 2 | C25: Capital Structure (% Debt) | E25: Capstr
C26: Market Risk Premium | E26: Risk
C27: Asset Beta | E27: AssetBeta
C28: Cost of Debt | E28: Debt
C30: WACC: | E30: WACC2 | G30: 0.0591
C32: WACC Option to be applied in the calculation? | E32: WACC1 | G32: =IF(G14="No",0,IF(E32="WACC1",WACC1,IF(E32="WACC2",WACC2,"Error"))) -> 0.0591
B34: Escalation Rates
C35: Capital Escalation - Future Cap X | E35: PPI | G35: 0.0187 | I35: ten (10) yr. average Roads and Bridges Index (ABS 6427, Table 15, Index 3101)
C37: Capital Indexation Rates - Historical (June Qtr.)
E38: =YEAR -> 2016 | G38: 110.56 | I38: Roads and Bridges Index (ABS 6427, Table 15, Index 3101)
E39: =E38-1 -> 2015
E40: =E39-1 -> 2014
E41: 2013
E42: 2012
E43: 2011 | G43: 100.77
E44: 2010
C46: Land Escalation | E46: LandInd | G46: 0.025
C48: Charges Escalation Rate | E48: Chargeind | G48: 0
G49: =Chargeind -> 0
G51: =Chargeind -> 0

Sheet Exist Trunk Assets - LFCF1
B1: ='Navigation Pane'!B2 -> Brisbane City Council
B2: Land for Community Facilities
A3: Return to "Existing Trunk Assets"
B4: EXISTING TRUNK ASSETS
B6: Land Valuation Type | D6: Location
H8: Asset Data | Q8: Catchment Asset Allocation | X8: Asset Usage | AE8: Cost Allocation
B9: Basic Asset Data | G9: Asset Attributes | I9: Basic Asset Valuation | N9: Refined Asset Value | Q9: Fringe | R9: Urban East | S9: Urban North | T9: Urban South | U9: Urban West | W9: =Q9 -> Fringe | X9: =R9 -> Urban East | Y9: =S9 -> Urban North | Z9: =T9 -> Urban South | AA9: =U9 -> Urban West | AB9: TOTALS | AD9: =Q9 -> Fringe | AE9: =R9 -> Urban East | AF9: =S9 -> Urban North | AG9: =T9 -> Urban South | AH9: =U9 -> Urban West
B10: Asset ID | C10: LGIP ID | D10: Asset Class | E10: Sector | F10: Description | G10: Utility allowance ($56,000/site) | H10: Area size (*) | I10: Unit Rate | J10: Baseline Valuation | K10: Size of land (m2) (*) | L10: Unit Cost | M10: Land Value | N10: Valuation Year | O10: Escalation | P10: Current Repalcement Cost | Q10: Fringe | R10: Urban East | S10: Urban North | T10: Urban South | U10: Urban West
Q11: 1 | R11: =Q11+1 -> 2 | S11: =R11+1 -> 3 | T11: 4 | U11: 5
B12: Councils ID (from GIS, FAR, AMA etc.) | C12: ID from the LGIP drawings | D12: Local/District | J12: May be calculated from unit rates OR unique values can be direct entered | Q12: =IFERROR(VLOOKUP(Q9,Parkscatch,6,FALSE),"") -> 21425 | R12: 306014 | S12: 456561 | T12: 459171 | U12: 261614 | AD12: =SUM(AD13:AD442) -> 1261148.602 | AE12: =SUM(AE13:AE442) -> 25108337.22 | AF12: =SUM(AF13:AF442) -> 29880573.41 | AG12: =SUM(AG13:AG442) -> 28096236.4 | AH12: =SUM(AH13:AH399) -> 23564816.41
B13: 1,CP890177 | D13: Local | E13: Urban West | F13: COUNCIL LAND BRISB-004/0170-4 ^01186 | I13: =IFERROR((J13-G13)/H13,0) -> 0 | K13: 3755.963082 | L13: =IFERROR(M13/K13,0) -> 121.6122523 | M13: 456771.13 | N13: 2016 | O13: =IFERROR(('General Input Sheet'!$G$38/(VLOOKUP(N13,'General Input Sheet'!$E$38:$G$44,3,FALSE))),1) -> 1 | P13: =J13+M13 -> 456771.13 | Q13: =IF(OR(Q$9=$E13,$D13="Metropolitan",$D13="District"),"y","") ->  | R13: =IF(OR(R$9=$E13,$D13="Metropolitan"),"y","") ->  | U13: y | W13: =_xlfn.IFS(AND(Q13="y",$D13="Local"), 1, AND(Q13="y",$D13<>"Local"),1.49009696454663%, Q13="","") ->  | X13: =_xlfn.IFS(AND(R13="y",$D13="Local"), 1, AND(R13="y",$D13<>"Local"),20.7557554582461%, R13="","") ->  | Y13: =_xlfn.IFS(AND(S13="y",$D13="Local"), 1, AND(S13="y",$D13<>"Local"),30.3499104327336%, S13="","") ->  | Z13: =_xlfn.IFS(AND(T13="y",$D13="Local"), 1, AND(T13="y",$D13<>"Local"),29.0043833288201%, T13="","") ->  | AA13: =_xlfn.IFS(AND(U13="y",$D13="Local"), 1, AND(U13="y",$D13<>"Local"),18.3998538156536%, U13="","") -> 1 | AB13: =SUM(W13:AA13) -> 1 | AD13: =IF(W13="","",(W13/$AB13)*$P13) ->  | AE13: =IF(X13="","",(X13/$AB13)*$P13) ->  | AF13: =IF(Y13="","",(Y13/$AB13)*$P13) ->  | AG13: =IF(Z13="","",(Z13/$AB13)*$P13) ->  | AH13: =IF(AA13="","",(AA13/$AB13)*$P13) -> 456771.13
B14: 1,RP101654 | D14: District | E14: Urban South | F14: COUNCIL LAND BRISB-000/0039 ^02056 | I14: =IFERROR((J14-G14)/H14,0) -> 0 | K14: 1953.752744 | L14: =IFERROR(M14/K14,0) -> 124.4969563 | M14: 243236.27 | N14: 2016 | O14: =IFERROR(('General Input Sheet'!$G$38/(VLOOKUP(N14,'General Input Sheet'!$E$38:$G$44,3,FALSE))),1) -> 1 | P14: 243236.27 | Q14: =IF(OR(Q$9=$E14,$D14="Metropolitan",$D14="District"),"y","") -> y | R14: y | S14: y | T14: y | U14: y | W14: =_xlfn.IFS(AND(Q14="y",$D14="Local"), 1, AND(Q14="y",$D14<>"Local"),1.49009696454663%, Q14="","") -> 0.01490096965 | X14: =_xlfn.IFS(AND(R14="y",$D14="Local"), 1, AND(R14="y",$D14<>"Local"),20.7557554582461%, R14="","") -> 0.2075575546 | Y14: =_xlfn.IFS(AND(S14="y",$D14="Local"), 1, AND(S14="y",$D14<>"Local"),30.3499104327336%, S14="","") -> 0.3034991043 | Z14: =_xlfn.IFS(AND(T14="y",$D14="Local"), 1, AND(T14="y",$D14<>"Local"),29.0043833288201%, T14="","") -> 0.2900438333 | AA14: =_xlfn.IFS(AND(U14="y",$D14="Local"), 1, AND(U14="y",$D14<>"Local"),18.3998538156536%, U14="","") -> 0.1839985382 | AB14: 1 | AD14: 3624.456276 | AE14: 50485.52539 | AF14: 73821.99008 | AG14: 70549.18015 | AH14: 44755.11811
B15: 1,RP103015 | D15: District | E15: Urban North | F15: COUNCIL LAND BRISB-000/0555 ^09168 | I15: 0 | K15: 721.5958874 | L15: =IFERROR(M15/K15,0) -> 445.678815 | M15: 321600 | N15: 2016 | O15: =IFERROR(('General Input Sheet'!$G$38/(VLOOKUP(N15,'General Input Sheet'!$E$38:$G$44,3,FALSE))),1) -> 1 | P15: 321600 | Q15: y | R15: y | S15: y | T15: y | U15: y | W15: =_xlfn.IFS(AND(Q15="y",$D15="Local"), 1, AND(Q15="y",$D15<>"Local"),1.49009696454663%, Q15="","") -> 0.01490096965 | X15: =_xlfn.IFS(AND(R15="y",$D15="Local"), 1, AND(R15="y",$D15<>"Local"),20.7557554582461%, R15="","") -> 0.2075575546 | Y15: =_xlfn.IFS(AND(S15="y",$D15="Local"), 1, AND(S15="y",$D15<>"Local"),30.3499104327336%, S15="","") -> 0.3034991043 | Z15: =_xlfn.IFS(AND(T15="y",$D15="Local"), 1, AND(T15="y",$D15<>"Local"),29.0043833288201%, T15="","") -> 0.2900438333 | AA15: =_xlfn.IFS(AND(U15="y",$D15="Local"), 1, AND(U15="y",$D15<>"Local"),18.3998538156536%, U15="","") -> 0.1839985382 | AB15: 1 | AD15: 4792.151838 | AE15: 66750.50955 | AF15: 97605.31195 | AG15: 93278.09679 | AH15: 59173.92987
B16: 1,RP106705 | D16: District | E16: Urban North | F16: COUNCIL LAND BRISB-000/0035 ^05692 | I16: 0 | K16: 1399.838325 | L16: 149.0443548 | M16: 208638 | N16: 2016 | O16: =IFERROR(('General Input Sheet'!$G$38/(VLOOKUP(N16,'General Input Sheet'!$E$38:$G$44,3,FALSE))),1) -> 1 | P16: 208638 | Q16: y | R16: y | S16: y | T16: y | U16: y | W16: =_xlfn.IFS(AND(Q16="y",$D16="Local"), 1, AND(Q16="y",$D16<>"Local"),1.49009696454663%, Q16="","") -> 0.01490096965 | X16: =_xlfn.IFS(AND(R16="y",$D16="Local"), 1, AND(R16="y",$D16<>"Local"),20.7557554582461%, R16="","") -> 0.2075575546 | Y16: =_xlfn.IFS(AND(S16="y",$D16="Local"), 1, AND(S16="y",$D16<>"Local"),30.3499104327336%, S16="","") -> 0.3034991043 | Z16: =_xlfn.IFS(AND(T16="y",$D16="Local"), 1, AND(T16="y",$D16<>"Local"),29.0043833288201%, T16="","") -> 0.2900438333 | AA16: =_xlfn.IFS(AND(U16="y",$D16="Local"), 1, AND(U16="y",$D16<>"Local"),18.3998538156536%, U16="","") -> 0.1839985382 | AB16: 1 | AD16: 3108.908505 | AE16: 43304.39307 | AF16: 63321.44613 | AG16: 60514.16529 | AH16: 38389.087
B17: 1,RP107116 | D17: District | E17: Urban South | F17: COUNCIL LAND BRISB-000/0108 ^04347 | I17: 0 | K17: 2201.104099 | L17: 97.51989019 | M17: 214651.43 | N17: 2016 | O17: =IFERROR(('General Input Sheet'!$G$38/(VLOOKUP(N17,'General Input Sheet'!$E$38:$G$44,3,FALSE))),1) -> 1 | P17: 214651.43 | Q17: y | R17: y | S17: y | T17: y | U17: y | W17: =_xlfn.IFS(AND(Q17="y",$D17="Local"), 1, AND(Q17="y",$D17<>"Local"),1.49009696454663%, Q17="","") -> 0.01490096965 | X17: =_xlfn.IFS(AND(R17="y",$D17="Local"), 1, AND(R17="y",$D17<>"Local"),20.7557554582461%, R17="","") -> 0.2075575546 | Y17: =_xlfn.IFS(AND(S17="y",$D17="Local"), 1, AND(S17="y",$D17<>"Local"),30.3499104327336%, S17="","") -> 0.3034991043 | Z17: =_xlfn.IFS(AND(T17="y",$D17="Local"), 1, AND(T17="y",$D17<>"Local"),29.0043833288201%, T17="","") -> 0.2900438333 | AA17: =_xlfn.IFS(AND(U17="y",$D17="Local"), 1, AND(U17="y",$D17<>"Local"),18.3998538156536%, U17="","") -> 0.1839985382 | AB17: 1 | AD17: 3198.514443 | AE17: 44552.5259 | AF17: 65146.51675 | AG17: 62258.32358 | AH17: 39495.54933
B18: 1,RP119961 | D18: Local | E18: Urban West | F18: OPENS SPACE LAND-000/0099 ^07148 | I18: 0 | K18: 569.2740596 | L18: 183.7900186 | M18: 104626.89 | N18: 2016 | O18: =IFERROR(('General Input Sheet'!$G$38/(VLOOKUP(N18,'General Input Sheet'!$E$38:$G$44,3,FALSE))),1) -> 1 | P18: 104626.89 | U18: y | W18: =_xlfn.IFS(AND(Q18="y",$D18="Local"), 1, AND(Q18="y",$D18<>"Local"),1.49009696454663%, Q18="","") ->  | X18: =_xlfn.IFS(AND(R18="y",$D18="Local"), 1, AND(R18="y",$D18<>"Local"),20.7557554582461%, R18="","") ->  | Y18: =_xlfn.IFS(AND(S18="y",$D18="Local"), 1, AND(S18="y",$D18<>"Local"),30.3499104327336%, S18="","") ->  | Z18: =_xlfn.IFS(AND(T18="y",$D18="Local"), 1, AND(T18="y",$D18<>"Local"),29.0043833288201%, T18="","") ->  | AA18: =_xlfn.IFS(AND(U18="y",$D18="Local"), 1, AND(U18="y",$D18<>"Local"),18.3998538156536%, U18="","") -> 1 | AB18: 1 | AH18: 104626.89
B19: 1,RP121595 | D19: Local | E19: Urban West | F19: COUNCIL LAND BRISB-000/0695 ^03708 | I19: 0 | K19: 853.9830613 | L19: 200.0625162 | M19: 170850 | N19: 2016 | O19: =IFERROR(('General Input Sheet'!$G$38/(VLOOKUP(N19,'General Input Sheet'!$E$38:$G$44,3,FALSE))),1) -> 1 | P19: 170850 | U19: y | W19: =_xlfn.IFS(AND(Q19="y",$D19="Local"), 1, AND(Q19="y",$D19<>"Local"),1.49009696454663%, Q19="","") ->  | X19: =_xlfn.IFS(AND(R19="y",$D19="Local"), 1, AND(R19="y",$D19<>"Local"),20.7557554582461%, R19="","") ->  | Y19: =_xlfn.IFS(AND(S19="y",$D19="Local"), 1, AND(S19="y",$D19<>"Local"),30.3499104327336%, S19="","") ->  | Z19: =_xlfn.IFS(AND(T19="y",$D19="Local"), 1, AND(T19="y",$D19<>"Local"),29.0043833288201%, T19="","") ->  | AA19: =_xlfn.IFS(AND(U19="y",$D19="Local"), 1, AND(U19="y",$D19<>"Local"),18.3998538156536%, U19="","") -> 1 | AB19: 1 | AH19: 170850
B20: 1,RP150414 | D20: District | E20: Urban West | F20: COUNCIL LAND BRISB-000/0089 ^01136 | I20: 0 | K20: 961.2233296 | L20: 31.85531297 | M20: 30620.07 | N20: 2016 | O20: =IFERROR(('General Input Sheet'!$G$38/(VLOOKUP(N20,'General Input Sheet'!$E$38:$G$44,3,FALSE))),1) -> 1 | P20: 30620.07 | Q20: y | R20: y | S20: y | T20: y | U20: y | W20: =_xlfn.IFS(AND(Q20="y",$D20="Local"), 1, AND(Q20="y",$D20<>"Local"),1.49009696454663%, Q20="","") -> 0.01490096965 | X20: =_xlfn.IFS(AND(R20="y",$D20="Local"), 1, AND(R20="y",$D20<>"Local"),20.7557554582461%, R20="","") -> 0.2075575546 | Y20: =_xlfn.IFS(AND(S20="y",$D20="Local"), 1, AND(S20="y",$D20<>"Local"),30.3499104327336%, S20="","") -> 0.3034991043 | Z20: =_xlfn.IFS(AND(T20="y",$D20="Local"), 1, AND(T20="y",$D20<>"Local"),29.0043833288201%, T20="","") -> 0.2900438333 | AA20: =_xlfn.IFS(AND(U20="y",$D20="Local"), 1, AND(U20="y",$D20<>"Local"),18.3998538156536%, U20="","") -> 0.1839985382 | AB20: 1 | AD20: 456.2687336 | AE20: 6355.42685 | AF20: 9293.163819 | AG20: 8881.162478 | AH20: 5634.048118
B21: 1,RP152452 | D21: Local | E21: Urban South | F21: COUNCIL LAND BRISB-000/0042-A ^00029 | I21: 0 | K21: 207.3598593 | L21: 82.3929957 | M21: 17085 | N21: 2016 | O21: =IFERROR(('General Input Sheet'!$G$38/(VLOOKUP(N21,'General Input Sheet'!$E$38:$G$44,3,FALSE))),1) -> 1 | P21: 17085 | T21: y | W21: =_xlfn.IFS(AND(Q21="y",$D21="Local"), 1, AND(Q21="y",$D21<>"Local"),1.49009696454663%, Q21="","") ->  | X21: =_xlfn.IFS(AND(R21="y",$D21="Local"), 1, AND(R21="y",$D21<>"Local"),20.7557554582461%, R21="","") ->  | Y21: =_xlfn.IFS(AND(S21="y",$D21="Local"), 1, AND(S21="y",$D21<>"Local"),30.3499104327336%, S21="","") ->  | Z21: =_xlfn.IFS(AND(T21="y",$D21="Local"), 1, AND(T21="y",$D21<>"Local"),29.0043833288201%, T21="","") -> 1 | AA21: =_xlfn.IFS(AND(U21="y",$D21="Local"), 1, AND(U21="y",$D21<>"Local"),18.3998538156536%, U21="","") ->  | AB21: 1 | AG21: 17085
B22: 1,RP161848 | D22: Local | E22: Urban South | F22: COUNCIL LAND BRISB-003/0031-4 ^07348 | I22: 0 | K22: 4753.189774 | L22: 71.48180404 | M22: 339766.58 | N22: 2016 | O22: =IFERROR(('General Input Sheet'!$G$38/(VLOOKUP(N22,'General Input Sheet'!$E$38:$G$44,3,FALSE))),1) -> 1 | P22: 339766.58 | T22: y | W22: =_xlfn.IFS(AND(Q22="y",$D22="Local"), 1, AND(Q22="y",$D22<>"Local"),1.49009696454663%, Q22="","") ->  | X22: =_xlfn.IFS(AND(R22="y",$D22="Local"), 1, AND(R22="y",$D22<>"Local"),20.7557554582461%, R22="","") ->  | Y22: =_xlfn.IFS(AND(S22="y",$D22="Local"), 1, AND(S22="y",$D22<>"Local"),30.3499104327336%, S22="","") ->  | Z22: =_xlfn.IFS(AND(T22="y",$D22="Local"), 1, AND(T22="y",$D22<>"Local"),29.0043833288201%, T22="","") -> 1 | AA22: =_xlfn.IFS(AND(U22="y",$D22="Local"), 1, AND(U22="y",$D22<>"Local"),18.3998538156536%, U22="","") ->  | AB22: 1 | AG22: 339766.58
B23: 1,RP161907 | D23: Local | E23: Urban West | F23: OPENS SPACE LAND-000/0085 ^08353 | I23: 0 | K23: 1073.479726 | L23: 38.84635078 | M23: 41700.77 | N23: 2016 | O23: =IFERROR(('General Input Sheet'!$G$38/(VLOOKUP(N23,'General Input Sheet'!$E$38:$G$44,3,FALSE))),1) -> 1 | P23: 41700.77 | U23: y | W23: =_xlfn.IFS(AND(Q23="y",$D23="Local"), 1, AND(Q23="y",$D23<>"Local"),1.49009696454663%, Q23="","") ->  | X23: =_xlfn.IFS(AND(R23="y",$D23="Local"), 1, AND(R23="y",$D23<>"Local"),20.7557554582461%, R23="","") ->  | Y23: =_xlfn.IFS(AND(S23="y",$D23="Local"), 1, AND(S23="y",$D23<>"Local"),30.3499104327336%, S23="","") ->  | Z23: =_xlfn.IFS(AND(T23="y",$D23="Local"), 1, AND(T23="y",$D23<>"Local"),29.0043833288201%, T23="","") ->  | AA23: =_xlfn.IFS(AND(U23="y",$D23="Local"), 1, AND(U23="y",$D23<>"Local"),18.3998538156536%, U23="","") -> 1 | AB23: 1 | AH23: 41700.77
B24: 1,RP165938 | D24: Local | E24: Urban West | F24: COUNCIL LAND BRISB-000/0705 ^03708 | I24: 0 | K24: 157.3098289 | L24: 58.18466693 | M24: 9153.02 | N24: 2016 | O24: =IFERROR(('General Input Sheet'!$G$38/(VLOOKUP(N24,'General Input Sheet'!$E$38:$G$44,3,FALSE))),1) -> 1 | P24: 9153.02 | U24: y | W24: =_xlfn.IFS(AND(Q24="y",$D24="Local"), 1, AND(Q24="y",$D24<>"Local"),1.49009696454663%, Q24="","") ->  | X24: =_xlfn.IFS(AND(R24="y",$D24="Local"), 1, AND(R24="y",$D24<>"Local"),20.7557554582461%, R24="","") ->  | Y24: =_xlfn.IFS(AND(S24="y",$D24="Local"), 1, AND(S24="y",$D24<>"Local"),30.3499104327336%, S24="","") ->  | Z24: =_xlfn.IFS(AND(T24="y",$D24="Local"), 1, AND(T24="y",$D24<>"Local"),29.0043833288201%, T24="","") ->  | AA24: =_xlfn.IFS(AND(U24="y",$D24="Local"), 1, AND(U24="y",$D24<>"Local"),18.3998538156536%, U24="","") -> 1 | AB24: 1 | AH24: 9153.02
B25: 1,RP165973 | D25: Metropolitan | E25: Urban North | F25: OPENS SPACE LAND-003/1105-4 ^04519 | I25: 0 | K25: 3639.645122 | L25: 42.45230093 | M25: 154511.31 | N25: 2016 | O25: =IFERROR(('General Input Sheet'!$G$38/(VLOOKUP(N25,'General Input Sheet'!$E$38:$G$44,3,FALSE))),1) -> 1 | P25: 154511.31 | Q25: y | R25: y | S25: y | T25: y | U25: y | W25: =_xlfn.IFS(AND(Q25="y",$D25="Local"), 1, AND(Q25="y",$D25<>"Local"),1.49009696454663%, Q25="","") -> 0.01490096965 | X25: =_xlfn.IFS(AND(R25="y",$D25="Local"), 1, AND(R25="y",$D25<>"Local"),20.7557554582461%, R25="","") -> 0.2075575546 | Y25: =_xlfn.IFS(AND(S25="y",$D25="Local"), 1, AND(S25="y",$D25<>"Local"),30.3499104327336%, S25="","") -> 0.3034991043 | Z25: =_xlfn.IFS(AND(T25="y",$D25="Local"), 1, AND(T25="y",$D25<>"Local"),29.0043833288201%, T25="","") -> 0.2900438333 | AA25: =_xlfn.IFS(AND(U25="y",$D25="Local"), 1, AND(U25="y",$D25<>"Local"),18.3998538156536%, U25="","") -> 0.1839985382 | AB25: 1 | AD25: 2302.36834 | AE25: 32069.98966 | AF25: 46894.04419 | AG25: 44815.05264 | AH25: 28429.85517
B26: 1,RP177899 | D26: District | E26: Urban East | F26: OPENS SPACE LAND-000/0011 ^03664 PERFORMANCE SPACE | G26: 56000 | H26: 1921 | I26: 45 | J26: 142445 | K26: 1867.619563 | L26: 308.5746216 | M26: 576300 | N26: 2016 | O26: =IFERROR(('General Input Sheet'!$G$38/(VLOOKUP(N26,'General Input Sheet'!$E$38:$G$44,3,FALSE))),1) -> 1 | P26: 718745 | Q26: y | R26: y | S26: y | T26: y | U26: y | W26: =_xlfn.IFS(AND(Q26="y",$D26="Local"), 1, AND(Q26="y",$D26<>"Local"),1.49009696454663%, Q26="","") -> 0.01490096965 | X26: =_xlfn.IFS(AND(R26="y",$D26="Local"), 1, AND(R26="y",$D26<>"Local"),20.7557554582461%, R26="","") -> 0.2075575546 | Y26: =_xlfn.IFS(AND(S26="y",$D26="Local"), 1, AND(S26="y",$D26<>"Local"),30.3499104327336%, S26="","") -> 0.3034991043 | Z26: =_xlfn.IFS(AND(T26="y",$D26="Local"), 1, AND(T26="y",$D26<>"Local"),29.0043833288201%, T26="","") -> 0.2900438333 | AA26: =_xlfn.IFS(AND(U26="y",$D26="Local"), 1, AND(U26="y",$D26<>"Local"),18.3998538156536%, U26="","") -> 0.1839985382 | AB26: 1 | AD26: 10709.99743 | AE26: 149180.9546 | AF26: 218138.4637 | AG26: 208467.555 | AH26: 132248.0293
B27: 1,RP181933 | D27: District | E27: Urban North | F27: COUNCIL LAND BRISB-008/0053-4 ^03261 COMMUNITY SERVICE/GROUP | G27: 56000 | H27: 200 | I27: 45 | J27: 65000 | K27: 1149.680554 | L27: 139.0909931 | M27: 159910.21 | N27: 2016 | O27: =IFERROR(('General Input Sheet'!$G$38/(VLOOKUP(N27,'General Input Sheet'!$E$38:$G$44,3,FALSE))),1) -> 1 | P27: 224910.21 | Q27: y | R27: y | S27: y | T27: y | U27: y | W27: =_xlfn.IFS(AND(Q27="y",$D27="Local"), 1, AND(Q27="y",$D27<>"Local"),1.49009696454663%, Q27="","") -> 0.01490096965 | X27: =_xlfn.IFS(AND(R27="y",$D27="Local"), 1, AND(R27="y",$D27<>"Local"),20.7557554582461%, R27="","") -> 0.2075575546 | Y27: =_xlfn.IFS(AND(S27="y",$D27="Local"), 1, AND(S27="y",$D27<>"Local"),30.3499104327336%, S27="","") -> 0.3034991043 | Z27: =_xlfn.IFS(AND(T27="y",$D27="Local"), 1, AND(T27="y",$D27<>"Local"),29.0043833288201%, T27="","") -> 0.2900438333 | AA27: =_xlfn.IFS(AND(U27="y",$D27="Local"), 1, AND(U27="y",$D27<>"Local"),18.3998538156536%, U27="","") -> 0.1839985382 | AB27: 1 | AD27: 3351.380212 | AE27: 46681.81319 | AF27: 68260.04729 | AG27: 65233.81945 | AH27: 41383.14986
B28: 1,RP181933 | D28: District | E28: Urban North | F28: COUNCIL LAND BRISB-008/0053-4 ^03261 COMMUNITY SERVICE/GROUP | G28: 56000 | H28: 801 | I28: 45 | J28: 92045 | L28: 0 | N28: 2016 | O28: =IFERROR(('General Input Sheet'!$G$38/(VLOOKUP(N28,'General Input Sheet'!$E$38:$G$44,3,FALSE))),1) -> 1 | P28: 92045 | Q28: y | R28: y | S28: y | T28: y | U28: y | W28: =_xlfn.IFS(AND(Q28="y",$D28="Local"), 1, AND(Q28="y",$D28<>"Local"),1.49009696454663%, Q28="","") -> 0.01490096965 | X28: =_xlfn.IFS(AND(R28="y",$D28="Local"), 1, AND(R28="y",$D28<>"Local"),20.7557554582461%, R28="","") -> 0.2075575546 | Y28: =_xlfn.IFS(AND(S28="y",$D28="Local"), 1, AND(S28="y",$D28<>"Local"),30.3499104327336%, S28="","") -> 0.3034991043 | Z28: =_xlfn.IFS(AND(T28="y",$D28="Local"), 1, AND(T28="y",$D28<>"Local"),29.0043833288201%, T28="","") -> 0.2900438333 | AA28: =_xlfn.IFS(AND(U28="y",$D28="Local"), 1, AND(U28="y",$D28<>"Local"),18.3998538156536%, U28="","") -> 0.1839985382 | AB28: 1 | AD28: 1371.559751 | AE28: 19104.63511 | AF28: 27935.57506 | AG28: 26697.08464 | AH28: 16936.14544
B29: 1,RP196225 | D29: District | E29: Urban North | F29: OPENS SPACE LAND-001/0055-4 ^06665 | I29: 0 | K29: 3553.720881 | L29: 25.14477445 | M29: 89357.51 | N29: 2016 | O29: =IFERROR(('General Input Sheet'!$G$38/(VLOOKUP(N29,'General Input Sheet'!$E$38:$G$44,3,FALSE))),1) -> 1 | P29: 89357.51 | Q29: y | R29: y | S29: y | T29: y | U29: y | W29: =_xlfn.IFS(AND(Q29="y",$D29="Local"), 1, AND(Q29="y",$D29<>"Local"),1.49009696454663%, Q29="","") -> 0.01490096965 | X29: =_xlfn.IFS(AND(R29="y",$D29="Local"), 1, AND(R29="y",$D29<>"Local"),20.7557554582461%, R29="","") -> 0.2075575546 | Y29: =_xlfn.IFS(AND(S29="y",$D29="Local"), 1, AND(S29="y",$D29<>"Local"),30.3499104327336%, S29="","") -> 0.3034991043 | Z29: =_xlfn.IFS(AND(T29="y",$D29="Local"), 1, AND(T29="y",$D29<>"Local"),29.0043833288201%, T29="","") -> 0.2900438333 | AA29: =_xlfn.IFS(AND(U29="y",$D29="Local"), 1, AND(U29="y",$D29<>"Local"),18.3998538156536%, U29="","") -> 0.1839985382 | AB29: 1 | AD29: 1331.513544 | AE29: 18546.82626 | AF29: 27119.92425 | AG29: 25917.59473 | AH29: 16441.65121
B30: 1,RP20184 | D30: Local | E30: Urban West | F30: OPENS SPACE LAND-000/0247 ^09069 COMMUNITY SERVICE/GROUP | G30: 56000 | H30: 2150 | I30: 45 | J30: 152750 | K30: 5547.720289 | L30: 23.67278146 | M30: 131329.97 | N30: 2016 | O30: =IFERROR(('General Input Sheet'!$G$38/(VLOOKUP(N30,'General Input Sheet'!$E$38:$G$44,3,FALSE))),1) -> 1 | P30: 284079.97 | Q30: =IF(OR(Q$9=$E30,$D30="Metropolitan",$D30="District"),"y","") ->  | U30: y | W30: =_xlfn.IFS(AND(Q30="y",$D30="Local"), 1, AND(Q30="y",$D30<>"Local"),1.49009696454663%, Q30="","") ->  | X30: =_xlfn.IFS(AND(R30="y",$D30="Local"), 1, AND(R30="y",$D30<>"Local"),20.7557554582461%, R30="","") ->  | Y30: =_xlfn.IFS(AND(S30="y",$D30="Local"), 1, AND(S30="y",$D30<>"Local"),30.3499104327336%, S30="","") ->  | Z30: =_xlfn.IFS(AND(T30="y",$D30="Local"), 1, AND(T30="y",$D30<>"Local"),29.0043833288201%, T30="","") ->  | AA30: =_xlfn.IFS(AND(U30="y",$D30="Local"), 1, AND(U30="y",$D30<>"Local"),18.3998538156536%, U30="","") -> 1 | AB30: 1 | AH30: 284079.97
B31: 1,RP216985 | D31: Local | E31: Urban West | F31: COUNCIL LAND BRISB-000/0316 ^06924 | I31: 0 | K31: 743.6421106 | L31: 178.1188936 | M31: 132456.71 | N31: 2016 | O31: =IFERROR(('General Input Sheet'!$G$38/(VLOOKUP(N31,'General Input Sheet'!$E$38:$G$44,3,FALSE))),1) -> 1 | P31: 132456.71 | U31: y | W31: =_xlfn.IFS(AND(Q31="y",$D31="Local"), 1, AND(Q31="y",$D31<>"Local"),1.49009696454663%, Q31="","") ->  | X31: =_xlfn.IFS(AND(R31="y",$D31="Local"), 1, AND(R31="y",$D31<>"Local"),20.7557554582461%, R31="","") ->  | Y31: =_xlfn.IFS(AND(S31="y",$D31="Local"), 1, AND(S31="y",$D31<>"Local"),30.3499104327336%, S31="","") ->  | Z31: =_xlfn.IFS(AND(T31="y",$D31="Local"), 1, AND(T31="y",$D31<>"Local"),29.0043833288201%, T31="","") ->  | AA31: =_xlfn.IFS(AND(U31="y",$D31="Local"), 1, AND(U31="y",$D31<>"Local"),18.3998538156536%, U31="","") -> 1 | AB31: 1 | AH31: 132456.71
B32: 1,RP26143 | D32: Local | E32: Urban North | F32: OPENS SPACE LAND-000/0026 ^00119 COMMUNITY SERVICE/GROUP | G32: 56000 | H32: 1260 | I32: 45 | J32: 112700 | K32: 2183.112784 | L32: 91.34480429 | M32: 199416.01 | N32: 2016 | O32: =IFERROR(('General Input Sheet'!$G$38/(VLOOKUP(N32,'General Input Sheet'!$E$38:$G$44,3,FALSE))),1) -> 1 | P32: 312116.01 | S32: y | W32: =_xlfn.IFS(AND(Q32="y",$D32="Local"), 1, AND(Q32="y",$D32<>"Local"),1.49009696454663%, Q32="","") ->  | X32: =_xlfn.IFS(AND(R32="y",$D32="Local"), 1, AND(R32="y",$D32<>"Local"),20.7557554582461%, R32="","") ->  | Y32: =_xlfn.IFS(AND(S32="y",$D32="Local"), 1, AND(S32="y",$D32<>"Local"),30.3499104327336%, S32="","") -> 1 | Z32: =_xlfn.IFS(AND(T32="y",$D32="Local"), 1, AND(T32="y",$D32<>"Local"),29.0043833288201%, T32="","") ->  | AA32: =_xlfn.IFS(AND(U32="y",$D32="Local"), 1, AND(U32="y",$D32<>"Local"),18.3998538156536%, U32="","") ->  | AB32: 1 | AF32: 312116.01
B33: 1,RP33074 | D33: Local | E33: Urban East | F33: COUNCIL LAND BRISB-000/0059 ^04346 | I33: 0 | K33: 17.81570355 | L33: 212.8998156 | M33: 3792.96 | N33: 2016 | O33: =IFERROR(('General Input Sheet'!$G$38/(VLOOKUP(N33,'General Input Sheet'!$E$38:$G$44,3,FALSE))),1) -> 1 | P33: 3792.96 | R33: y | W33: =_xlfn.IFS(AND(Q33="y",$D33="Local"), 1, AND(Q33="y",$D33<>"Local"),1.49009696454663%, Q33="","") ->  | X33: =_xlfn.IFS(AND(R33="y",$D33="Local"), 1, AND(R33="y",$D33<>"Local"),20.7557554582461%, R33="","") -> 1 | Y33: =_xlfn.IFS(AND(S33="y",$D33="Local"), 1, AND(S33="y",$D33<>"Local"),30.3499104327336%, S33="","") ->  | Z33: =_xlfn.IFS(AND(T33="y",$D33="Local"), 1, AND(T33="y",$D33<>"Local"),29.0043833288201%, T33="","") ->  | AA33: =_xlfn.IFS(AND(U33="y",$D33="Local"), 1, AND(U33="y",$D33<>"Local"),18.3998538156536%, U33="","") ->  | AB33: 1 | AE33: 3792.96
B34: 1,RP38120 | D34: Metropolitan | E34: Urban East | F34: OPENS SPACE LAND-000/1595 ^06194 | I34: 0 | K34: 1967.305524 | L34: 20.33280013 | M34: 40000.83 | N34: 2016 | O34: =IFERROR(('General Input Sheet'!$G$38/(VLOOKUP(N34,'General Input Sheet'!$E$38:$G$44,3,FALSE))),1) -> 1 | P34: 40000.83 | Q34: y | R34: y | S34: y | T34: y | U34: y | W34: =_xlfn.IFS(AND(Q34="y",$D34="Local"), 1, AND(Q34="y",$D34<>"Local"),1.49009696454663%, Q34="","") -> 0.01490096965 | X34: =_xlfn.IFS(AND(R34="y",$D34="Local"), 1, AND(R34="y",$D34<>"Local"),20.7557554582461%, R34="","") -> 0.2075575546 | Y34: =_xlfn.IFS(AND(S34="y",$D34="Local"), 1, AND(S34="y",$D34<>"Local"),30.3499104327336%, S34="","") -> 0.3034991043 | Z34: =_xlfn.IFS(AND(T34="y",$D34="Local"), 1, AND(T34="y",$D34<>"Local"),29.0043833288201%, T34="","") -> 0.2900438333 | AA34: =_xlfn.IFS(AND(U34="y",$D34="Local"), 1, AND(U34="y",$D34<>"Local"),18.3998538156536%, U34="","") -> 0.1839985382 | AB34: 1 | AD34: 596.0511536 | AE34: 8302.474456 | AF34: 12140.21608 | AG34: 11601.99407 | AH34: 7360.094245
B35: 1,RP45362 | D35: District | E35: Urban South | F35: OPENS SPACE LAND-000/1498 ^00926 | I35: 0 | K35: 2316.505792 | L35: 104.0479073 | M35: 241027.58 | N35: 2016 | O35: =IFERROR(('General Input Sheet'!$G$38/(VLOOKUP(N35,'General Input Sheet'!$E$38:$G$44,3,FALSE))),1) -> 1 | P35: 241027.58 | Q35: y | R35: y | S35: y | T35: y | U35: y | W35: =_xlfn.IFS(AND(Q35="y",$D35="Local"), 1, AND(Q35="y",$D35<>"Local"),1.49009696454663%, Q35="","") -> 0.01490096965 | X35: =_xlfn.IFS(AND(R35="y",$D35="Local"), 1, AND(R35="y",$D35<>"Local"),20.7557554582461%, R35="","") -> 0.2075575546 | Y35: =_xlfn.IFS(AND(S35="y",$D35="Local"), 1, AND(S35="y",$D35<>"Local"),30.3499104327336%, S35="","") -> 0.3034991043 | Z35: =_xlfn.IFS(AND(T35="y",$D35="Local"), 1, AND(T35="y",$D35<>"Local"),29.0043833288201%, T35="","") -> 0.2900438333 | AA35: =_xlfn.IFS(AND(U35="y",$D35="Local"), 1, AND(U35="y",$D35<>"Local"),18.3998538156536%, U35="","") -> 0.1839985382 | AB35: 1 | AD35: 3591.544653 | AE35: 50027.09509 | AF35: 73151.65465 | AG35: 69908.56323 | AH35: 44348.72238
B36: 1,RP52192 | D36: Metropolitan | E36: Urban North | F36: COUNCIL LAND BRISB-000/0008 ^03263 | I36: 0 | K36: 1799.660539 | L36: 193.4275895 | M36: 348104 | N36: 2016 | O36: =IFERROR(('General Input Sheet'!$G$38/(VLOOKUP(N36,'General Input Sheet'!$E$38:$G$44,3,FALSE))),1) -> 1 | P36: 348104 | Q36: y | R36: y | S36: y | T36: y | U36: y | W36: =_xlfn.IFS(AND(Q36="y",$D36="Local"), 1, AND(Q36="y",$D36<>"Local"),1.49009696454663%, Q36="","") -> 0.01490096965 | X36: =_xlfn.IFS(AND(R36="y",$D36="Local"), 1, AND(R36="y",$D36<>"Local"),20.7557554582461%, R36="","") -> 0.2075575546 | Y36: =_xlfn.IFS(AND(S36="y",$D36="Local"), 1, AND(S36="y",$D36<>"Local"),30.3499104327336%, S36="","") -> 0.3034991043 | Z36: =_xlfn.IFS(AND(T36="y",$D36="Local"), 1, AND(T36="y",$D36<>"Local"),29.0043833288201%, T36="","") -> 0.2900438333 | AA36: =_xlfn.IFS(AND(U36="y",$D36="Local"), 1, AND(U36="y",$D36<>"Local"),18.3998538156536%, U36="","") -> 0.1839985382 | AB36: 1 | AD36: 5187.087137 | AE36: 72251.61498 | AF36: 105649.2522 | AG36: 100965.4185 | AH36: 64050.62713
B37: 1,RP52193 | D37: Metropolitan | E37: Urban North | F37: COUNCIL LAND BRISB-000/0008 ^03055 | I37: 0 | K37: 915.3451877 | L37: 261.4543707 | M37: 239321 | N37: 2016 | O37: =IFERROR(('General Input Sheet'!$G$38/(VLOOKUP(N37,'General Input Sheet'!$E$38:$G$44,3,FALSE))),1) -> 1 | P37: 239321 | Q37: y | R37: y | S37: y | T37: y | U37: y | W37: =_xlfn.IFS(AND(Q37="y",$D37="Local"), 1, AND(Q37="y",$D37<>"Local"),1.49009696454663%, Q37="","") -> 0.01490096965 | X37: =_xlfn.IFS(AND(R37="y",$D37="Local"), 1, AND(R37="y",$D37<>"Local"),20.7557554582461%, R37="","") -> 0.2075575546 | Y37: =_xlfn.IFS(AND(S37="y",$D37="Local"), 1, AND(S37="y",$D37<>"Local"),30.3499104327336%, S37="","") -> 0.3034991043 | Z37: =_xlfn.IFS(AND(T37="y",$D37="Local"), 1, AND(T37="y",$D37<>"Local"),29.0043833288201%, T37="","") -> 0.2900438333 | AA37: =_xlfn.IFS(AND(U37="y",$D37="Local"), 1, AND(U37="y",$D37<>"Local"),18.3998538156536%, U37="","") -> 0.1839985382 | AB37: 1 | AD37: 3566.114957 | AE37: 49672.88152 | AF37: 72633.70915 | AG37: 69413.58023 | AH37: 44034.71415
B38: 1,RP53920 | D38: Metropolitan | E38: Urban North | F38: COUNCIL LAND BRISB-000/0026 ^03055 | I38: 0 | K38: 112.9568193 | L38: 364.952114 | M38: 41223.83 | N38: 2016 | O38: =IFERROR(('General Input Sheet'!$G$38/(VLOOKUP(N38,'General Input Sheet'!$E$38:$G$44,3,FALSE))),1) -> 1 | P38: 41223.83 | Q38: y | R38: y | S38: y | T38: y | U38: y | W38: =_xlfn.IFS(AND(Q38="y",$D38="Local"), 1, AND(Q38="y",$D38<>"Local"),1.49009696454663%, Q38="","") -> 0.01490096965 | X38: =_xlfn.IFS(AND(R38="y",$D38="Local"), 1, AND(R38="y",$D38<>"Local"),20.7557554582461%, R38="","") -> 0.2075575546 | Y38: =_xlfn.IFS(AND(S38="y",$D38="Local"), 1, AND(S38="y",$D38<>"Local"),30.3499104327336%, S38="","") -> 0.3034991043 | Z38: =_xlfn.IFS(AND(T38="y",$D38="Local"), 1, AND(T38="y",$D38<>"Local"),29.0043833288201%, T38="","") -> 0.2900438333 | AA38: =_xlfn.IFS(AND(U38="y",$D38="Local"), 1, AND(U38="y",$D38<>"Local"),18.3998538156536%, U38="","") -> 0.1839985382 | AB38: 1 | AD38: 614.2750395 | AE38: 8556.317345 | AF38: 12511.39548 | AG38: 11956.71768 | AH38: 7585.124457
B39: 1,RP56537 | D39: Local | E39: Urban North | F39: OPENS SPACE LAND-000/0020 ^05831 | I39: 0 | K39: 2061.341773 | L39: 142.4290886 | M39: 293595.03 | N39: 2016 | O39: =IFERROR(('General Input Sheet'!$G$38/(VLOOKUP(N39,'General Input Sheet'!$E$38:$G$44,3,FALSE))),1) -> 1 | P39: 293595.03 | S39: y | W39: =_xlfn.IFS(AND(Q39="y",$D39="Local"), 1, AND(Q39="y",$D39<>"Local"),1.49009696454663%, Q39="","") ->  | X39: =_xlfn.IFS(AND(R39="y",$D39="Local"), 1, AND(R39="y",$D39<>"Local"),20.7557554582461%, R39="","") ->  | Y39: =_xlfn.IFS(AND(S39="y",$D39="Local"), 1, AND(S39="y",$D39<>"Local"),30.3499104327336%, S39="","") -> 1 | Z39: =_xlfn.IFS(AND(T39="y",$D39="Local"), 1, AND(T39="y",$D39<>"Local"),29.0043833288201%, T39="","") ->  | AA39: =_xlfn.IFS(AND(U39="y",$D39="Local"), 1, AND(U39="y",$D39<>"Local"),18.3998538156536%, U39="","") ->  | AB39: 1 | AF39: 293595.03
B40: 1,RP58389 | D40: District | E40: Urban West | F40: COUNCIL LAND BRISB-000/0035 ^00159 | I40: 0 | K40: 2653.818358 | L40: 470.4201086 | M40: 1248409.52 | N40: 2016 | O40: =IFERROR(('General Input Sheet'!$G$38/(VLOOKUP(N40,'General Input Sheet'!$E$38:$G$44,3,FALSE))),1) -> 1 | P40: 1248409.52 | Q40: y | R40: y | S40: y | T40: y | U40: y | W40: =_xlfn.IFS(AND(Q40="y",$D40="Local"), 1, AND(Q40="y",$D40<>"Local"),1.49009696454663%, Q40="","") -> 0.01490096965 | X40: =_xlfn.IFS(AND(R40="y",$D40="Local"), 1, AND(R40="y",$D40<>"Local"),20.7557554582461%, R40="","") -> 0.2075575546 | Y40: =_xlfn.IFS(AND(S40="y",$D40="Local"), 1, AND(S40="y",$D40<>"Local"),30.3499104327336%, S40="","") -> 0.3034991043 | Z40: =_xlfn.IFS(AND(T40="y",$D40="Local"), 1, AND(T40="y",$D40<>"Local"),29.0043833288201%, T40="","") -> 0.2900438333 | AA40: =_xlfn.IFS(AND(U40="y",$D40="Local"), 1, AND(U40="y",$D40<>"Local"),18.3998538156536%, U40="","") -> 0.1839985382 | AB40: 1 | AD40: 18602.51236 | AE40: 259116.8271 | AF40: 378891.1712 | AG40: 362093.4827 | AH40: 229705.5267
B41: 1,RP818259 | D41: District | E41: Urban South | F41: OPENS SPACE LAND-003/0021-4 ^10940 COMMUNITY SERVICE/GROUP | G41: 56000 | H41: 2880 | I41: 45 | J41: 185600 | K41: 4976.50502 | L41: 291.3759947 | M41: 1450034.1 | N41: 2016 | O41: =IFERROR(('General Input Sheet'!$G$38/(VLOOKUP(N41,'General Input Sheet'!$E$38:$G$44,3,FALSE))),1) -> 1 | P41: 1635634.1 | Q41: y | R41: y | S41: y | T41: y | U41: y | W41: =_xlfn.IFS(AND(Q41="y",$D41="Local"), 1, AND(Q41="y",$D41<>"Local"),1.49009696454663%, Q41="","") -> 0.01490096965 | X41: =_xlfn.IFS(AND(R41="y",$D41="Local"), 1, AND(R41="y",$D41<>"Local"),20.7557554582461%, R41="","") -> 0.2075575546 | Y41: =_xlfn.IFS(AND(S41="y",$D41="Local"), 1, AND(S41="y",$D41<>"Local"),30.3499104327336%, S41="","") -> 0.3034991043 | Z41: =_xlfn.IFS(AND(T41="y",$D41="Local"), 1, AND(T41="y",$D41<>"Local"),29.0043833288201%, T41="","") -> 0.2900438333 | AA41: =_xlfn.IFS(AND(U41="y",$D41="Local"), 1, AND(U41="y",$D41<>"Local"),18.3998538156536%, U41="","") -> 0.1839985382 | AB41: 1 | AD41: 24372.53408 | AE41: 339488.214 | AF41: 496413.4844 | AG41: 474405.5842 | AH41: 300954.2834
B42: 1,RP890175 | D42: Local | E42: Urban South | F42: OPENS SPACE LAND-001/0044-4 ^09677 | I42: 0 | K42: 2378.882055 | L42: 47.18081327 | M42: 112237.59 | N42: 2016 | O42: =IFERROR(('General Input Sheet'!$G$38/(VLOOKUP(N42,'General Input Sheet'!$E$38:$G$44,3,FALSE))),1) -> 1 | P42: 112237.59 | T42: y | W42: =_xlfn.IFS(AND(Q42="y",$D42="Local"), 1, AND(Q42="y",$D42<>"Local"),1.49009696454663%, Q42="","") ->  | X42: =_xlfn.IFS(AND(R42="y",$D42="Local"), 1, AND(R42="y",$D42<>"Local"),20.7557554582461%, R42="","") ->  | Y42: =_xlfn.IFS(AND(S42="y",$D42="Local"), 1, AND(S42="y",$D42<>"Local"),30.3499104327336%, S42="","") ->  | Z42: =_xlfn.IFS(AND(T42="y",$D42="Local"), 1, AND(T42="y",$D42<>"Local"),29.0043833288201%, T42="","") -> 1 | AA42: =_xlfn.IFS(AND(U42="y",$D42="Local"), 1, AND(U42="y",$D42<>"Local"),18.3998538156536%, U42="","") ->  | AB42: 1 | AG42: 112237.59
B43: 1,SL2423 | D43: Local | E43: Urban East | F43: COUNCIL LAND BRISB-000/0044 ^03028 | I43: 0 | K43: 1758.803895 | L43: 61.57596664 | M43: 108300.05 | N43: 2016 | O43: =IFERROR(('General Input Sheet'!$G$38/(VLOOKUP(N43,'General Input Sheet'!$E$38:$G$44,3,FALSE))),1) -> 1 | P43: 108300.05 | R43: y | W43: =_xlfn.IFS(AND(Q43="y",$D43="Local"), 1, AND(Q43="y",$D43<>"Local"),1.49009696454663%, Q43="","") ->  | X43: =_xlfn.IFS(AND(R43="y",$D43="Local"), 1, AND(R43="y",$D43<>"Local"),20.7557554582461%, R43="","") -> 1 | Y43: =_xlfn.IFS(AND(S43="y",$D43="Local"), 1, AND(S43="y",$D43<>"Local"),30.3499104327336%, S43="","") ->  | Z43: =_xlfn.IFS(AND(T43="y",$D43="Local"), 1, AND(T43="y",$D43<>"Local"),29.0043833288201%, T43="","") ->  | AA43: =_xlfn.IFS(AND(U43="y",$D43="Local"), 1, AND(U43="y",$D43<>"Local"),18.3998538156536%, U43="","") ->  | AB43: 1 | AE43: 108300.05
B44: 1,SP241681 | D44: District | E44: Urban South | F44: 000/0140 ^10405 .TARRAGINDI .WELLER RD .140 | I44: 0 | K44: 14064.82819 | L44: 34.26974033 | M44: 481998.01 | N44: 2016 | O44: =IFERROR(('General Input Sheet'!$G$38/(VLOOKUP(N44,'General Input Sheet'!$E$38:$G$44,3,FALSE))),1) -> 1 | P44: 481998.01 | Q44: y | R44: y | S44: y | T44: y | U44: y | W44: =_xlfn.IFS(AND(Q44="y",$D44="Local"), 1, AND(Q44="y",$D44<>"Local"),1.49009696454663%, Q44="","") -> 0.01490096965 | X44: =_xlfn.IFS(AND(R44="y",$D44="Local"), 1, AND(R44="y",$D44<>"Local"),20.7557554582461%, R44="","") -> 0.2075575546 | Y44: =_xlfn.IFS(AND(S44="y",$D44="Local"), 1, AND(S44="y",$D44<>"Local"),30.3499104327336%, S44="","") -> 0.3034991043 | Z44: =_xlfn.IFS(AND(T44="y",$D44="Local"), 1, AND(T44="y",$D44<>"Local"),29.0043833288201%, T44="","") -> 0.2900438333 | AA44: =_xlfn.IFS(AND(U44="y",$D44="Local"), 1, AND(U44="y",$D44<>"Local"),18.3998538156536%, U44="","") -> 0.1839985382 | AB44: 1 | AD44: 7182.237716 | AE44: 100042.3283 | AF44: 146285.9643 | AG44: 139800.5505 | AH44: 88686.92923
B45: 10,RP37442 | D45: District | E45: Urban South | F45: OPENS SPACE LAND-000/1409 ^00901 | I45: 0 | K45: 775.5421465 | L45: 147.9621714 | M45: 114750.9 | N45: 2016 | O45: =IFERROR(('General Input Sheet'!$G$38/(VLOOKUP(N45,'General Input Sheet'!$E$38:$G$44,3,FALSE))),1) -> 1 | P45: 114750.9 | Q45: y | R45: y | S45: y | T45: y | U45: y | W45: =_xlfn.IFS(AND(Q45="y",$D45="Local"), 1, AND(Q45="y",$D45<>"Local"),1.49009696454663%, Q45="","") -> 0.01490096965 | X45: =_xlfn.IFS(AND(R45="y",$D45="Local"), 1, AND(R45="y",$D45<>"Local"),20.7557554582461%, R45="","") -> 0.2075575546 | Y45: =_xlfn.IFS(AND(S45="y",$D45="Local"), 1, AND(S45="y",$D45<>"Local"),30.3499104327336%, S45="","") -> 0.3034991043 | Z45: =_xlfn.IFS(AND(T45="y",$D45="Local"), 1, AND(T45="y",$D45<>"Local"),29.0043833288201%, T45="","") -> 0.2900438333 | AA45: =_xlfn.IFS(AND(U45="y",$D45="Local"), 1, AND(U45="y",$D45<>"Local"),18.3998538156536%, U45="","") -> 0.1839985382 | AB45: 1 | AD45: 1709.899678 | AE45: 23817.41619 | AF45: 34826.79537 | AG45: 33282.79091 | AH45: 21113.99785
B46: 10,SP147134 | D46: District | E46: Urban North | F46: OPENS SPACE LAND-002/0508-4 ^10898 | I46: 0 | K46: 1623.831263 | L46: 3.090277983 | M46: 5018.09 | N46: 2016 | O46: =IFERROR(('General Input Sheet'!$G$38/(VLOOKUP(N46,'General Input Sheet'!$E$38:$G$44,3,FALSE))),1) -> 1 | P46: 5018.09 | Q46: y | R46: y | S46: y | T46: y | U46: y | W46: =_xlfn.IFS(AND(Q46="y",$D46="Local"), 1, AND(Q46="y",$D46<>"Local"),1.49009696454663%, Q46="","") -> 0.01490096965 | X46: =_xlfn.IFS(AND(R46="y",$D46="Local"), 1, AND(R46="y",$D46<>"Local"),20.7557554582461%, R46="","") -> 0.2075575546 | Y46: =_xlfn.IFS(AND(S46="y",$D46="Local"), 1, AND(S46="y",$D46<>"Local"),30.3499104327336%, S46="","") -> 0.3034991043 | Z46: =_xlfn.IFS(AND(T46="y",$D46="Local"), 1, AND(T46="y",$D46<>"Local"),29.0043833288201%, T46="","") -> 0.2900438333 | AA46: =_xlfn.IFS(AND(U46="y",$D46="Local"), 1, AND(U46="y",$D46<>"Local"),18.3998538156536%, U46="","") -> 0.1839985382 | AB46: 1 | AD46: 74.77440677 | AE46: 1041.542489 | AF46: 1522.98582 | AG46: 1455.466059 | AH46: 923.3212243
B47: 100,SP183599 | D47: District | E47: Urban West | F47: COUNCIL LAND BRISB-0006-0065-4 ^09495 | I47: 0 | K47: 6331.759566 | L47: 99.18652208 | M47: 628025.21 | N47: 2016 | O47: =IFERROR(('General Input Sheet'!$G$38/(VLOOKUP(N47,'General Input Sheet'!$E$38:$G$44,3,FALSE))),1) -> 1 | P47: 628025.21 | Q47: y | R47: y | S47: y | T47: y | U47: y | W47: =_xlfn.IFS(AND(Q47="y",$D47="Local"), 1, AND(Q47="y",$D47<>"Local"),1.49009696454663%, Q47="","") -> 0.01490096965 | X47: =_xlfn.IFS(AND(R47="y",$D47="Local"), 1, AND(R47="y",$D47<>"Local"),20.7557554582461%, R47="","") -> 0.2075575546 | Y47: =_xlfn.IFS(AND(S47="y",$D47="Local"), 1, AND(S47="y",$D47<>"Local"),30.3499104327336%, S47="","") -> 0.3034991043 | Z47: =_xlfn.IFS(AND(T47="y",$D47="Local"), 1, AND(T47="y",$D47<>"Local"),29.0043833288201%, T47="","") -> 0.2900438333 | AA47: =_xlfn.IFS(AND(U47="y",$D47="Local"), 1, AND(U47="y",$D47<>"Local"),18.3998538156536%, U47="","") -> 0.1839985382 | AB47: 1 | AD47: 9358.184591 | AE47: 130351.3768 | AF47: 190605.0887 | AG47: 182154.8393 | AH47: 115555.7206
B48: 1000,SL6526 | D48: District | E48: Urban North | F48: COUNCIL LAND BRISB-000/0134 ^06809 COMMUNITY SERVICE/GROUP | G48: 56000 | H48: 2363 | I48: 45 | J48: 162335 | K48: 8934.644043 | L48: 22.65924854 | M48: 202452.32 | N48: 2016 | O48: =IFERROR(('General Input Sheet'!$G$38/(VLOOKUP(N48,'General Input Sheet'!$E$38:$G$44,3,FALSE))),1) -> 1 | P48: 364787.32 | Q48: y | R48: y | S48: y | T48: y | U48: y | W48: =_xlfn.IFS(AND(Q48="y",$D48="Local"), 1, AND(Q48="y",$D48<>"Local"),1.49009696454663%, Q48="","") -> 0.01490096965 | X48: =_xlfn.IFS(AND(R48="y",$D48="Local"), 1, AND(R48="y",$D48<>"Local"),20.7557554582461%, R48="","") -> 0.2075575546 | Y48: =_xlfn.IFS(AND(S48="y",$D48="Local"), 1, AND(S48="y",$D48<>"Local"),30.3499104327336%, S48="","") -> 0.3034991043 | Z48: =_xlfn.IFS(AND(T48="y",$D48="Local"), 1, AND(T48="y",$D48<>"Local"),29.0043833288201%, T48="","") -> 0.2900438333 | AA48: =_xlfn.IFS(AND(U48="y",$D48="Local"), 1, AND(U48="y",$D48<>"Local"),18.3998538156536%, U48="","") -> 0.1839985382 | AB48: 1 | AD48: 5435.684782 | AE48: 75714.36408 | AF48: 110712.6249 | AG48: 105804.3126 | AH48: 67120.33362
B49: 101,SP183597 | D49: Metropolitan | E49: Urban North | F49: 001/0030-4 ^03241.WINDSOR.EDGAR ST.30. | I49: 0 | K49: 4442.97835 | L49: 48.96827822 | M49: 217565 | N49: 2016 | O49: =IFERROR(('General Input Sheet'!$G$38/(VLOOKUP(N49,'General Input Sheet'!$E$38:$G$44,3,FALSE))),1) -> 1 | P49: 217565 | Q49: y | R49: y | S49: y | T49: y | U49: y | W49: =_xlfn.IFS(AND(Q49="y",$D49="Local"), 1, AND(Q49="y",$D49<>"Local"),1.49009696454663%, Q49="","") -> 0.01490096965 | X49: =_xlfn.IFS(AND(R49="y",$D49="Local"), 1, AND(R49="y",$D49<>"Local"),20.7557554582461%, R49="","") -> 0.2075575546 | Y49: =_xlfn.IFS(AND(S49="y",$D49="Local"), 1, AND(S49="y",$D49<>"Local"),30.3499104327336%, S49="","") -> 0.3034991043 | Z49: =_xlfn.IFS(AND(T49="y",$D49="Local"), 1, AND(T49="y",$D49<>"Local"),29.0043833288201%, T49="","") -> 0.2900438333 | AA49: =_xlfn.IFS(AND(U49="y",$D49="Local"), 1, AND(U49="y",$D49<>"Local"),18.3998538156536%, U49="","") -> 0.1839985382 | AB49: 1 | AD49: 3241.929461 | AE49: 45157.25936 | AF49: 66030.78263 | AG49: 63103.38659 | AH49: 40031.64195
B50: 102,SP102967 | D50: District | E50: Urban North | F50: COUNCIL LAND BRISB-002/0137-4 ^09492 LIBRARY | G50: 56000 | H50: 1650 | I50: 45 | J50: 130250 | K50: 2378.663143 | L50: 850.2461165 | M50: 2022449.1 | N50: 2016 | O50: =IFERROR(('General Input Sheet'!$G$38/(VLOOKUP(N50,'General Input Sheet'!$E$38:$G$44,3,FALSE))),1) -> 1 | P50: 2152699.1 | Q50: y | R50: y | S50: y | T50: y | U50: y | W50: =_xlfn.IFS(AND(Q50="y",$D50="Local"), 1, AND(Q50="y",$D50<>"Local"),1.49009696454663%, Q50="","") -> 0.01490096965 | X50: =_xlfn.IFS(AND(R50="y",$D50="Local"), 1, AND(R50="y",$D50<>"Local"),20.7557554582461%, R50="","") -> 0.2075575546 | Y50: =_xlfn.IFS(AND(S50="y",$D50="Local"), 1, AND(S50="y",$D50<>"Local"),30.3499104327336%, S50="","") -> 0.3034991043 | Z50: =_xlfn.IFS(AND(T50="y",$D50="Local"), 1, AND(T50="y",$D50<>"Local"),29.0043833288201%, T50="","") -> 0.2900438333 | AA50: =_xlfn.IFS(AND(U50="y",$D50="Local"), 1, AND(U50="y",$D50<>"Local"),18.3998538156536%, U50="","") -> 0.1839985382 | AB50: 1 | AD50: 32077.30394 | AE50: 446808.9609 | AF50: 653342.2487 | AG50: 624377.0989 | AH50: 396093.4875
B51: 102,SP102967 | D51: District | E51: Urban North | F51: COUNCIL LAND BRISB-002/0137-4 ^09492 COMMUNITY SPACE | G51: 56000 | H51: 200 | I51: 45 | J51: 65000 | L51: 0 | N51: 2016 | O51: =IFERROR(('General Input Sheet'!$G$38/(VLOOKUP(N51,'General Input Sheet'!$E$38:$G$44,3,FALSE))),1) -> 1 | P51: 65000 | Q51: y | R51: y | S51: y | T51: y | U51: y | W51: =_xlfn.IFS(AND(Q51="y",$D51="Local"), 1, AND(Q51="y",$D51<>"Local"),1.49009696454663%, Q51="","") -> 0.01490096965 | X51: =_xlfn.IFS(AND(R51="y",$D51="Local"), 1, AND(R51="y",$D51<>"Local"),20.7557554582461%, R51="","") -> 0.2075575546 | Y51: =_xlfn.IFS(AND(S51="y",$D51="Local"), 1, AND(S51="y",$D51<>"Local"),30.3499104327336%, S51="","") -> 0.3034991043 | Z51: =_xlfn.IFS(AND(T51="y",$D51="Local"), 1, AND(T51="y",$D51<>"Local"),29.0043833288201%, T51="","") -> 0.2900438333 | AA51: =_xlfn.IFS(AND(U51="y",$D51="Local"), 1, AND(U51="y",$D51<>"Local"),18.3998538156536%, U51="","") -> 0.1839985382 | AB51: 1 | AD51: 968.563027 | AE51: 13491.24105 | AF51: 19727.44178 | AG51: 18852.84916 | AH51: 11959.90498
B52: 105,SP165827 | D52: District | E52: Urban West | F52: 006/0020-4 ^11303 FERNY GROVE.TRAMWAY ST.0020 COMMUNITY SERVICE/GROUP | G52: 56000 | H52: 1496 | I52: 45 | J52: 123320 | K52: 22517.46849 | L52: 36.17220206 | M52: 814506.42 | N52: 2016 | O52: =IFERROR(('General Input Sheet'!$G$38/(VLOOKUP(N52,'General Input Sheet'!$E$38:$G$44,3,FALSE))),1) -> 1 | P52: 937826.42 | Q52: y | R52: y | S52: y | T52: y | U52: y | W52: =_xlfn.IFS(AND(Q52="y",$D52="Local"), 1, AND(Q52="y",$D52<>"Local"),1.49009696454663%, Q52="","") -> 0.01490096965 | X52: =_xlfn.IFS(AND(R52="y",$D52="Local"), 1, AND(R52="y",$D52<>"Local"),20.7557554582461%, R52="","") -> 0.2075575546 | Y52: =_xlfn.IFS(AND(S52="y",$D52="Local"), 1, AND(S52="y",$D52<>"Local"),30.3499104327336%, S52="","") -> 0.3034991043 | Z52: =_xlfn.IFS(AND(T52="y",$D52="Local"), 1, AND(T52="y",$D52<>"Local"),29.0043833288201%, T52="","") -> 0.2900438333 | AA52: =_xlfn.IFS(AND(U52="y",$D52="Local"), 1, AND(U52="y",$D52<>"Local"),18.3998538156536%, U52="","") -> 0.1839985382 | AB52: 1 | AD52: 13974.52302 | AE52: 194652.9584 | AF52: 284629.4785 | AG52: 272010.7698 | AH52: 172558.6903
B53: 105,SP165827 | D53: District | E53: Urban West | F53: 006/0020-4 ^11303 FERNY GROVE.TRAMWAY ST.0020 COMMUNITY SERVICE/GROUP | G53: 56000 | H53: 26590 | I53: 45 | J53: 1252550 | L53: 0 | N53: 2016 | O53: =IFERROR(('General Input Sheet'!$G$38/(VLOOKUP(N53,'General Input Sheet'!$E$38:$G$44,3,FALSE))),1) -> 1 | P53: 1252550 | Q53: y | R53: y | S53: y | T53: y | U53: y | W53: =_xlfn.IFS(AND(Q53="y",$D53="Local"), 1, AND(Q53="y",$D53<>"Local"),1.49009696454663%, Q53="","") -> 0.01490096965 | X53: =_xlfn.IFS(AND(R53="y",$D53="Local"), 1, AND(R53="y",$D53<>"Local"),20.7557554582461%, R53="","") -> 0.2075575546 | Y53: =_xlfn.IFS(AND(S53="y",$D53="Local"), 1, AND(S53="y",$D53<>"Local"),30.3499104327336%, S53="","") -> 0.3034991043 | Z53: =_xlfn.IFS(AND(T53="y",$D53="Local"), 1, AND(T53="y",$D53<>"Local"),29.0043833288201%, T53="","") -> 0.2900438333 | AA53: =_xlfn.IFS(AND(U53="y",$D53="Local"), 1, AND(U53="y",$D53<>"Local"),18.3998538156536%, U53="","") -> 0.1839985382 | AB53: 1 | AD53: 18664.20953 | AE53: 259976.215 | AF53: 380147.8031 | AG53: 363294.4034 | AH53: 230467.369
B54: 11,RP37442 | D54: District | E54: Urban South | F54: OPENS SPACE LAND-001/1407-4 ^00901 COMMUNITY SPACE | G54: 56000 | H54: 711 | I54: 45 | J54: 87995 | K54: 690.5875026 | L54: 151.0583374 | M54: 104319 | N54: 2016 | O54: =IFERROR(('General Input Sheet'!$G$38/(VLOOKUP(N54,'General Input Sheet'!$E$38:$G$44,3,FALSE))),1) -> 1 | P54: 192314 | Q54: y | R54: y | S54: y | T54: y | U54: y | W54: =_xlfn.IFS(AND(Q54="y",$D54="Local"), 1, AND(Q54="y",$D54<>"Local"),1.49009696454663%, Q54="","") -> 0.01490096965 | X54: =_xlfn.IFS(AND(R54="y",$D54="Local"), 1, AND(R54="y",$D54<>"Local"),20.7557554582461%, R54="","") -> 0.2075575546 | Y54: =_xlfn.IFS(AND(S54="y",$D54="Local"), 1, AND(S54="y",$D54<>"Local"),30.3499104327336%, S54="","") -> 0.3034991043 | Z54: =_xlfn.IFS(AND(T54="y",$D54="Local"), 1, AND(T54="y",$D54<>"Local"),29.0043833288201%, T54="","") -> 0.2900438333 | AA54: =_xlfn.IFS(AND(U54="y",$D54="Local"), 1, AND(U54="y",$D54<>"Local"),18.3998538156536%, U54="","") -> 0.1839985382 | AB54: 1 | AD54: 2865.665076 | AE54: 39916.22355 | AF54: 58367.12675 | AG54: 55779.48975 | AH54: 35385.49487
B55: 11,RP70585 | D55: Metropolitan | E55: Urban North | F55: COUNCIL LAND BRISB-000/0074 ^04394 | I55: 0 | K55: 51.43513565 | L55: 590.4129466 | M55: 30367.97 | N55: 2016 | O55: =IFERROR(('General Input Sheet'!$G$38/(VLOOKUP(N55,'General Input Sheet'!$E$38:$G$44,3,FALSE))),1) -> 1 | P55: 30367.97 | Q55: y | R55: y | S55: y | T55: y | U55: y | W55: =_xlfn.IFS(AND(Q55="y",$D55="Local"), 1, AND(Q55="y",$D55<>"Local"),1.49009696454663%, Q55="","") -> 0.01490096965 | X55: =_xlfn.IFS(AND(R55="y",$D55="Local"), 1, AND(R55="y",$D55<>"Local"),20.7557554582461%, R55="","") -> 0.2075575546 | Y55: =_xlfn.IFS(AND(S55="y",$D55="Local"), 1, AND(S55="y",$D55<>"Local"),30.3499104327336%, S55="","") -> 0.3034991043 | Z55: =_xlfn.IFS(AND(T55="y",$D55="Local"), 1, AND(T55="y",$D55<>"Local"),29.0043833288201%, T55="","") -> 0.2900438333 | AA55: =_xlfn.IFS(AND(U55="y",$D55="Local"), 1, AND(U55="y",$D55<>"Local"),18.3998538156536%, U55="","") -> 0.1839985382 | AB55: 1 | AD55: 452.5121992 | AE55: 6303.101591 | AF55: 9216.651695 | AG55: 8808.042428 | AH55: 5587.662087
B56: 11,SP237739 | D56: District | E56: Urban East | F56: 001/0142-4 ^01072.MORNINGSIDE.BEVERLEY ST.0142 | I56: 0 | K56: 4111.262036 | L56: 159.2145877 | M56: 654572.89 | N56: 2016 | O56: =IFERROR(('General Input Sheet'!$G$38/(VLOOKUP(N56,'General Input Sheet'!$E$38:$G$44,3,FALSE))),1) -> 1 | P56: 654572.89 | Q56: y | R56: y | S56: y | T56: y | U56: y | W56: =_xlfn.IFS(AND(Q56="y",$D56="Local"), 1, AND(Q56="y",$D56<>"Local"),1.49009696454663%, Q56="","") -> 0.01490096965 | X56: =_xlfn.IFS(AND(R56="y",$D56="Local"), 1, AND(R56="y",$D56<>"Local"),20.7557554582461%, R56="","") -> 0.2075575546 | Y56: =_xlfn.IFS(AND(S56="y",$D56="Local"), 1, AND(S56="y",$D56<>"Local"),30.3499104327336%, S56="","") -> 0.3034991043 | Z56: =_xlfn.IFS(AND(T56="y",$D56="Local"), 1, AND(T56="y",$D56<>"Local"),29.0043833288201%, T56="","") -> 0.2900438333 | AA56: =_xlfn.IFS(AND(U56="y",$D56="Local"), 1, AND(U56="y",$D56<>"Local"),18.3998538156536%, U56="","") -> 0.1839985382 | AB56: 1 | AD56: 9753.770765 | AE56: 135861.5483 | AF56: 198662.2858 | AG56: 189854.8302 | AH56: 120440.4549
B57: 110,RP18739 | D57: District | E57: Urban West | F57: OPENS SPACE LAND-000/0018 ^05340 | I57: 0 | K57: 193.2369205 | L57: 200.9626313 | M57: 38833.4 | N57: 2016 | O57: =IFERROR(('General Input Sheet'!$G$38/(VLOOKUP(N57,'General Input Sheet'!$E$38:$G$44,3,FALSE))),1) -> 1 | P57: 38833.4 | Q57: y | R57: y | S57: y | T57: y | U57: y | W57: =_xlfn.IFS(AND(Q57="y",$D57="Local"), 1, AND(Q57="y",$D57<>"Local"),1.49009696454663%, Q57="","") -> 0.01490096965 | X57: =_xlfn.IFS(AND(R57="y",$D57="Local"), 1, AND(R57="y",$D57<>"Local"),20.7557554582461%, R57="","") -> 0.2075575546 | Y57: =_xlfn.IFS(AND(S57="y",$D57="Local"), 1, AND(S57="y",$D57<>"Local"),30.3499104327336%, S57="","") -> 0.3034991043 | Z57: =_xlfn.IFS(AND(T57="y",$D57="Local"), 1, AND(T57="y",$D57<>"Local"),29.0043833288201%, T57="","") -> 0.2900438333 | AA57: =_xlfn.IFS(AND(U57="y",$D57="Local"), 1, AND(U57="y",$D57<>"Local"),18.3998538156536%, U57="","") -> 0.1839985382 | AB57: 1 | AD57: 578.6553146 | AE57: 8060.16554 | AF57: 11785.90212 | AG57: 11263.3882 | AH57: 7145.288832
B58: 111,RP37442 | D58: District | E58: Urban South | F58: OPENS SPACE LAND-000/0014 ^02268 | I58: 0 | K58: 70.99808015 | L58: 192.3152002 | M58: 13654.01 | N58: 2016 | O58: =IFERROR(('General Input Sheet'!$G$38/(VLOOKUP(N58,'General Input Sheet'!$E$38:$G$44,3,FALSE))),1) -> 1 | P58: 13654.01 | Q58: y | R58: y | S58: y | T58: y | U58: y | W58: =_xlfn.IFS(AND(Q58="y",$D58="Local"), 1, AND(Q58="y",$D58<>"Local"),1.49009696454663%, Q58="","") -> 0.01490096965 | X58: =_xlfn.IFS(AND(R58="y",$D58="Local"), 1, AND(R58="y",$D58<>"Local"),20.7557554582461%, R58="","") -> 0.2075575546 | Y58: =_xlfn.IFS(AND(S58="y",$D58="Local"), 1, AND(S58="y",$D58<>"Local"),30.3499104327336%, S58="","") -> 0.3034991043 | Z58: =_xlfn.IFS(AND(T58="y",$D58="Local"), 1, AND(T58="y",$D58<>"Local"),29.0043833288201%, T58="","") -> 0.2900438333 | AA58: =_xlfn.IFS(AND(U58="y",$D58="Local"), 1, AND(U58="y",$D58<>"Local"),18.3998538156536%, U58="","") -> 0.1839985382 | AB58: 1 | AD58: 203.4579885 | AE58: 2833.992926 | AF58: 4143.979805 | AG58: 3960.2614 | AH58: 2512.31788
B59: 111,RP69740 | D59: District | E59: Urban North | F59: COUNCIL LAND BRISB-001/0175-4 ^03246 | I59: 0 | K59: 16113.53261 | L59: 4.049785456 | M59: 65256.35 | N59: 2016 | O59: =IFERROR(('General Input Sheet'!$G$38/(VLOOKUP(N59,'General Input Sheet'!$E$38:$G$44,3,FALSE))),1) -> 1 | P59: 65256.35 | Q59: y | R59: y | S59: y | T59: y | U59: y | W59: =_xlfn.IFS(AND(Q59="y",$D59="Local"), 1, AND(Q59="y",$D59<>"Local"),1.49009696454663%, Q59="","") -> 0.01490096965 | X59: =_xlfn.IFS(AND(R59="y",$D59="Local"), 1, AND(R59="y",$D59<>"Local"),20.7557554582461%, R59="","") -> 0.2075575546 | Y59: =_xlfn.IFS(AND(S59="y",$D59="Local"), 1, AND(S59="y",$D59<>"Local"),30.3499104327336%, S59="","") -> 0.3034991043 | Z59: =_xlfn.IFS(AND(T59="y",$D59="Local"), 1, AND(T59="y",$D59<>"Local"),29.0043833288201%, T59="","") -> 0.2900438333 | AA59: =_xlfn.IFS(AND(U59="y",$D59="Local"), 1, AND(U59="y",$D59<>"Local"),18.3998538156536%, U59="","") -> 0.1839985382 | AB59: 1 | AD59: 972.3828905 | AE59: 13544.44843 | AF59: 19805.24378 | AG59: 18927.2019 | AH59: 12007.07301
B60: 1110,SL5882 | D60: District | E60: Urban West | F60: OPENS SPACE LAND-000/0041 ^00159 | I60: 0 | K60: 1041.338766 | L60: 372.8313999 | M60: 388243.79 | N60: 2016 | O60: =IFERROR(('General Input Sheet'!$G$38/(VLOOKUP(N60,'General Input Sheet'!$E$38:$G$44,3,FALSE))),1) -> 1 | P60: 388243.79 | Q60: y | R60: y | S60: y | T60: y | U60: y | W60: =_xlfn.IFS(AND(Q60="y",$D60="Local"), 1, AND(Q60="y",$D60<>"Local"),1.49009696454663%, Q60="","") -> 0.01490096965 | X60: =_xlfn.IFS(AND(R60="y",$D60="Local"), 1, AND(R60="y",$D60<>"Local"),20.7557554582461%, R60="","") -> 0.2075575546 | Y60: =_xlfn.IFS(AND(S60="y",$D60="Local"), 1, AND(S60="y",$D60<>"Local"),30.3499104327336%, S60="","") -> 0.3034991043 | Z60: =_xlfn.IFS(AND(T60="y",$D60="Local"), 1, AND(T60="y",$D60<>"Local"),29.0043833288201%, T60="","") -> 0.2900438333 | AA60: =_xlfn.IFS(AND(U60="y",$D60="Local"), 1, AND(U60="y",$D60<>"Local"),18.3998538156536%, U60="","") -> 0.1839985382 | AB60: 1 | AD60: 5785.20893 | AE60: 80582.93163 | AF60: 117831.6425 | AG60: 112607.7171 | AH60: 71436.28981
B61: 112,RP37442 | D61: District | E61: Urban South | F61: OPENS SPACE LAND-000/0016 ^02268 | I61: 0 | K61: 123.4269699 | L61: 198.7026824 | M61: 24525.27 | N61: 2016 | O61: =IFERROR(('General Input Sheet'!$G$38/(VLOOKUP(N61,'General Input Sheet'!$E$38:$G$44,3,FALSE))),1) -> 1 | P61: 24525.27 | Q61: y | R61: y | S61: y | T61: y | U61: y | W61: =_xlfn.IFS(AND(Q61="y",$D61="Local"), 1, AND(Q61="y",$D61<>"Local"),1.49009696454663%, Q61="","") -> 0.01490096965 | X61: =_xlfn.IFS(AND(R61="y",$D61="Local"), 1, AND(R61="y",$D61<>"Local"),20.7557554582461%, R61="","") -> 0.2075575546 | Y61: =_xlfn.IFS(AND(S61="y",$D61="Local"), 1, AND(S61="y",$D61<>"Local"),30.3499104327336%, S61="","") -> 0.3034991043 | Z61: =_xlfn.IFS(AND(T61="y",$D61="Local"), 1, AND(T61="y",$D61<>"Local"),29.0043833288201%, T61="","") -> 0.2900438333 | AA61: =_xlfn.IFS(AND(U61="y",$D61="Local"), 1, AND(U61="y",$D61<>"Local"),18.3998538156536%, U61="","") -> 0.1839985382 | AB61: 1 | AD61: 365.4503038 | AE61: 5090.405067 | AF61: 7443.397478 | AG61: 7113.403323 | AH61: 4512.613828
B62: 119,RP141746 | D62: District | E62: Urban West | F62: COUNCIL LAND BRISB-003/0047-4 ^01136 AQUATIC FACILITIES | G62: 56000 | H62: 14160 | I62: 45 | J62: 693200 | K62: 28163.24126 | L62: 36.67042761 | M62: 1032758.1 | N62: 2016 | O62: =IFERROR(('General Input Sheet'!$G$38/(VLOOKUP(N62,'General Input Sheet'!$E$38:$G$44,3,FALSE))),1) -> 1 | P62: 1725958.1 | Q62: y | R62: y | S62: y | T62: y | U62: y | W62: =_xlfn.IFS(AND(Q62="y",$D62="Local"), 1, AND(Q62="y",$D62<>"Local"),1.49009696454663%, Q62="","") -> 0.01490096965 | X62: =_xlfn.IFS(AND(R62="y",$D62="Local"), 1, AND(R62="y",$D62<>"Local"),20.7557554582461%, R62="","") -> 0.2075575546 | Y62: =_xlfn.IFS(AND(S62="y",$D62="Local"), 1, AND(S62="y",$D62<>"Local"),30.3499104327336%, S62="","") -> 0.3034991043 | Z62: =_xlfn.IFS(AND(T62="y",$D62="Local"), 1, AND(T62="y",$D62<>"Local"),29.0043833288201%, T62="","") -> 0.2900438333 | AA62: =_xlfn.IFS(AND(U62="y",$D62="Local"), 1, AND(U62="y",$D62<>"Local"),18.3998538156536%, U62="","") -> 0.1839985382 | AB62: 1 | AD62: 25718.44926 | AE62: 358235.6425 | AF62: 523826.7375 | AG62: 500603.5034 | AH62: 317573.7673
B63: 1196,SL8483 | D63: Local | E63: Urban West | F63: OPENS SPACE LAND-001/0046-4 ^03671 COMMUNITY SERVICE/GROUP | G63: 56000 | H63: 495 | I63: 45 | J63: 78275 | K63: 486.6751237 | L63: 99.20422814 | M63: 48280.23 | N63: 2016 | O63: =IFERROR(('General Input Sheet'!$G$38/(VLOOKUP(N63,'General Input Sheet'!$E$38:$G$44,3,FALSE))),1) -> 1 | P63: 126555.23 | U63: y | W63: =_xlfn.IFS(AND(Q63="y",$D63="Local"), 1, AND(Q63="y",$D63<>"Local"),1.49009696454663%, Q63="","") ->  | X63: =_xlfn.IFS(AND(R63="y",$D63="Local"), 1, AND(R63="y",$D63<>"Local"),20.7557554582461%, R63="","") ->  | Y63: =_xlfn.IFS(AND(S63="y",$D63="Local"), 1, AND(S63="y",$D63<>"Local"),30.3499104327336%, S63="","") ->  | Z63: =_xlfn.IFS(AND(T63="y",$D63="Local"), 1, AND(T63="y",$D63<>"Local"),29.0043833288201%, T63="","") ->  | AA63: =_xlfn.IFS(AND(U63="y",$D63="Local"), 1, AND(U63="y",$D63<>"Local"),18.3998538156536%, U63="","") -> 1 | AB63: 1 | AH63: 126555.23
B64: 12,RP116026 | D64: District | E64: Urban North | F64: OPENS SPACE LAND-000/0017-A ^03127 | I64: 0 | K64: 3.697335547 | L64: 111.2936586 | M64: 411.49 | N64: 2016 | O64: =IFERROR(('General Input Sheet'!$G$38/(VLOOKUP(N64,'General Input Sheet'!$E$38:$G$44,3,FALSE))),1) -> 1 | P64: 411.49 | Q64: y | R64: y | S64: y | T64: y | U64: y | W64: =_xlfn.IFS(AND(Q64="y",$D64="Local"), 1, AND(Q64="y",$D64<>"Local"),1.49009696454663%, Q64="","") -> 0.01490096965 | X64: =_xlfn.IFS(AND(R64="y",$D64="Local"), 1, AND(R64="y",$D64<>"Local"),20.7557554582461%, R64="","") -> 0.2075575546 | Y64: =_xlfn.IFS(AND(S64="y",$D64="Local"), 1, AND(S64="y",$D64<>"Local"),30.3499104327336%, S64="","") -> 0.3034991043 | Z64: =_xlfn.IFS(AND(T64="y",$D64="Local"), 1, AND(T64="y",$D64<>"Local"),29.0043833288201%, T64="","") -> 0.2900438333 | AA64: =_xlfn.IFS(AND(U64="y",$D64="Local"), 1, AND(U64="y",$D64<>"Local"),18.3998538156536%, U64="","") -> 0.1839985382 | AB64: 1 | AD64: 6.131599999 | AE64: 85.40785814 | AF64: 124.8868464 | AG64: 119.350137 | AH64: 75.71355847
B65: 12,RP37442 | D65: District | E65: Urban South | F65: OPENS SPACE LAND-000/1405 ^00901 | I65: 0 | K65: 605.7204965 | L65: 189.4452981 | M65: 114750.9 | N65: 2016 | O65: =IFERROR(('General Input Sheet'!$G$38/(VLOOKUP(N65,'General Input Sheet'!$E$38:$G$44,3,FALSE))),1) -> 1 | P65: 114750.9 | Q65: y | R65: y | S65: y | T65: y | U65: y | W65: =_xlfn.IFS(AND(Q65="y",$D65="Local"), 1, AND(Q65="y",$D65<>"Local"),1.49009696454663%, Q65="","") -> 0.01490096965 | X65: =_xlfn.IFS(AND(R65="y",$D65="Local"), 1, AND(R65="y",$D65<>"Local"),20.7557554582461%, R65="","") -> 0.2075575546 | Y65: =_xlfn.IFS(AND(S65="y",$D65="Local"), 1, AND(S65="y",$D65<>"Local"),30.3499104327336%, S65="","") -> 0.3034991043 | Z65: =_xlfn.IFS(AND(T65="y",$D65="Local"), 1, AND(T65="y",$D65<>"Local"),29.0043833288201%, T65="","") -> 0.2900438333 | AA65: =_xlfn.IFS(AND(U65="y",$D65="Local"), 1, AND(U65="y",$D65<>"Local"),18.3998538156536%, U65="","") -> 0.1839985382 | AB65: 1 | AD65: 1709.899678 | AE65: 23817.41619 | AF65: 34826.79537 | AG65: 33282.79091 | AH65: 21113.99785
B66: 12,RP70585 | D66: Metropolitan | E66: Urban North | F66: COUNCIL LAND BRISB-000/0078 ^04394 | I66: 0 | K66: 677.6838842 | L66: 594.9885476 | M66: 403214.15 | N66: 2016 | O66: =IFERROR(('General Input Sheet'!$G$38/(VLOOKUP(N66,'General Input Sheet'!$E$38:$G$44,3,FALSE))),1) -> 1 | P66: 403214.15 | Q66: y | R66: y | S66: y | T66: y | U66: y | W66: =_xlfn.IFS(AND(Q66="y",$D66="Local"), 1, AND(Q66="y",$D66<>"Local"),1.49009696454663%, Q66="","") -> 0.01490096965 | X66: =_xlfn.IFS(AND(R66="y",$D66="Local"), 1, AND(R66="y",$D66<>"Local"),20.7557554582461%, R66="","") -> 0.2075575546 | Y66: =_xlfn.IFS(AND(S66="y",$D66="Local"), 1, AND(S66="y",$D66<>"Local"),30.3499104327336%, S66="","") -> 0.3034991043 | Z66: =_xlfn.IFS(AND(T66="y",$D66="Local"), 1, AND(T66="y",$D66<>"Local"),29.0043833288201%, T66="","") -> 0.2900438333 | AA66: =_xlfn.IFS(AND(U66="y",$D66="Local"), 1, AND(U66="y",$D66<>"Local"),18.3998538156536%, U66="","") -> 0.1839985382 | AB66: 1 | AD66: 6008.28181 | AE66: 83690.14295 | AF66: 122375.1334 | AG66: 116949.7777 | AH66: 74190.81416
B67: 123,RP23343 | D67: Local | E67: Urban West | F67: OPENS SPACE LAND-000/0017 ^04491 | I67: 0 | K67: 124.1005652 | L67: 718.3353265 | M67: 89145.82 | N67: 2016 | O67: =IFERROR(('General Input Sheet'!$G$38/(VLOOKUP(N67,'General Input Sheet'!$E$38:$G$44,3,FALSE))),1) -> 1 | P67: 89145.82 | U67: y | W67: =_xlfn.IFS(AND(Q67="y",$D67="Local"), 1, AND(Q67="y",$D67<>"Local"),1.49009696454663%, Q67="","") ->  | X67: =_xlfn.IFS(AND(R67="y",$D67="Local"), 1, AND(R67="y",$D67<>"Local"),20.7557554582461%, R67="","") ->  | Y67: =_xlfn.IFS(AND(S67="y",$D67="Local"), 1, AND(S67="y",$D67<>"Local"),30.3499104327336%, S67="","") ->  | Z67: =_xlfn.IFS(AND(T67="y",$D67="Local"), 1, AND(T67="y",$D67<>"Local"),29.0043833288201%, T67="","") ->  | AA67: =_xlfn.IFS(AND(U67="y",$D67="Local"), 1, AND(U67="y",$D67<>"Local"),18.3998538156536%, U67="","") -> 1 | AB67: 1 | AH67: 89145.82
B68: 123,RP90391 | D68: Local | E68: Urban North | F68: COUNCIL LAND BRISB-000/0013 ^09305 | I68: 0 | K68: 623.1492369 | L68: 152.2507521 | M68: 94874.94 | N68: 2016 | O68: =IFERROR(('General Input Sheet'!$G$38/(VLOOKUP(N68,'General Input Sheet'!$E$38:$G$44,3,FALSE))),1) -> 1 | P68: 94874.94 | S68: y | W68: =_xlfn.IFS(AND(Q68="y",$D68="Local"), 1, AND(Q68="y",$D68<>"Local"),1.49009696454663%, Q68="","") ->  | X68: =_xlfn.IFS(AND(R68="y",$D68="Local"), 1, AND(R68="y",$D68<>"Local"),20.7557554582461%, R68="","") ->  | Y68: =_xlfn.IFS(AND(S68="y",$D68="Local"), 1, AND(S68="y",$D68<>"Local"),30.3499104327336%, S68="","") -> 1 | Z68: =_xlfn.IFS(AND(T68="y",$D68="Local"), 1, AND(T68="y",$D68<>"Local"),29.0043833288201%, T68="","") ->  | AA68: =_xlfn.IFS(AND(U68="y",$D68="Local"), 1, AND(U68="y",$D68<>"Local"),18.3998538156536%, U68="","") ->  | AB68: 1 | AF68: 94874.94
B69: 1234,S151850 | D69: District | E69: Urban West | F69: COUNCIL LAND BRISB-000/0039 ^00159 | I69: 0 | K69: 184.7658389 | L69: 317.3557425 | M69: 58636.5 | N69: 2016 | O69: =IFERROR(('General Input Sheet'!$G$38/(VLOOKUP(N69,'General Input Sheet'!$E$38:$G$44,3,FALSE))),1) -> 1 | P69: 58636.5 | Q69: y | R69: y | S69: y | T69: y | U69: y | W69: =_xlfn.IFS(AND(Q69="y",$D69="Local"), 1, AND(Q69="y",$D69<>"Local"),1.49009696454663%, Q69="","") -> 0.01490096965 | X69: =_xlfn.IFS(AND(R69="y",$D69="Local"), 1, AND(R69="y",$D69<>"Local"),20.7557554582461%, R69="","") -> 0.2075575546 | Y69: =_xlfn.IFS(AND(S69="y",$D69="Local"), 1, AND(S69="y",$D69<>"Local"),30.3499104327336%, S69="","") -> 0.3034991043 | Z69: =_xlfn.IFS(AND(T69="y",$D69="Local"), 1, AND(T69="y",$D69<>"Local"),29.0043833288201%, T69="","") -> 0.2900438333 | AA69: =_xlfn.IFS(AND(U69="y",$D69="Local"), 1, AND(U69="y",$D69<>"Local"),18.3998538156536%, U69="","") -> 0.1839985382 | AB69: 1 | AD69: 873.7407066 | AE69: 12170.44855 | AF69: 17796.12523 | AG69: 17007.15523 | AH69: 10789.03028
B70: 124,RP12722 | D70: Local | E70: Urban South | F70: COUNCIL LAND BRISB-000/0042 ^05256 | I70: 0 | K70: 404.6713757 | L70: 496.699327 | M70: 201000 | N70: 2016 | O70: =IFERROR(('General Input Sheet'!$G$38/(VLOOKUP(N70,'General Input Sheet'!$E$38:$G$44,3,FALSE))),1) -> 1 | P70: 201000 | T70: y | W70: =_xlfn.IFS(AND(Q70="y",$D70="Local"), 1, AND(Q70="y",$D70<>"Local"),1.49009696454663%, Q70="","") ->  | X70: =_xlfn.IFS(AND(R70="y",$D70="Local"), 1, AND(R70="y",$D70<>"Local"),20.7557554582461%, R70="","") ->  | Y70: =_xlfn.IFS(AND(S70="y",$D70="Local"), 1, AND(S70="y",$D70<>"Local"),30.3499104327336%, S70="","") ->  | Z70: =_xlfn.IFS(AND(T70="y",$D70="Local"), 1, AND(T70="y",$D70<>"Local"),29.0043833288201%, T70="","") -> 1 | AA70: =_xlfn.IFS(AND(U70="y",$D70="Local"), 1, AND(U70="y",$D70<>"Local"),18.3998538156536%, U70="","") ->  | AB70: 1 | AG70: 201000
B71: 124,RP23343 | D71: Local | E71: Urban West | F71: OPENS SPACE LAND-001/0019-4 ^04491 | I71: 0 | K71: 374.9818514 | L71: 744.2344448 | M71: 279074.41 | N71: 2016 | O71: =IFERROR(('General Input Sheet'!$G$38/(VLOOKUP(N71,'General Input Sheet'!$E$38:$G$44,3,FALSE))),1) -> 1 | P71: 279074.41 | U71: y | W71: =_xlfn.IFS(AND(Q71="y",$D71="Local"), 1, AND(Q71="y",$D71<>"Local"),1.49009696454663%, Q71="","") ->  | X71: =_xlfn.IFS(AND(R71="y",$D71="Local"), 1, AND(R71="y",$D71<>"Local"),20.7557554582461%, R71="","") ->  | Y71: =_xlfn.IFS(AND(S71="y",$D71="Local"), 1, AND(S71="y",$D71<>"Local"),30.3499104327336%, S71="","") ->  | Z71: =_xlfn.IFS(AND(T71="y",$D71="Local"), 1, AND(T71="y",$D71<>"Local"),29.0043833288201%, T71="","") ->  | AA71: =_xlfn.IFS(AND(U71="y",$D71="Local"), 1, AND(U71="y",$D71<>"Local"),18.3998538156536%, U71="","") -> 1 | AB71: 1 | AH71: 279074.41
B72: 125,RP12722 | D72: Local | E72: Urban South | F72: COUNCIL LAND BRISB-002/0044-4 ^05256 | I72: 0 | K72: 404.6966442 | L72: 496.6683141 | M72: 201000 | N72: 2016 | O72: =IFERROR(('General Input Sheet'!$G$38/(VLOOKUP(N72,'General Input Sheet'!$E$38:$G$44,3,FALSE))),1) -> 1 | P72: 201000 | T72: y | W72: =_xlfn.IFS(AND(Q72="y",$D72="Local"), 1, AND(Q72="y",$D72<>"Local"),1.49009696454663%, Q72="","") ->  | X72: =_xlfn.IFS(AND(R72="y",$D72="Local"), 1, AND(R72="y",$D72<>"Local"),20.7557554582461%, R72="","") ->  | Y72: =_xlfn.IFS(AND(S72="y",$D72="Local"), 1, AND(S72="y",$D72<>"Local"),30.3499104327336%, S72="","") ->  | Z72: =_xlfn.IFS(AND(T72="y",$D72="Local"), 1, AND(T72="y",$D72<>"Local"),29.0043833288201%, T72="","") -> 1 | AA72: =_xlfn.IFS(AND(U72="y",$D72="Local"), 1, AND(U72="y",$D72<>"Local"),18.3998538156536%, U72="","") ->  | AB72: 1 | AG72: 201000
B73: 125,RP23343 | D73: Local | E73: Urban West | F73: OPENS SPACE LAND-000/0023 ^04491 | I73: 0 | K73: 894.0667177 | L73: 719.8839497 | M73: 643624.28 | N73: 2016 | O73: =IFERROR(('General Input Sheet'!$G$38/(VLOOKUP(N73,'General Input Sheet'!$E$38:$G$44,3,FALSE))),1) -> 1 | P73: 643624.28 | U73: y | W73: =_xlfn.IFS(AND(Q73="y",$D73="Local"), 1, AND(Q73="y",$D73<>"Local"),1.49009696454663%, Q73="","") ->  | X73: =_xlfn.IFS(AND(R73="y",$D73="Local"), 1, AND(R73="y",$D73<>"Local"),20.7557554582461%, R73="","") ->  | Y73: =_xlfn.IFS(AND(S73="y",$D73="Local"), 1, AND(S73="y",$D73<>"Local"),30.3499104327336%, S73="","") ->  | Z73: =_xlfn.IFS(AND(T73="y",$D73="Local"), 1, AND(T73="y",$D73<>"Local"),29.0043833288201%, T73="","") ->  | AA73: =_xlfn.IFS(AND(U73="y",$D73="Local"), 1, AND(U73="y",$D73<>"Local"),18.3998538156536%, U73="","") -> 1 | AB73: 1 | AH73: 643624.28
B74: 126,RP23343 | D74: Local | E74: Urban West | F74: OPENS SPACE LAND-000/0027 ^04491 | I74: 0 | K74: 630.7393478 | L74: 732.816181 | M74: 462216 | N74: 2016 | O74: =IFERROR(('General Input Sheet'!$G$38/(VLOOKUP(N74,'General Input Sheet'!$E$38:$G$44,3,FALSE))),1) -> 1 | P74: 462216 | U74: y | W74: =_xlfn.IFS(AND(Q74="y",$D74="Local"), 1, AND(Q74="y",$D74<>"Local"),1.49009696454663%, Q74="","") ->  | X74: =_xlfn.IFS(AND(R74="y",$D74="Local"), 1, AND(R74="y",$D74<>"Local"),20.7557554582461%, R74="","") ->  | Y74: =_xlfn.IFS(AND(S74="y",$D74="Local"), 1, AND(S74="y",$D74<>"Local"),30.3499104327336%, S74="","") ->  | Z74: =_xlfn.IFS(AND(T74="y",$D74="Local"), 1, AND(T74="y",$D74<>"Local"),29.0043833288201%, T74="","") ->  | AA74: =_xlfn.IFS(AND(U74="y",$D74="Local"), 1, AND(U74="y",$D74<>"Local"),18.3998538156536%, U74="","") -> 1 | AB74: 1 | AH74: 462216
B75: 127,RP23343 | D75: Local | E75: Urban West | F75: OPENS SPACE LAND-000/0029 ^04491 | I75: 0 | K75: 401.0639536 | L75: 780.484003 | M75: 313024 | N75: 2016 | O75: =IFERROR(('General Input Sheet'!$G$38/(VLOOKUP(N75,'General Input Sheet'!$E$38:$G$44,3,FALSE))),1) -> 1 | P75: 313024 | U75: y | W75: =_xlfn.IFS(AND(Q75="y",$D75="Local"), 1, AND(Q75="y",$D75<>"Local"),1.49009696454663%, Q75="","") ->  | X75: =_xlfn.IFS(AND(R75="y",$D75="Local"), 1, AND(R75="y",$D75<>"Local"),20.7557554582461%, R75="","") ->  | Y75: =_xlfn.IFS(AND(S75="y",$D75="Local"), 1, AND(S75="y",$D75<>"Local"),30.3499104327336%, S75="","") ->  | Z75: =_xlfn.IFS(AND(T75="y",$D75="Local"), 1, AND(T75="y",$D75<>"Local"),29.0043833288201%, T75="","") ->  | AA75: =_xlfn.IFS(AND(U75="y",$D75="Local"), 1, AND(U75="y",$D75<>"Local"),18.3998538156536%, U75="","") -> 1 | AB75: 1 | AH75: 313024
B76: 127,RP43084 | D76: District | E76: Urban South | F76: OPENS SPACE LAND-000/0021 ^02216 COMMUNITY SERVICE/GROUP | G76: 56000 | H76: 2236 | I76: 45 | J76: 156620 | K76: 2233.337029 | L76: 107.6281801 | M76: 240370 | N76: 2016 | O76: =IFERROR(('General Input Sheet'!$G$38/(VLOOKUP(N76,'General Input Sheet'!$E$38:$G$44,3,FALSE))),1) -> 1 | P76: 396990 | Q76: y | R76: y | S76: y | T76: y | U76: y | W76: =_xlfn.IFS(AND(Q76="y",$D76="Local"), 1, AND(Q76="y",$D76<>"Local"),1.49009696454663%, Q76="","") -> 0.01490096965 | X76: =_xlfn.IFS(AND(R76="y",$D76="Local"), 1, AND(R76="y",$D76<>"Local"),20.7557554582461%, R76="","") -> 0.2075575546 | Y76: =_xlfn.IFS(AND(S76="y",$D76="Local"), 1, AND(S76="y",$D76<>"Local"),30.3499104327336%, S76="","") -> 0.3034991043 | Z76: =_xlfn.IFS(AND(T76="y",$D76="Local"), 1, AND(T76="y",$D76<>"Local"),29.0043833288201%, T76="","") -> 0.2900438333 | AA76: =_xlfn.IFS(AND(U76="y",$D76="Local"), 1, AND(U76="y",$D76<>"Local"),18.3998538156536%, U76="","") -> 0.1839985382 | AB76: 1 | AD76: 5915.53594 | AE76: 82398.27359 | AF76: 120486.1094 | AG76: 115144.5014 | AH76: 73045.57966
B77: 127,RP89018 | D77: District | E77: Urban West | F77: OPENS SPACE LAND-000/0076 ^08498 | I77: 0 | K77: 1406.538051 | L77: 19.1953641 | M77: 26999.01 | N77: 2016 | O77: =IFERROR(('General Input Sheet'!$G$38/(VLOOKUP(N77,'General Input Sheet'!$E$38:$G$44,3,FALSE))),1) -> 1 | P77: =J77+M77 -> 26999.01 | Q77: y | R77: y | S77: y | T77: y | U77: y | W77: =_xlfn.IFS(AND(Q77="y",$D77="Local"), 1, AND(Q77="y",$D77<>"Local"),1.49009696454663%, Q77="","") -> 0.01490096965 | X77: =_xlfn.IFS(AND(R77="y",$D77="Local"), 1, AND(R77="y",$D77<>"Local"),20.7557554582461%, R77="","") -> 0.2075575546 | Y77: =_xlfn.IFS(AND(S77="y",$D77="Local"), 1, AND(S77="y",$D77<>"Local"),30.3499104327336%, S77="","") -> 0.3034991043 | Z77: =_xlfn.IFS(AND(T77="y",$D77="Local"), 1, AND(T77="y",$D77<>"Local"),29.0043833288201%, T77="","") -> 0.2900438333 | AA77: =_xlfn.IFS(AND(U77="y",$D77="Local"), 1, AND(U77="y",$D77<>"Local"),18.3998538156536%, U77="","") -> 0.1839985382 | AB77: =SUM(W77:AA77) -> 1 | AD77: =IF(W77="","",(W77/$AB77)*$P77) -> 402.3114285 | AE77: =IF(X77="","",(X77/$AB77)*$P77) -> 5603.848492 | AF77: =IF(Y77="","",(Y77/$AB77)*$P77) -> 8194.175353 | AG77: =IF(Z77="","",(Z77/$AB77)*$P77) -> 7830.896355 | AH77: =IF(AA77="","",(AA77/$AB77)*$P77) -> 4967.778372
B78: 128,RP23343 | D78: Local | E78: Urban West | F78: OPENS SPACE LAND-001/0031-4 ^04491 | I78: =IFERROR((J78-G78)/H78,0) -> 0 | K78: 401.5516938 | L78: 779.5359971 | M78: 313024 | N78: 2016 | O78: =IFERROR(('General Input Sheet'!$G$38/(VLOOKUP(N78,'General Input Sheet'!$E$38:$G$44,3,FALSE))),1) -> 1 | P78: 313024 | U78: y | W78: =_xlfn.IFS(AND(Q78="y",$D78="Local"), 1, AND(Q78="y",$D78<>"Local"),1.49009696454663%, Q78="","") ->  | X78: =_xlfn.IFS(AND(R78="y",$D78="Local"), 1, AND(R78="y",$D78<>"Local"),20.7557554582461%, R78="","") ->  | Y78: =_xlfn.IFS(AND(S78="y",$D78="Local"), 1, AND(S78="y",$D78<>"Local"),30.3499104327336%, S78="","") ->  | Z78: =_xlfn.IFS(AND(T78="y",$D78="Local"), 1, AND(T78="y",$D78<>"Local"),29.0043833288201%, T78="","") ->  | AA78: =_xlfn.IFS(AND(U78="y",$D78="Local"), 1, AND(U78="y",$D78<>"Local"),18.3998538156536%, U78="","") -> 1 | AB78: 1 | AH78: 313024
B79: 129,RP23343 | D79: Local | E79: Urban West | F79: OPENS SPACE LAND-000/0033 ^04491 | I79: 0 | K79: 401.5545536 | L79: =IFERROR(M79/K79,0) -> 779.5304454 | M79: 313024 | N79: 2016 | O79: =IFERROR(('General Input Sheet'!$G$38/(VLOOKUP(N79,'General Input Sheet'!$E$38:$G$44,3,FALSE))),1) -> 1 | P79: 313024 | U79: y | W79: =_xlfn.IFS(AND(Q79="y",$D79="Local"), 1, AND(Q79="y",$D79<>"Local"),1.49009696454663%, Q79="","") ->  | X79: =_xlfn.IFS(AND(R79="y",$D79="Local"), 1, AND(R79="y",$D79<>"Local"),20.7557554582461%, R79="","") ->  | Y79: =_xlfn.IFS(AND(S79="y",$D79="Local"), 1, AND(S79="y",$D79<>"Local"),30.3499104327336%, S79="","") ->  | Z79: =_xlfn.IFS(AND(T79="y",$D79="Local"), 1, AND(T79="y",$D79<>"Local"),29.0043833288201%, T79="","") ->  | AA79: =_xlfn.IFS(AND(U79="y",$D79="Local"), 1, AND(U79="y",$D79<>"Local"),18.3998538156536%, U79="","") -> 1 | AB79: 1 | AH79: 313024
B80: 13,RP116026 | D80: District | E80: Urban North | F80: OPENS SPACE LAND-000/0071 ^08419 | I80: 0 | K80: 2055.823273 | L80: 30.02327137 | M80: 61722.54 | N80: 2016 | O80: =IFERROR(('General Input Sheet'!$G$38/(VLOOKUP(N80,'General Input Sheet'!$E$38:$G$44,3,FALSE))),1) -> 1 | P80: 61722.54 | Q80: y | R80: y | S80: y | T80: y | U80: y | W80: =_xlfn.IFS(AND(Q80="y",$D80="Local"), 1, AND(Q80="y",$D80<>"Local"),1.49009696454663%, Q80="","") -> 0.01490096965 | X80: =_xlfn.IFS(AND(R80="y",$D80="Local"), 1, AND(R80="y",$D80<>"Local"),20.7557554582461%, R80="","") -> 0.2075575546 | Y80: =_xlfn.IFS(AND(S80="y",$D80="Local"), 1, AND(S80="y",$D80<>"Local"),30.3499104327336%, S80="","") -> 0.3034991043 | Z80: =_xlfn.IFS(AND(T80="y",$D80="Local"), 1, AND(T80="y",$D80<>"Local"),29.0043833288201%, T80="","") -> 0.2900438333 | AA80: =_xlfn.IFS(AND(U80="y",$D80="Local"), 1, AND(U80="y",$D80<>"Local"),18.3998538156536%, U80="","") -> 0.1839985382 | AB80: 1 | AD80: 919.725695 | AE80: 12810.97947 | AF80: 18732.73561 | AG80: 17902.2421 | AH80: 11356.85713
B81: 13,RP34523 | D81: Local | E81: Urban North | F81: COUNCIL LAND BRISB-000/0063-A ^02359 | I81: 0 | K81: 152.4151081 | L81: 250.0087456 | M81: 38105.11 | N81: 2016 | O81: =IFERROR(('General Input Sheet'!$G$38/(VLOOKUP(N81,'General Input Sheet'!$E$38:$G$44,3,FALSE))),1) -> 1 | P81: 38105.11 | Q81: =IF(OR(Q$9=$E81,$D81="Metropolitan",$D81="District"),"y","") ->  | S81: y | W81: =_xlfn.IFS(AND(Q81="y",$D81="Local"), 1, AND(Q81="y",$D81<>"Local"),1.49009696454663%, Q81="","") ->  | X81: =_xlfn.IFS(AND(R81="y",$D81="Local"), 1, AND(R81="y",$D81<>"Local"),20.7557554582461%, R81="","") ->  | Y81: =_xlfn.IFS(AND(S81="y",$D81="Local"), 1, AND(S81="y",$D81<>"Local"),30.3499104327336%, S81="","") -> 1 | Z81: =_xlfn.IFS(AND(T81="y",$D81="Local"), 1, AND(T81="y",$D81<>"Local"),29.0043833288201%, T81="","") ->  | AA81: =_xlfn.IFS(AND(U81="y",$D81="Local"), 1, AND(U81="y",$D81<>"Local"),18.3998538156536%, U81="","") ->  | AB81: 1 | AF81: 38105.11
B82: 13,RP70585 | D82: Metropolitan | E82: Urban North | F82: COUNCIL LAND BRISB-000/0082 ^04394 | I82: 0 | K82: 688.070185 | L82: 586.0115273 | M82: 403217.06 | N82: 2016 | O82: =IFERROR(('General Input Sheet'!$G$38/(VLOOKUP(N82,'General Input Sheet'!$E$38:$G$44,3,FALSE))),1) -> 1 | P82: 403217.06 | Q82: y | R82: y | S82: y | T82: y | U82: y | W82: =_xlfn.IFS(AND(Q82="y",$D82="Local"), 1, AND(Q82="y",$D82<>"Local"),1.49009696454663%, Q82="","") -> 0.01490096965 | X82: =_xlfn.IFS(AND(R82="y",$D82="Local"), 1, AND(R82="y",$D82<>"Local"),20.7557554582461%, R82="","") -> 0.2075575546 | Y82: =_xlfn.IFS(AND(S82="y",$D82="Local"), 1, AND(S82="y",$D82<>"Local"),30.3499104327336%, S82="","") -> 0.3034991043 | Z82: =_xlfn.IFS(AND(T82="y",$D82="Local"), 1, AND(T82="y",$D82<>"Local"),29.0043833288201%, T82="","") -> 0.2900438333 | AA82: =_xlfn.IFS(AND(U82="y",$D82="Local"), 1, AND(U82="y",$D82<>"Local"),18.3998538156536%, U82="","") -> 0.1839985382 | AB82: 1 | AD82: 6008.325172 | AE82: 83690.74694 | AF82: 122376.0166 | AG82: 116950.6217 | AH82: 74191.3496
B83: 130,RP23343 | D83: Local | E83: Urban West | F83: OPENS SPACE LAND-000/0035 ^04491 | I83: 0 | K83: 401.5362092 | L83: 779.5660586 | M83: 313024 | N83: 2016 | O83: =IFERROR(('General Input Sheet'!$G$38/(VLOOKUP(N83,'General Input Sheet'!$E$38:$G$44,3,FALSE))),1) -> 1 | P83: 313024 | U83: y | W83: =_xlfn.IFS(AND(Q83="y",$D83="Local"), 1, AND(Q83="y",$D83<>"Local"),1.49009696454663%, Q83="","") ->  | X83: =_xlfn.IFS(AND(R83="y",$D83="Local"), 1, AND(R83="y",$D83<>"Local"),20.7557554582461%, R83="","") ->  | Y83: =_xlfn.IFS(AND(S83="y",$D83="Local"), 1, AND(S83="y",$D83<>"Local"),30.3499104327336%, S83="","") ->  | Z83: =_xlfn.IFS(AND(T83="y",$D83="Local"), 1, AND(T83="y",$D83<>"Local"),29.0043833288201%, T83="","") ->  | AA83: =_xlfn.IFS(AND(U83="y",$D83="Local"), 1, AND(U83="y",$D83<>"Local"),18.3998538156536%, U83="","") -> 1 | AB83: 1 | AH83: 313024
B84: 131,RP23343 | D84: Local | E84: Urban West | F84: OPENS SPACE LAND-000/0037 ^04491 | I84: 0 | K84: 401.571098 | L84: 779.4983293 | M84: 313024 | N84: 2016 | O84: =IFERROR(('General Input Sheet'!$G$38/(VLOOKUP(N84,'General Input Sheet'!$E$38:$G$44,3,FALSE))),1) -> 1 | P84: 313024 | U84: y | W84: =_xlfn.IFS(AND(Q84="y",$D84="Local"), 1, AND(Q84="y",$D84<>"Local"),1.49009696454663%, Q84="","") ->  | X84: =_xlfn.IFS(AND(R84="y",$D84="Local"), 1, AND(R84="y",$D84<>"Local"),20.7557554582461%, R84="","") ->  | Y84: =_xlfn.IFS(AND(S84="y",$D84="Local"), 1, AND(S84="y",$D84<>"Local"),30.3499104327336%, S84="","") ->  | Z84: =_xlfn.IFS(AND(T84="y",$D84="Local"), 1, AND(T84="y",$D84<>"Local"),29.0043833288201%, T84="","") ->  | AA84: =_xlfn.IFS(AND(U84="y",$D84="Local"), 1, AND(U84="y",$D84<>"Local"),18.3998538156536%, U84="","") -> 1 | AB84: 1 | AH84: 313024
B85: 134,RP42975 | D85: Local | E85: Urban South | F85: OPENS SPACE LAND-000/0075 ^10282 | I85: 0 | K85: 360.4216033 | L85: 286.3025386 | M85: 103189.62 | N85: 2016 | O85: =IFERROR(('General Input Sheet'!$G$38/(VLOOKUP(N85,'General Input Sheet'!$E$38:$G$44,3,FALSE))),1) -> 1 | P85: 103189.62 | T85: y | W85: =_xlfn.IFS(AND(Q85="y",$D85="Local"), 1, AND(Q85="y",$D85<>"Local"),1.49009696454663%, Q85="","") ->  | X85: =_xlfn.IFS(AND(R85="y",$D85="Local"), 1, AND(R85="y",$D85<>"Local"),20.7557554582461%, R85="","") ->  | Y85: =_xlfn.IFS(AND(S85="y",$D85="Local"), 1, AND(S85="y",$D85<>"Local"),30.3499104327336%, S85="","") ->  | Z85: =_xlfn.IFS(AND(T85="y",$D85="Local"), 1, AND(T85="y",$D85<>"Local"),29.0043833288201%, T85="","") -> 1 | AA85: =_xlfn.IFS(AND(U85="y",$D85="Local"), 1, AND(U85="y",$D85<>"Local"),18.3998538156536%, U85="","") ->  | AB85: 1 | AG85: 103189.62
B86: 135,RP42975 | D86: Local | E86: Urban South | F86: OPENS SPACE LAND-000/0079 ^10282 COMMUNITY SERVICE/GROUP | G86: 56000 | H86: 607 | I86: 45 | J86: 83315 | K86: 417.6655173 | L86: 284.4167763 | M86: 118791.08 | N86: 2016 | O86: =IFERROR(('General Input Sheet'!$G$38/(VLOOKUP(N86,'General Input Sheet'!$E$38:$G$44,3,FALSE))),1) -> 1 | P86: 202106.08 | T86: y | W86: =_xlfn.IFS(AND(Q86="y",$D86="Local"), 1, AND(Q86="y",$D86<>"Local"),1.49009696454663%, Q86="","") ->  | X86: =_xlfn.IFS(AND(R86="y",$D86="Local"), 1, AND(R86="y",$D86<>"Local"),20.7557554582461%, R86="","") ->  | Y86: =_xlfn.IFS(AND(S86="y",$D86="Local"), 1, AND(S86="y",$D86<>"Local"),30.3499104327336%, S86="","") ->  | Z86: =_xlfn.IFS(AND(T86="y",$D86="Local"), 1, AND(T86="y",$D86<>"Local"),29.0043833288201%, T86="","") -> 1 | AA86: =_xlfn.IFS(AND(U86="y",$D86="Local"), 1, AND(U86="y",$D86<>"Local"),18.3998538156536%, U86="","") ->  | AB86: 1 | AG86: 202106.08
B87: 135,RP48263 | D87: District | E87: Urban North | F87: COUNCIL LAND BRISB-001/0468-4 ^08597 | I87: 0 | K87: 1625.823812 | L87: 60.40377148 | M87: 98205.89 | N87: 2016 | O87: =IFERROR(('General Input Sheet'!$G$38/(VLOOKUP(N87,'General Input Sheet'!$E$38:$G$44,3,FALSE))),1) -> 1 | P87: 98205.89 | Q87: y | R87: y | S87: y | T87: y | U87: y | W87: =_xlfn.IFS(AND(Q87="y",$D87="Local"), 1, AND(Q87="y",$D87<>"Local"),1.49009696454663%, Q87="","") -> 0.01490096965 | X87: =_xlfn.IFS(AND(R87="y",$D87="Local"), 1, AND(R87="y",$D87<>"Local"),20.7557554582461%, R87="","") -> 0.2075575546 | Y87: =_xlfn.IFS(AND(S87="y",$D87="Local"), 1, AND(S87="y",$D87<>"Local"),30.3499104327336%, S87="","") -> 0.3034991043 | Z87: =_xlfn.IFS(AND(T87="y",$D87="Local"), 1, AND(T87="y",$D87<>"Local"),29.0043833288201%, T87="","") -> 0.2900438333 | AA87: =_xlfn.IFS(AND(U87="y",$D87="Local"), 1, AND(U87="y",$D87<>"Local"),18.3998538156536%, U87="","") -> 0.1839985382 | AB87: 1 | AD87: 1463.362986 | AE87: 20383.37437 | AF87: 29805.39965 | AG87: 28484.01279 | AH87: 18069.7402
B88: 136,RP42975 | D88: Local | E88: Urban South | F88: OPENS SPACE LAND-000/0083 ^10282 | I88: 0 | K88: 221.8333084 | L88: 221.4191834 | M88: 49118.15 | N88: 2016 | O88: =IFERROR(('General Input Sheet'!$G$38/(VLOOKUP(N88,'General Input Sheet'!$E$38:$G$44,3,FALSE))),1) -> 1 | P88: 49118.15 | T88: y | W88: =_xlfn.IFS(AND(Q88="y",$D88="Local"), 1, AND(Q88="y",$D88<>"Local"),1.49009696454663%, Q88="","") ->  | X88: =_xlfn.IFS(AND(R88="y",$D88="Local"), 1, AND(R88="y",$D88<>"Local"),20.7557554582461%, R88="","") ->  | Y88: =_xlfn.IFS(AND(S88="y",$D88="Local"), 1, AND(S88="y",$D88<>"Local"),30.3499104327336%, S88="","") ->  | Z88: =_xlfn.IFS(AND(T88="y",$D88="Local"), 1, AND(T88="y",$D88<>"Local"),29.0043833288201%, T88="","") -> 1 | AA88: =_xlfn.IFS(AND(U88="y",$D88="Local"), 1, AND(U88="y",$D88<>"Local"),18.3998538156536%, U88="","") ->  | AB88: 1 | AG88: 49118.15
B89: 14,RP37442 | D89: District | E89: Urban South | F89: OPENS SPACE LAND-000/1383 ^00901 | I89: 0 | K89: 715.9935089 | L89: 145.6982482 | M89: 104319 | N89: 2016 | O89: =IFERROR(('General Input Sheet'!$G$38/(VLOOKUP(N89,'General Input Sheet'!$E$38:$G$44,3,FALSE))),1) -> 1 | P89: 104319 | Q89: y | R89: y | S89: y | T89: y | U89: y | W89: =_xlfn.IFS(AND(Q89="y",$D89="Local"), 1, AND(Q89="y",$D89<>"Local"),1.49009696454663%, Q89="","") -> 0.01490096965 | X89: =_xlfn.IFS(AND(R89="y",$D89="Local"), 1, AND(R89="y",$D89<>"Local"),20.7557554582461%, R89="","") -> 0.2075575546 | Y89: =_xlfn.IFS(AND(S89="y",$D89="Local"), 1, AND(S89="y",$D89<>"Local"),30.3499104327336%, S89="","") -> 0.3034991043 | Z89: =_xlfn.IFS(AND(T89="y",$D89="Local"), 1, AND(T89="y",$D89<>"Local"),29.0043833288201%, T89="","") -> 0.2900438333 | AA89: =_xlfn.IFS(AND(U89="y",$D89="Local"), 1, AND(U89="y",$D89<>"Local"),18.3998538156536%, U89="","") -> 0.1839985382 | AB89: 1 | AD89: 1554.454252 | AE89: 21652.19654 | AF89: 31660.72306 | AG89: 30257.08264 | AH89: 19194.5435
B90: 14,RP70585 | D90: Metropolitan | E90: Urban North | F90: COUNCIL LAND BRISB-001/0086-4 ^04394 | I90: 0 | K90: 1025.941125 | L90: 524.6551063 | M90: 538265.25 | N90: 2016 | O90: =IFERROR(('General Input Sheet'!$G$38/(VLOOKUP(N90,'General Input Sheet'!$E$38:$G$44,3,FALSE))),1) -> 1 | P90: 538265.25 | Q90: y | R90: y | S90: y | T90: y | U90: y | W90: =_xlfn.IFS(AND(Q90="y",$D90="Local"), 1, AND(Q90="y",$D90<>"Local"),1.49009696454663%, Q90="","") -> 0.01490096965 | X90: =_xlfn.IFS(AND(R90="y",$D90="Local"), 1, AND(R90="y",$D90<>"Local"),20.7557554582461%, R90="","") -> 0.2075575546 | Y90: =_xlfn.IFS(AND(S90="y",$D90="Local"), 1, AND(S90="y",$D90<>"Local"),30.3499104327336%, S90="","") -> 0.3034991043 | Z90: =_xlfn.IFS(AND(T90="y",$D90="Local"), 1, AND(T90="y",$D90<>"Local"),29.0043833288201%, T90="","") -> 0.2900438333 | AA90: =_xlfn.IFS(AND(U90="y",$D90="Local"), 1, AND(U90="y",$D90<>"Local"),18.3998538156536%, U90="","") -> 0.1839985382 | AB90: 1 | AD90: 8020.674151 | AE90: 111721.019 | AF90: 163363.0213 | AG90: 156120.5164 | AH90: 99040.01914
B91: 140,RP42338 | D91: Local | E91: Urban West | F91: OPENS SPACE LAND-000/0055 ^04720 | I91: 0 | K91: 45.81938907 | L91: 0.000654744653 | M91: 0.03 | N91: 2016 | O91: =IFERROR(('General Input Sheet'!$G$38/(VLOOKUP(N91,'General Input Sheet'!$E$38:$G$44,3,FALSE))),1) -> 1 | P91: 0.03 | U91: y | W91: =_xlfn.IFS(AND(Q91="y",$D91="Local"), 1, AND(Q91="y",$D91<>"Local"),1.49009696454663%, Q91="","") ->  | X91: =_xlfn.IFS(AND(R91="y",$D91="Local"), 1, AND(R91="y",$D91<>"Local"),20.7557554582461%, R91="","") ->  | Y91: =_xlfn.IFS(AND(S91="y",$D91="Local"), 1, AND(S91="y",$D91<>"Local"),30.3499104327336%, S91="","") ->  | Z91: =_xlfn.IFS(AND(T91="y",$D91="Local"), 1, AND(T91="y",$D91<>"Local"),29.0043833288201%, T91="","") ->  | AA91: =_xlfn.IFS(AND(U91="y",$D91="Local"), 1, AND(U91="y",$D91<>"Local"),18.3998538156536%, U91="","") -> 1 | AB91: 1 | AH91: 0.03
B92: 142,RP37441 | D92: District | E92: Urban South | F92: COUNCIL LAND BRISB-000/0026 ^02118 | I92: 0 | K92: 434.6293236 | L92: 288.0219838 | M92: 125182.8 | N92: 2016 | O92: =IFERROR(('General Input Sheet'!$G$38/(VLOOKUP(N92,'General Input Sheet'!$E$38:$G$44,3,FALSE))),1) -> 1 | P92: 125182.8 | Q92: y | R92: y | S92: y | T92: y | U92: y | W92: =_xlfn.IFS(AND(Q92="y",$D92="Local"), 1, AND(Q92="y",$D92<>"Local"),1.49009696454663%, Q92="","") -> 0.01490096965 | X92: =_xlfn.IFS(AND(R92="y",$D92="Local"), 1, AND(R92="y",$D92<>"Local"),20.7557554582461%, R92="","") -> 0.2075575546 | Y92: =_xlfn.IFS(AND(S92="y",$D92="Local"), 1, AND(S92="y",$D92<>"Local"),30.3499104327336%, S92="","") -> 0.3034991043 | Z92: =_xlfn.IFS(AND(T92="y",$D92="Local"), 1, AND(T92="y",$D92<>"Local"),29.0043833288201%, T92="","") -> 0.2900438333 | AA92: =_xlfn.IFS(AND(U92="y",$D92="Local"), 1, AND(U92="y",$D92<>"Local"),18.3998538156536%, U92="","") -> 0.1839985382 | AB92: 1 | AD92: 1865.345103 | AE92: 25982.63584 | AF92: 37992.86768 | AG92: 36308.49917 | AH92: 23033.4522
B93: 143,RP29566 | D93: District | E93: Urban South | F93: COUNCIL LAND BRISB-001/0641-4 ^07695-OXLEY RD.0641 | I93: 0 | K93: 1017.256934 | L93: 573.0115772 | M93: 582900 | N93: 2016 | O93: =IFERROR(('General Input Sheet'!$G$38/(VLOOKUP(N93,'General Input Sheet'!$E$38:$G$44,3,FALSE))),1) -> 1 | P93: 582900 | Q93: y | R93: y | S93: y | T93: y | U93: y | W93: =_xlfn.IFS(AND(Q93="y",$D93="Local"), 1, AND(Q93="y",$D93<>"Local"),1.49009696454663%, Q93="","") -> 0.01490096965 | X93: =_xlfn.IFS(AND(R93="y",$D93="Local"), 1, AND(R93="y",$D93<>"Local"),20.7557554582461%, R93="","") -> 0.2075575546 | Y93: =_xlfn.IFS(AND(S93="y",$D93="Local"), 1, AND(S93="y",$D93<>"Local"),30.3499104327336%, S93="","") -> 0.3034991043 | Z93: =_xlfn.IFS(AND(T93="y",$D93="Local"), 1, AND(T93="y",$D93<>"Local"),29.0043833288201%, T93="","") -> 0.2900438333 | AA93: =_xlfn.IFS(AND(U93="y",$D93="Local"), 1, AND(U93="y",$D93<>"Local"),18.3998538156536%, U93="","") -> 0.1839985382 | AB93: 1 | AD93: 8685.775206 | AE93: 120985.2986 | AF93: 176909.6279 | AG93: 169066.5504 | AH93: 107252.7479
B94: 143,RP37441 | D94: District | E94: Urban South | F94: COUNCIL LAND BRISB-000/0032 ^06506 | I94: 0 | K94: 431.1891102 | L94: 314.5132769 | M94: 135614.7 | N94: 2016 | O94: =IFERROR(('General Input Sheet'!$G$38/(VLOOKUP(N94,'General Input Sheet'!$E$38:$G$44,3,FALSE))),1) -> 1 | P94: 135614.7 | Q94: y | R94: y | S94: y | T94: y | U94: y | W94: =_xlfn.IFS(AND(Q94="y",$D94="Local"), 1, AND(Q94="y",$D94<>"Local"),1.49009696454663%, Q94="","") -> 0.01490096965 | X94: =_xlfn.IFS(AND(R94="y",$D94="Local"), 1, AND(R94="y",$D94<>"Local"),20.7557554582461%, R94="","") -> 0.2075575546 | Y94: =_xlfn.IFS(AND(S94="y",$D94="Local"), 1, AND(S94="y",$D94<>"Local"),30.3499104327336%, S94="","") -> 0.3034991043 | Z94: =_xlfn.IFS(AND(T94="y",$D94="Local"), 1, AND(T94="y",$D94<>"Local"),29.0043833288201%, T94="","") -> 0.2900438333 | AA94: =_xlfn.IFS(AND(U94="y",$D94="Local"), 1, AND(U94="y",$D94<>"Local"),18.3998538156536%, U94="","") -> 0.1839985382 | AB94: 1 | AD94: 2020.790528 | AE94: 28147.8555 | AF94: 41158.93998 | AG94: 39334.20744 | AH94: 24952.90655
B95: 144,RP37441 | D95: District | E95: Urban South | F95: COUNCIL LAND BRISB-000/0026-A ^02118 | I95: 0 | K95: 429.7443199 | L95: 267.0213303 | M95: 114750.9 | N95: 2016 | O95: =IFERROR(('General Input Sheet'!$G$38/(VLOOKUP(N95,'General Input Sheet'!$E$38:$G$44,3,FALSE))),1) -> 1 | P95: 114750.9 | Q95: y | R95: y | S95: y | T95: y | U95: y | W95: =_xlfn.IFS(AND(Q95="y",$D95="Local"), 1, AND(Q95="y",$D95<>"Local"),1.49009696454663%, Q95="","") -> 0.01490096965 | X95: =_xlfn.IFS(AND(R95="y",$D95="Local"), 1, AND(R95="y",$D95<>"Local"),20.7557554582461%, R95="","") -> 0.2075575546 | Y95: =_xlfn.IFS(AND(S95="y",$D95="Local"), 1, AND(S95="y",$D95<>"Local"),30.3499104327336%, S95="","") -> 0.3034991043 | Z95: =_xlfn.IFS(AND(T95="y",$D95="Local"), 1, AND(T95="y",$D95<>"Local"),29.0043833288201%, T95="","") -> 0.2900438333 | AA95: =_xlfn.IFS(AND(U95="y",$D95="Local"), 1, AND(U95="y",$D95<>"Local"),18.3998538156536%, U95="","") -> 0.1839985382 | AB95: 1 | AD95: 1709.899678 | AE95: 23817.41619 | AF95: 34826.79537 | AG95: 33282.79091 | AH95: 21113.99785
B96: 145,RP37441 | D96: District | E96: Urban South | F96: COUNCIL LAND BRISB-000/0030 ^06506 | I96: 0 | K96: 430.2696824 | L96: 315.1853489 | M96: 135614.7 | N96: 2016 | O96: =IFERROR(('General Input Sheet'!$G$38/(VLOOKUP(N96,'General Input Sheet'!$E$38:$G$44,3,FALSE))),1) -> 1 | P96: 135614.7 | Q96: y | R96: y | S96: y | T96: y | U96: y | W96: =_xlfn.IFS(AND(Q96="y",$D96="Local"), 1, AND(Q96="y",$D96<>"Local"),1.49009696454663%, Q96="","") -> 0.01490096965 | X96: =_xlfn.IFS(AND(R96="y",$D96="Local"), 1, AND(R96="y",$D96<>"Local"),20.7557554582461%, R96="","") -> 0.2075575546 | Y96: =_xlfn.IFS(AND(S96="y",$D96="Local"), 1, AND(S96="y",$D96<>"Local"),30.3499104327336%, S96="","") -> 0.3034991043 | Z96: =_xlfn.IFS(AND(T96="y",$D96="Local"), 1, AND(T96="y",$D96<>"Local"),29.0043833288201%, T96="","") -> 0.2900438333 | AA96: =_xlfn.IFS(AND(U96="y",$D96="Local"), 1, AND(U96="y",$D96<>"Local"),18.3998538156536%, U96="","") -> 0.1839985382 | AB96: 1 | AD96: 2020.790528 | AE96: 28147.8555 | AF96: 41158.93998 | AG96: 39334.20744 | AH96: 24952.90655
B97: 146,RP37441 | D97: District | E97: Urban South | F97: COUNCIL LAND BRISB-000/0026-B ^02118 | I97: 0 | K97: 427.8581872 | L97: 268.1984439 | M97: 114750.9 | N97: 2016 | O97: =IFERROR(('General Input Sheet'!$G$38/(VLOOKUP(N97,'General Input Sheet'!$E$38:$G$44,3,FALSE))),1) -> 1 | P97: 114750.9 | Q97: y | R97: y | S97: y | T97: y | U97: y | W97: =_xlfn.IFS(AND(Q97="y",$D97="Local"), 1, AND(Q97="y",$D97<>"Local"),1.49009696454663%, Q97="","") -> 0.01490096965 | X97: =_xlfn.IFS(AND(R97="y",$D97="Local"), 1, AND(R97="y",$D97<>"Local"),20.7557554582461%, R97="","") -> 0.2075575546 | Y97: =_xlfn.IFS(AND(S97="y",$D97="Local"), 1, AND(S97="y",$D97<>"Local"),30.3499104327336%, S97="","") -> 0.3034991043 | Z97: =_xlfn.IFS(AND(T97="y",$D97="Local"), 1, AND(T97="y",$D97<>"Local"),29.0043833288201%, T97="","") -> 0.2900438333 | AA97: =_xlfn.IFS(AND(U97="y",$D97="Local"), 1, AND(U97="y",$D97<>"Local"),18.3998538156536%, U97="","") -> 0.1839985382 | AB97: 1 | AD97: 1709.899678 | AE97: 23817.41619 | AF97: 34826.79537 | AG97: 33282.79091 | AH97: 21113.99785
B98: 147,RP37441 | D98: District | E98: Urban South | F98: COUNCIL LAND BRISB-000/0028 ^06506 | I98: 0 | K98: 429.9193088 | L98: 315.4422172 | M98: 135614.7 | N98: 2016 | O98: =IFERROR(('General Input Sheet'!$G$38/(VLOOKUP(N98,'General Input Sheet'!$E$38:$G$44,3,FALSE))),1) -> 1 | P98: 135614.7 | Q98: y | R98: y | S98: y | T98: y | U98: y | W98: =_xlfn.IFS(AND(Q98="y",$D98="Local"), 1, AND(Q98="y",$D98<>"Local"),1.49009696454663%, Q98="","") -> 0.01490096965 | X98: =_xlfn.IFS(AND(R98="y",$D98="Local"), 1, AND(R98="y",$D98<>"Local"),20.7557554582461%, R98="","") -> 0.2075575546 | Y98: =_xlfn.IFS(AND(S98="y",$D98="Local"), 1, AND(S98="y",$D98<>"Local"),30.3499104327336%, S98="","") -> 0.3034991043 | Z98: =_xlfn.IFS(AND(T98="y",$D98="Local"), 1, AND(T98="y",$D98<>"Local"),29.0043833288201%, T98="","") -> 0.2900438333 | AA98: =_xlfn.IFS(AND(U98="y",$D98="Local"), 1, AND(U98="y",$D98<>"Local"),18.3998538156536%, U98="","") -> 0.1839985382 | AB98: 1 | AD98: 2020.790528 | AE98: 28147.8555 | AF98: 41158.93998 | AG98: 39334.20744 | AH98: 24952.90655
B99: 148,RP37441 | D99: District | E99: Urban South | F99: COUNCIL LAND BRISB-000/0026-C ^02118 | I99: 0 | K99: 431.4465938 | L99: 265.9677968 | M99: 114750.9 | N99: 2016 | O99: =IFERROR(('General Input Sheet'!$G$38/(VLOOKUP(N99,'General Input Sheet'!$E$38:$G$44,3,FALSE))),1) -> 1 | P99: 114750.9 | Q99: y | R99: y | S99: y | T99: y | U99: y | W99: =_xlfn.IFS(AND(Q99="y",$D99="Local"), 1, AND(Q99="y",$D99<>"Local"),1.49009696454663%, Q99="","") -> 0.01490096965 | X99: =_xlfn.IFS(AND(R99="y",$D99="Local"), 1, AND(R99="y",$D99<>"Local"),20.7557554582461%, R99="","") -> 0.2075575546 | Y99: =_xlfn.IFS(AND(S99="y",$D99="Local"), 1, AND(S99="y",$D99<>"Local"),30.3499104327336%, S99="","") -> 0.3034991043 | Z99: =_xlfn.IFS(AND(T99="y",$D99="Local"), 1, AND(T99="y",$D99<>"Local"),29.0043833288201%, T99="","") -> 0.2900438333 | AA99: =_xlfn.IFS(AND(U99="y",$D99="Local"), 1, AND(U99="y",$D99<>"Local"),18.3998538156536%, U99="","") -> 0.1839985382 | AB99: 1 | AD99: 1709.899678 | AE99: 23817.41619 | AF99: 34826.79537 | AG99: 33282.79091 | AH99: 21113.99785
B100: 149,RP37441 | D100: District | E100: Urban South | F100: COUNCIL LAND BRISB-000/0026 ^06506 | I100: 0 | K100: 438.6761424 | L100: 309.1453738 | M100: 135614.7 | N100: 2016 | O100: =IFERROR(('General Input Sheet'!$G$38/(VLOOKUP(N100,'General Input Sheet'!$E$38:$G$44,3,FALSE))),1) -> 1 | P100: 135614.7 | Q100: y | R100: y | S100: y | T100: y | U100: y | W100: =_xlfn.IFS(AND(Q100="y",$D100="Local"), 1, AND(Q100="y",$D100<>"Local"),1.49009696454663%, Q100="","") -> 0.01490096965 | X100: =_xlfn.IFS(AND(R100="y",$D100="Local"), 1, AND(R100="y",$D100<>"Local"),20.7557554582461%, R100="","") -> 0.2075575546 | Y100: =_xlfn.IFS(AND(S100="y",$D100="Local"), 1, AND(S100="y",$D100<>"Local"),30.3499104327336%, S100="","") -> 0.3034991043 | Z100: =_xlfn.IFS(AND(T100="y",$D100="Local"), 1, AND(T100="y",$D100<>"Local"),29.0043833288201%, T100="","") -> 0.2900438333 | AA100: =_xlfn.IFS(AND(U100="y",$D100="Local"), 1, AND(U100="y",$D100<>"Local"),18.3998538156536%, U100="","") -> 0.1839985382 | AB100: 1 | AD100: 2020.790528 | AE100: 28147.8555 | AF100: 41158.93998 | AG100: 39334.20744 | AH100: 24952.90655
B101: 15,RP12089 | D101: Local | E101: Urban South | F101: OPENS SPACE LAND-000/0033 ^07765 | I101: 0 | K101: 157.6342042 | L101: 430.9180889 | M101: 67927.43 | N101: 2016 | O101: =IFERROR(('General Input Sheet'!$G$38/(VLOOKUP(N101,'General Input Sheet'!$E$38:$G$44,3,FALSE))),1) -> 1 | P101: 67927.43 | T101: y | W101: =_xlfn.IFS(AND(Q101="y",$D101="Local"), 1, AND(Q101="y",$D101<>"Local"),1.49009696454663%, Q101="","") ->  | X101: =_xlfn.IFS(AND(R101="y",$D101="Local"), 1, AND(R101="y",$D101<>"Local"),20.7557554582461%, R101="","") ->  | Y101: =_xlfn.IFS(AND(S101="y",$D101="Local"), 1, AND(S101="y",$D101<>"Local"),30.3499104327336%, S101="","") ->  | Z101: =_xlfn.IFS(AND(T101="y",$D101="Local"), 1, AND(T101="y",$D101<>"Local"),29.0043833288201%, T101="","") -> 1 | AA101: =_xlfn.IFS(AND(U101="y",$D101="Local"), 1, AND(U101="y",$D101<>"Local"),18.3998538156536%, U101="","") ->  | AB101: 1 | AG101: 67927.43
B102: 15,RP23324 | D102: Local | E102: Urban West | F102: COUNCIL LAND BRISB-000/0182 ^06410 | I102: 0 | K102: 469.3177164 | L102: 745.1323651 | M102: 349703.82 | N102: 2016 | O102: =IFERROR(('General Input Sheet'!$G$38/(VLOOKUP(N102,'General Input Sheet'!$E$38:$G$44,3,FALSE))),1) -> 1 | P102: 349703.82 | U102: y | W102: =_xlfn.IFS(AND(Q102="y",$D102="Local"), 1, AND(Q102="y",$D102<>"Local"),1.49009696454663%, Q102="","") ->  | X102: =_xlfn.IFS(AND(R102="y",$D102="Local"), 1, AND(R102="y",$D102<>"Local"),20.7557554582461%, R102="","") ->  | Y102: =_xlfn.IFS(AND(S102="y",$D102="Local"), 1, AND(S102="y",$D102<>"Local"),30.3499104327336%, S102="","") ->  | Z102: =_xlfn.IFS(AND(T102="y",$D102="Local"), 1, AND(T102="y",$D102<>"Local"),29.0043833288201%, T102="","") ->  | AA102: =_xlfn.IFS(AND(U102="y",$D102="Local"), 1, AND(U102="y",$D102<>"Local"),18.3998538156536%, U102="","") -> 1 | AB102: 1 | AH102: 349703.82
B103: 15,RP37442 | D103: District | E103: Urban South | F103: OPENS SPACE LAND-000/1381 ^00901 | I103: 0 | K103: 629.3527294 | L103: 165.7560143 | M103: 104319 | N103: 2016 | O103: =IFERROR(('General Input Sheet'!$G$38/(VLOOKUP(N103,'General Input Sheet'!$E$38:$G$44,3,FALSE))),1) -> 1 | P103: 104319 | Q103: y | R103: y | S103: y | T103: y | U103: y | W103: =_xlfn.IFS(AND(Q103="y",$D103="Local"), 1, AND(Q103="y",$D103<>"Local"),1.49009696454663%, Q103="","") -> 0.01490096965 | X103: =_xlfn.IFS(AND(R103="y",$D103="Local"), 1, AND(R103="y",$D103<>"Local"),20.7557554582461%, R103="","") -> 0.2075575546 | Y103: =_xlfn.IFS(AND(S103="y",$D103="Local"), 1, AND(S103="y",$D103<>"Local"),30.3499104327336%, S103="","") -> 0.3034991043 | Z103: =_xlfn.IFS(AND(T103="y",$D103="Local"), 1, AND(T103="y",$D103<>"Local"),29.0043833288201%, T103="","") -> 0.2900438333 | AA103: =_xlfn.IFS(AND(U103="y",$D103="Local"), 1, AND(U103="y",$D103<>"Local"),18.3998538156536%, U103="","") -> 0.1839985382 | AB103: 1 | AD103: 1554.454252 | AE103: 21652.19654 | AF103: 31660.72306 | AG103: 30257.08264 | AH103: 19194.5435
B104: 150,RP37441 | D104: District | E104: Urban South | F104: COUNCIL LAND BRISB-000/0026-D ^02118 | I104: 0 | K104: 285.5735067 | L104: 267.8424931 | M104: 76488.72 | N104: 2016 | O104: =IFERROR(('General Input Sheet'!$G$38/(VLOOKUP(N104,'General Input Sheet'!$E$38:$G$44,3,FALSE))),1) -> 1 | P104: 76488.72 | Q104: y | R104: y | S104: y | T104: y | U104: y | W104: =_xlfn.IFS(AND(Q104="y",$D104="Local"), 1, AND(Q104="y",$D104<>"Local"),1.49009696454663%, Q104="","") -> 0.01490096965 | X104: =_xlfn.IFS(AND(R104="y",$D104="Local"), 1, AND(R104="y",$D104<>"Local"),20.7557554582461%, R104="","") -> 0.2075575546 | Y104: =_xlfn.IFS(AND(S104="y",$D104="Local"), 1, AND(S104="y",$D104<>"Local"),30.3499104327336%, S104="","") -> 0.3034991043 | Z104: =_xlfn.IFS(AND(T104="y",$D104="Local"), 1, AND(T104="y",$D104<>"Local"),29.0043833288201%, T104="","") -> 0.2900438333 | AA104: =_xlfn.IFS(AND(U104="y",$D104="Local"), 1, AND(U104="y",$D104<>"Local"),18.3998538156536%, U104="","") -> 0.1839985382 | AB104: 1 | AD104: 1139.756095 | AE104: 15875.81168 | AF104: 23214.25801 | AG104: 22185.08155 | AH104: 14073.81267
B105: 151,RP37441 | D105: District | E105: Urban South | F105: COUNCIL LAND BRISB-000/0024 ^06506 | I105: 0 | K105: 431.1500922 | L105: 314.5417395 | M105: 135614.7 | N105: 2016 | O105: =IFERROR(('General Input Sheet'!$G$38/(VLOOKUP(N105,'General Input Sheet'!$E$38:$G$44,3,FALSE))),1) -> 1 | P105: 135614.7 | Q105: y | R105: y | S105: y | T105: y | U105: y | W105: =_xlfn.IFS(AND(Q105="y",$D105="Local"), 1, AND(Q105="y",$D105<>"Local"),1.49009696454663%, Q105="","") -> 0.01490096965 | X105: =_xlfn.IFS(AND(R105="y",$D105="Local"), 1, AND(R105="y",$D105<>"Local"),20.7557554582461%, R105="","") -> 0.2075575546 | Y105: =_xlfn.IFS(AND(S105="y",$D105="Local"), 1, AND(S105="y",$D105<>"Local"),30.3499104327336%, S105="","") -> 0.3034991043 | Z105: =_xlfn.IFS(AND(T105="y",$D105="Local"), 1, AND(T105="y",$D105<>"Local"),29.0043833288201%, T105="","") -> 0.2900438333 | AA105: =_xlfn.IFS(AND(U105="y",$D105="Local"), 1, AND(U105="y",$D105<>"Local"),18.3998538156536%, U105="","") -> 0.1839985382 | AB105: 1 | AD105: 2020.790528 | AE105: 28147.8555 | AF105: 41158.93998 | AG105: 39334.20744 | AH105: 24952.90655
B106: 152,RP37441 | D106: District | E106: Urban South | F106: COUNCIL LAND BRISB-000/0026-E ^06506 | I106: 0 | K106: 272.7975124 | L106: 288.9330599 | M106: 78820.22 | N106: 2016 | O106: =IFERROR(('General Input Sheet'!$G$38/(VLOOKUP(N106,'General Input Sheet'!$E$38:$G$44,3,FALSE))),1) -> 1 | P106: 78820.22 | Q106: y | R106: y | S106: y | T106: y | U106: y | W106: =_xlfn.IFS(AND(Q106="y",$D106="Local"), 1, AND(Q106="y",$D106<>"Local"),1.49009696454663%, Q106="","") -> 0.01490096965 | X106: =_xlfn.IFS(AND(R106="y",$D106="Local"), 1, AND(R106="y",$D106<>"Local"),20.7557554582461%, R106="","") -> 0.2075575546 | Y106: =_xlfn.IFS(AND(S106="y",$D106="Local"), 1, AND(S106="y",$D106<>"Local"),30.3499104327336%, S106="","") -> 0.3034991043 | Z106: =_xlfn.IFS(AND(T106="y",$D106="Local"), 1, AND(T106="y",$D106<>"Local"),29.0043833288201%, T106="","") -> 0.2900438333 | AA106: =_xlfn.IFS(AND(U106="y",$D106="Local"), 1, AND(U106="y",$D106<>"Local"),18.3998538156536%, U106="","") -> 0.1839985382 | AB106: 1 | AD106: 1174.497706 | AE106: 16359.73211 | AF106: 23921.86617 | AG106: 22861.31875 | AH106: 14502.80526
B107: 153,RP37441 | D107: District | E107: Urban South | F107: COUNCIL LAND BRISB-000/0022 ^06506 | I107: 0 | K107: 433.5118249 | L107: 312.828145 | M107: 135614.7 | N107: 2016 | O107: =IFERROR(('General Input Sheet'!$G$38/(VLOOKUP(N107,'General Input Sheet'!$E$38:$G$44,3,FALSE))),1) -> 1 | P107: 135614.7 | Q107: y | R107: y | S107: y | T107: y | U107: y | W107: =_xlfn.IFS(AND(Q107="y",$D107="Local"), 1, AND(Q107="y",$D107<>"Local"),1.49009696454663%, Q107="","") -> 0.01490096965 | X107: =_xlfn.IFS(AND(R107="y",$D107="Local"), 1, AND(R107="y",$D107<>"Local"),20.7557554582461%, R107="","") -> 0.2075575546 | Y107: =_xlfn.IFS(AND(S107="y",$D107="Local"), 1, AND(S107="y",$D107<>"Local"),30.3499104327336%, S107="","") -> 0.3034991043 | Z107: =_xlfn.IFS(AND(T107="y",$D107="Local"), 1, AND(T107="y",$D107<>"Local"),29.0043833288201%, T107="","") -> 0.2900438333 | AA107: =_xlfn.IFS(AND(U107="y",$D107="Local"), 1, AND(U107="y",$D107<>"Local"),18.3998538156536%, U107="","") -> 0.1839985382 | AB107: 1 | AD107: 2020.790528 | AE107: 28147.8555 | AF107: 41158.93998 | AG107: 39334.20744 | AH107: 24952.90655
B108: 154,RP37441 | D108: District | E108: Urban South | F108: COUNCIL LAND BRISB-000/0074 ^04229 | I108: 0 | K108: 271.2859097 | L108: 289.1326722 | M108: 78437.62 | N108: 2016 | O108: =IFERROR(('General Input Sheet'!$G$38/(VLOOKUP(N108,'General Input Sheet'!$E$38:$G$44,3,FALSE))),1) -> 1 | P108: 78437.62 | Q108: y | R108: y | S108: y | T108: y | U108: y | W108: =_xlfn.IFS(AND(Q108="y",$D108="Local"), 1, AND(Q108="y",$D108<>"Local"),1.49009696454663%, Q108="","") -> 0.01490096965 | X108: =_xlfn.IFS(AND(R108="y",$D108="Local"), 1, AND(R108="y",$D108<>"Local"),20.7557554582461%, R108="","") -> 0.2075575546 | Y108: =_xlfn.IFS(AND(S108="y",$D108="Local"), 1, AND(S108="y",$D108<>"Local"),30.3499104327336%, S108="","") -> 0.3034991043 | Z108: =_xlfn.IFS(AND(T108="y",$D108="Local"), 1, AND(T108="y",$D108<>"Local"),29.0043833288201%, T108="","") -> 0.2900438333 | AA108: =_xlfn.IFS(AND(U108="y",$D108="Local"), 1, AND(U108="y",$D108<>"Local"),18.3998538156536%, U108="","") -> 0.1839985382 | AB108: 1 | AD108: 1168.796595 | AE108: 16280.32059 | AF108: 23805.74742 | AG108: 22750.34798 | AH108: 14432.40742
B109: 155,RP37441 | D109: District | E109: Urban South | F109: COUNCIL LAND BRISB-000/0018 ^06506 | I109: 0 | K109: 432.394014 | L109: 313.6368581 | M109: 135614.7 | N109: 2016 | O109: =IFERROR(('General Input Sheet'!$G$38/(VLOOKUP(N109,'General Input Sheet'!$E$38:$G$44,3,FALSE))),1) -> 1 | P109: 135614.7 | Q109: y | R109: y | S109: y | T109: y | U109: y | W109: =_xlfn.IFS(AND(Q109="y",$D109="Local"), 1, AND(Q109="y",$D109<>"Local"),1.49009696454663%, Q109="","") -> 0.01490096965 | X109: =_xlfn.IFS(AND(R109="y",$D109="Local"), 1, AND(R109="y",$D109<>"Local"),20.7557554582461%, R109="","") -> 0.2075575546 | Y109: =_xlfn.IFS(AND(S109="y",$D109="Local"), 1, AND(S109="y",$D109<>"Local"),30.3499104327336%, S109="","") -> 0.3034991043 | Z109: =_xlfn.IFS(AND(T109="y",$D109="Local"), 1, AND(T109="y",$D109<>"Local"),29.0043833288201%, T109="","") -> 0.2900438333 | AA109: =_xlfn.IFS(AND(U109="y",$D109="Local"), 1, AND(U109="y",$D109<>"Local"),18.3998538156536%, U109="","") -> 0.1839985382 | AB109: 1 | AD109: 2020.790528 | AE109: 28147.8555 | AF109: 41158.93998 | AG109: 39334.20744 | AH109: 24952.90655
B110: 156,RP37441 | D110: District | E110: Urban South | F110: COUNCIL LAND BRISB-000/0076 ^04229 | I110: 0 | K110: 267.6939057 | L110: 292.6892556 | M110: 78351.13 | N110: 2016 | O110: =IFERROR(('General Input Sheet'!$G$38/(VLOOKUP(N110,'General Input Sheet'!$E$38:$G$44,3,FALSE))),1) -> 1 | P110: 78351.13 | Q110: y | R110: y | S110: y | T110: y | U110: y | W110: =_xlfn.IFS(AND(Q110="y",$D110="Local"), 1, AND(Q110="y",$D110<>"Local"),1.49009696454663%, Q110="","") -> 0.01490096965 | X110: =_xlfn.IFS(AND(R110="y",$D110="Local"), 1, AND(R110="y",$D110<>"Local"),20.7557554582461%, R110="","") -> 0.2075575546 | Y110: =_xlfn.IFS(AND(S110="y",$D110="Local"), 1, AND(S110="y",$D110<>"Local"),30.3499104327336%, S110="","") -> 0.3034991043 | Z110: =_xlfn.IFS(AND(T110="y",$D110="Local"), 1, AND(T110="y",$D110<>"Local"),29.0043833288201%, T110="","") -> 0.2900438333 | AA110: =_xlfn.IFS(AND(U110="y",$D110="Local"), 1, AND(U110="y",$D110<>"Local"),18.3998538156536%, U110="","") -> 0.1839985382 | AB110: 1 | AD110: 1167.50781 | AE110: 16262.36894 | AF110: 23779.49778 | AG110: 22725.26209 | AH110: 14416.49338
B111: 157,RP37441 | D111: District | E111: Urban South | F111: COUNCIL LAND BRISB-000/0016 ^06506 | I111: 0 | K111: 430.1679044 | L111: 315.259922 | M111: 135614.7 | N111: 2016 | O111: =IFERROR(('General Input Sheet'!$G$38/(VLOOKUP(N111,'General Input Sheet'!$E$38:$G$44,3,FALSE))),1) -> 1 | P111: 135614.7 | Q111: y | R111: y | S111: y | T111: y | U111: y | W111: =_xlfn.IFS(AND(Q111="y",$D111="Local"), 1, AND(Q111="y",$D111<>"Local"),1.49009696454663%, Q111="","") -> 0.01490096965 | X111: =_xlfn.IFS(AND(R111="y",$D111="Local"), 1, AND(R111="y",$D111<>"Local"),20.7557554582461%, R111="","") -> 0.2075575546 | Y111: =_xlfn.IFS(AND(S111="y",$D111="Local"), 1, AND(S111="y",$D111<>"Local"),30.3499104327336%, S111="","") -> 0.3034991043 | Z111: =_xlfn.IFS(AND(T111="y",$D111="Local"), 1, AND(T111="y",$D111<>"Local"),29.0043833288201%, T111="","") -> 0.2900438333 | AA111: =_xlfn.IFS(AND(U111="y",$D111="Local"), 1, AND(U111="y",$D111<>"Local"),18.3998538156536%, U111="","") -> 0.1839985382 | AB111: 1 | AD111: 2020.790528 | AE111: 28147.8555 | AF111: 41158.93998 | AG111: 39334.20744 | AH111: 24952.90655
B112: 158,RP37441 | D112: District | E112: Urban South | F112: COUNCIL LAND BRISB-000/0078 ^04229 | I112: 0 | K112: 267.4901656 | L112: 233.5063043 | M112: 62460.64 | N112: 2016 | O112: =IFERROR(('General Input Sheet'!$G$38/(VLOOKUP(N112,'General Input Sheet'!$E$38:$G$44,3,FALSE))),1) -> 1 | P112: 62460.64 | Q112: y | R112: y | S112: y | T112: y | U112: y | W112: =_xlfn.IFS(AND(Q112="y",$D112="Local"), 1, AND(Q112="y",$D112<>"Local"),1.49009696454663%, Q112="","") -> 0.01490096965 | X112: =_xlfn.IFS(AND(R112="y",$D112="Local"), 1, AND(R112="y",$D112<>"Local"),20.7557554582461%, R112="","") -> 0.2075575546 | Y112: =_xlfn.IFS(AND(S112="y",$D112="Local"), 1, AND(S112="y",$D112<>"Local"),30.3499104327336%, S112="","") -> 0.3034991043 | Z112: =_xlfn.IFS(AND(T112="y",$D112="Local"), 1, AND(T112="y",$D112<>"Local"),29.0043833288201%, T112="","") -> 0.2900438333 | AA112: =_xlfn.IFS(AND(U112="y",$D112="Local"), 1, AND(U112="y",$D112<>"Local"),18.3998538156536%, U112="","") -> 0.1839985382 | AB112: 1 | AD112: 930.7241007 | AE112: 12964.1777 | AF112: 18956.7483 | AG112: 18116.32346 | AH112: 11492.66645
B113: 159,RP37441 | D113: District | E113: Urban South | F113: COUNCIL LAND BRISB-000/0014 ^06506 | I113: 0 | K113: 428.7218556 | L113: 267.6581529 | M113: 114750.9 | N113: 2016 | O113: =IFERROR(('General Input Sheet'!$G$38/(VLOOKUP(N113,'General Input Sheet'!$E$38:$G$44,3,FALSE))),1) -> 1 | P113: 114750.9 | Q113: y | R113: y | S113: y | T113: y | U113: y | W113: =_xlfn.IFS(AND(Q113="y",$D113="Local"), 1, AND(Q113="y",$D113<>"Local"),1.49009696454663%, Q113="","") -> 0.01490096965 | X113: =_xlfn.IFS(AND(R113="y",$D113="Local"), 1, AND(R113="y",$D113<>"Local"),20.7557554582461%, R113="","") -> 0.2075575546 | Y113: =_xlfn.IFS(AND(S113="y",$D113="Local"), 1, AND(S113="y",$D113<>"Local"),30.3499104327336%, S113="","") -> 0.3034991043 | Z113: =_xlfn.IFS(AND(T113="y",$D113="Local"), 1, AND(T113="y",$D113<>"Local"),29.0043833288201%, T113="","") -> 0.2900438333 | AA113: =_xlfn.IFS(AND(U113="y",$D113="Local"), 1, AND(U113="y",$D113<>"Local"),18.3998538156536%, U113="","") -> 0.1839985382 | AB113: 1 | AD113: 1709.899678 | AE113: 23817.41619 | AF113: 34826.79537 | AG113: 33282.79091 | AH113: 21113.99785
B114: 16,RP12089 | D114: Local | E114: Urban South | F114: OPENS SPACE LAND-000/0021 ^08831 | I114: 0 | K114: 365.4878141 | L114: 404.8901339 | M114: 147982.41 | N114: 2016 | O114: =IFERROR(('General Input Sheet'!$G$38/(VLOOKUP(N114,'General Input Sheet'!$E$38:$G$44,3,FALSE))),1) -> 1 | P114: 147982.41 | T114: y | W114: =_xlfn.IFS(AND(Q114="y",$D114="Local"), 1, AND(Q114="y",$D114<>"Local"),1.49009696454663%, Q114="","") ->  | X114: =_xlfn.IFS(AND(R114="y",$D114="Local"), 1, AND(R114="y",$D114<>"Local"),20.7557554582461%, R114="","") ->  | Y114: =_xlfn.IFS(AND(S114="y",$D114="Local"), 1, AND(S114="y",$D114<>"Local"),30.3499104327336%, S114="","") ->  | Z114: =_xlfn.IFS(AND(T114="y",$D114="Local"), 1, AND(T114="y",$D114<>"Local"),29.0043833288201%, T114="","") -> 1 | AA114: =_xlfn.IFS(AND(U114="y",$D114="Local"), 1, AND(U114="y",$D114<>"Local"),18.3998538156536%, U114="","") ->  | AB114: 1 | AG114: 147982.41
B115: 16,RP23324 | D115: Local | E115: Urban West | F115: COUNCIL LAND BRISB-000/0184 ^06410 | I115: 0 | K115: 457.375544 | L115: 872.911364 | M115: 399248.31 | N115: 2016 | O115: =IFERROR(('General Input Sheet'!$G$38/(VLOOKUP(N115,'General Input Sheet'!$E$38:$G$44,3,FALSE))),1) -> 1 | P115: 399248.31 | U115: y | W115: =_xlfn.IFS(AND(Q115="y",$D115="Local"), 1, AND(Q115="y",$D115<>"Local"),1.49009696454663%, Q115="","") ->  | X115: =_xlfn.IFS(AND(R115="y",$D115="Local"), 1, AND(R115="y",$D115<>"Local"),20.7557554582461%, R115="","") ->  | Y115: =_xlfn.IFS(AND(S115="y",$D115="Local"), 1, AND(S115="y",$D115<>"Local"),30.3499104327336%, S115="","") ->  | Z115: =_xlfn.IFS(AND(T115="y",$D115="Local"), 1, AND(T115="y",$D115<>"Local"),29.0043833288201%, T115="","") ->  | AA115: =_xlfn.IFS(AND(U115="y",$D115="Local"), 1, AND(U115="y",$D115<>"Local"),18.3998538156536%, U115="","") -> 1 | AB115: 1 | AH115: 399248.31
B116: 16,RP37442 | D116: District | E116: Urban South | F116: OPENS SPACE LAND-000/1379 ^00901 | I116: 0 | K116: 561.4831014 | L116: 165.3547716 | M116: 92843.91 | N116: 2016 | O116: =IFERROR(('General Input Sheet'!$G$38/(VLOOKUP(N116,'General Input Sheet'!$E$38:$G$44,3,FALSE))),1) -> 1 | P116: 92843.91 | Q116: y | R116: y | S116: y | T116: y | U116: y | W116: =_xlfn.IFS(AND(Q116="y",$D116="Local"), 1, AND(Q116="y",$D116<>"Local"),1.49009696454663%, Q116="","") -> 0.01490096965 | X116: =_xlfn.IFS(AND(R116="y",$D116="Local"), 1, AND(R116="y",$D116<>"Local"),20.7557554582461%, R116="","") -> 0.2075575546 | Y116: =_xlfn.IFS(AND(S116="y",$D116="Local"), 1, AND(S116="y",$D116<>"Local"),30.3499104327336%, S116="","") -> 0.3034991043 | Z116: =_xlfn.IFS(AND(T116="y",$D116="Local"), 1, AND(T116="y",$D116<>"Local"),29.0043833288201%, T116="","") -> 0.2900438333 | AA116: =_xlfn.IFS(AND(U116="y",$D116="Local"), 1, AND(U116="y",$D116<>"Local"),18.3998538156536%, U116="","") -> 0.1839985382 | AB116: 1 | AD116: 1383.464285 | AE116: 19270.45492 | AF116: 28178.04353 | AG116: 26928.80355 | AH116: 17083.14372
B117: 160,RP12933 | D117: District | E117: Urban East | F117: COUNCIL LAND BRISB-000/0015 ^08039 | I117: 0 | K117: 266.9702108 | L117: 734.527307 | M117: 196096.91 | N117: 2016 | O117: =IFERROR(('General Input Sheet'!$G$38/(VLOOKUP(N117,'General Input Sheet'!$E$38:$G$44,3,FALSE))),1) -> 1 | P117: 196096.91 | Q117: y | R117: y | S117: y | T117: y | U117: y | W117: =_xlfn.IFS(AND(Q117="y",$D117="Local"), 1, AND(Q117="y",$D117<>"Local"),1.49009696454663%, Q117="","") -> 0.01490096965 | X117: =_xlfn.IFS(AND(R117="y",$D117="Local"), 1, AND(R117="y",$D117<>"Local"),20.7557554582461%, R117="","") -> 0.2075575546 | Y117: =_xlfn.IFS(AND(S117="y",$D117="Local"), 1, AND(S117="y",$D117<>"Local"),30.3499104327336%, S117="","") -> 0.3034991043 | Z117: =_xlfn.IFS(AND(T117="y",$D117="Local"), 1, AND(T117="y",$D117<>"Local"),29.0043833288201%, T117="","") -> 0.2900438333 | AA117: =_xlfn.IFS(AND(U117="y",$D117="Local"), 1, AND(U117="y",$D117<>"Local"),18.3998538156536%, U117="","") -> 0.1839985382 | AB117: 1 | AD117: 2922.034103 | AE117: 40701.3951 | AF117: 59515.23655 | AG117: 56876.69947 | AH117: 36081.54478
B118: 160,RP37441 | D118: District | E118: Urban South | F118: COUNCIL LAND BRISB-000/0080 ^04229 | I118: 0 | K118: 267.4558697 | L118: 233.0651411 | M118: 62334.64 | N118: 2016 | O118: =IFERROR(('General Input Sheet'!$G$38/(VLOOKUP(N118,'General Input Sheet'!$E$38:$G$44,3,FALSE))),1) -> 1 | P118: 62334.64 | Q118: y | R118: y | S118: y | T118: y | U118: y | W118: =_xlfn.IFS(AND(Q118="y",$D118="Local"), 1, AND(Q118="y",$D118<>"Local"),1.49009696454663%, Q118="","") -> 0.01490096965 | X118: =_xlfn.IFS(AND(R118="y",$D118="Local"), 1, AND(R118="y",$D118<>"Local"),20.7557554582461%, R118="","") -> 0.2075575546 | Y118: =_xlfn.IFS(AND(S118="y",$D118="Local"), 1, AND(S118="y",$D118<>"Local"),30.3499104327336%, S118="","") -> 0.3034991043 | Z118: =_xlfn.IFS(AND(T118="y",$D118="Local"), 1, AND(T118="y",$D118<>"Local"),29.0043833288201%, T118="","") -> 0.2900438333 | AA118: =_xlfn.IFS(AND(U118="y",$D118="Local"), 1, AND(U118="y",$D118<>"Local"),18.3998538156536%, U118="","") -> 0.1839985382 | AB118: 1 | AD118: 928.8465785 | AE118: 12938.02544 | AF118: 18918.50741 | AG118: 18079.77793 | AH118: 11469.48264
B119: 161,RP12933 | D119: District | E119: Urban East | F119: COUNCIL LAND BRISB-000/0017 ^08039 | I119: 0 | K119: 267.4235078 | L119: 730.8436405 | M119: 195444.77 | N119: 2016 | O119: =IFERROR(('General Input Sheet'!$G$38/(VLOOKUP(N119,'General Input Sheet'!$E$38:$G$44,3,FALSE))),1) -> 1 | P119: 195444.77 | Q119: y | R119: y | S119: y | T119: y | U119: y | W119: =_xlfn.IFS(AND(Q119="y",$D119="Local"), 1, AND(Q119="y",$D119<>"Local"),1.49009696454663%, Q119="","") -> 0.01490096965 | X119: =_xlfn.IFS(AND(R119="y",$D119="Local"), 1, AND(R119="y",$D119<>"Local"),20.7557554582461%, R119="","") -> 0.2075575546 | Y119: =_xlfn.IFS(AND(S119="y",$D119="Local"), 1, AND(S119="y",$D119<>"Local"),30.3499104327336%, S119="","") -> 0.3034991043 | Z119: =_xlfn.IFS(AND(T119="y",$D119="Local"), 1, AND(T119="y",$D119<>"Local"),29.0043833288201%, T119="","") -> 0.2900438333 | AA119: =_xlfn.IFS(AND(U119="y",$D119="Local"), 1, AND(U119="y",$D119<>"Local"),18.3998538156536%, U119="","") -> 0.1839985382 | AB119: 1 | AD119: 2912.316585 | AE119: 40566.03852 | AF119: 59317.31264 | AG119: 56687.55029 | AH119: 35961.55197
B120: 161,RP37441 | D120: District | E120: Urban South | F120: COUNCIL LAND BRISB-000/0012 ^06506 | I120: 0 | K120: 430.3791591 | L120: 266.6274553 | M120: 114750.9 | N120: 2016 | O120: =IFERROR(('General Input Sheet'!$G$38/(VLOOKUP(N120,'General Input Sheet'!$E$38:$G$44,3,FALSE))),1) -> 1 | P120: 114750.9 | Q120: y | R120: y | S120: y | T120: y | U120: y | W120: =_xlfn.IFS(AND(Q120="y",$D120="Local"), 1, AND(Q120="y",$D120<>"Local"),1.49009696454663%, Q120="","") -> 0.01490096965 | X120: =_xlfn.IFS(AND(R120="y",$D120="Local"), 1, AND(R120="y",$D120<>"Local"),20.7557554582461%, R120="","") -> 0.2075575546 | Y120: =_xlfn.IFS(AND(S120="y",$D120="Local"), 1, AND(S120="y",$D120<>"Local"),30.3499104327336%, S120="","") -> 0.3034991043 | Z120: =_xlfn.IFS(AND(T120="y",$D120="Local"), 1, AND(T120="y",$D120<>"Local"),29.0043833288201%, T120="","") -> 0.2900438333 | AA120: =_xlfn.IFS(AND(U120="y",$D120="Local"), 1, AND(U120="y",$D120<>"Local"),18.3998538156536%, U120="","") -> 0.1839985382 | AB120: 1 | AD120: 1709.899678 | AE120: 23817.41619 | AF120: 34826.79537 | AG120: 33282.79091 | AH120: 21113.99785
B121: 162,RP12933 | D121: District | E121: Urban East | F121: COUNCIL LAND BRISB-001/0019-4 ^08039 | I121: 0 | K121: 267.8495343 | L121: 727.506697 | M121: 194862.33 | N121: 2016 | O121: =IFERROR(('General Input Sheet'!$G$38/(VLOOKUP(N121,'General Input Sheet'!$E$38:$G$44,3,FALSE))),1) -> 1 | P121: 194862.33 | Q121: y | R121: y | S121: y | T121: y | U121: y | W121: =_xlfn.IFS(AND(Q121="y",$D121="Local"), 1, AND(Q121="y",$D121<>"Local"),1.49009696454663%, Q121="","") -> 0.01490096965 | X121: =_xlfn.IFS(AND(R121="y",$D121="Local"), 1, AND(R121="y",$D121<>"Local"),20.7557554582461%, R121="","") -> 0.2075575546 | Y121: =_xlfn.IFS(AND(S121="y",$D121="Local"), 1, AND(S121="y",$D121<>"Local"),30.3499104327336%, S121="","") -> 0.3034991043 | Z121: =_xlfn.IFS(AND(T121="y",$D121="Local"), 1, AND(T121="y",$D121<>"Local"),29.0043833288201%, T121="","") -> 0.2900438333 | AA121: =_xlfn.IFS(AND(U121="y",$D121="Local"), 1, AND(U121="y",$D121<>"Local"),18.3998538156536%, U121="","") -> 0.1839985382 | AB121: 1 | AD121: 2903.637664 | AE121: 40445.1487 | AF121: 59140.54262 | AG121: 56518.61716 | AH121: 35854.38386
B122: 163,RP12933 | D122: District | E122: Urban East | F122: COUNCIL LAND BRISB-000/0021 ^08039 | I122: 0 | K122: 268.2632888 | L122: 724.5007727 | M122: 194356.96 | N122: 2016 | O122: =IFERROR(('General Input Sheet'!$G$38/(VLOOKUP(N122,'General Input Sheet'!$E$38:$G$44,3,FALSE))),1) -> 1 | P122: 194356.96 | Q122: y | R122: y | S122: y | T122: y | U122: y | W122: =_xlfn.IFS(AND(Q122="y",$D122="Local"), 1, AND(Q122="y",$D122<>"Local"),1.49009696454663%, Q122="","") -> 0.01490096965 | X122: =_xlfn.IFS(AND(R122="y",$D122="Local"), 1, AND(R122="y",$D122<>"Local"),20.7557554582461%, R122="","") -> 0.2075575546 | Y122: =_xlfn.IFS(AND(S122="y",$D122="Local"), 1, AND(S122="y",$D122<>"Local"),30.3499104327336%, S122="","") -> 0.3034991043 | Z122: =_xlfn.IFS(AND(T122="y",$D122="Local"), 1, AND(T122="y",$D122<>"Local"),29.0043833288201%, T122="","") -> 0.2900438333 | AA122: =_xlfn.IFS(AND(U122="y",$D122="Local"), 1, AND(U122="y",$D122<>"Local"),18.3998538156536%, U122="","") -> 0.1839985382 | AB122: 1 | AD122: 2896.107161 | AE122: 40340.25533 | AF122: 58987.16328 | AG122: 56372.0377 | AH122: 35761.39652
B123: 163,SL2117 | D123: District | E123: Urban East | F123: OPENS SPACE LAND-002/0007-4 ^03256 COMMUNITY SERVICE/GROUP | G123: 56000 | H123: 3550 | I123: 45 | J123: 215750 | K123: 3511.424521 | L123: 115.5986346 | M123: 405915.88 | N123: 2016 | O123: =IFERROR(('General Input Sheet'!$G$38/(VLOOKUP(N123,'General Input Sheet'!$E$38:$G$44,3,FALSE))),1) -> 1 | P123: 621665.88 | Q123: y | R123: y | S123: y | T123: y | U123: y | W123: =_xlfn.IFS(AND(Q123="y",$D123="Local"), 1, AND(Q123="y",$D123<>"Local"),1.49009696454663%, Q123="","") -> 0.01490096965 | X123: =_xlfn.IFS(AND(R123="y",$D123="Local"), 1, AND(R123="y",$D123<>"Local"),20.7557554582461%, R123="","") -> 0.2075575546 | Y123: =_xlfn.IFS(AND(S123="y",$D123="Local"), 1, AND(S123="y",$D123<>"Local"),30.3499104327336%, S123="","") -> 0.3034991043 | Z123: =_xlfn.IFS(AND(T123="y",$D123="Local"), 1, AND(T123="y",$D123<>"Local"),29.0043833288201%, T123="","") -> 0.2900438333 | AA123: =_xlfn.IFS(AND(U123="y",$D123="Local"), 1, AND(U123="y",$D123<>"Local"),18.3998538156536%, U123="","") -> 0.1839985382 | AB123: 1 | AD123: 9263.424408 | AE123: 129031.4498 | AF123: 188675.0378 | AG123: 180310.3549 | AH123: 114385.6131
B124: 164,RP12933 | D124: District | E124: Urban East | F124: COUNCIL LAND BRISB-000/0023 ^08039 | I124: 0 | K124: 268.546111 | L124: 721.5914962 | M124: 193780.59 | N124: 2016 | O124: =IFERROR(('General Input Sheet'!$G$38/(VLOOKUP(N124,'General Input Sheet'!$E$38:$G$44,3,FALSE))),1) -> 1 | P124: 193780.59 | Q124: y | R124: y | S124: y | T124: y | U124: y | W124: =_xlfn.IFS(AND(Q124="y",$D124="Local"), 1, AND(Q124="y",$D124<>"Local"),1.49009696454663%, Q124="","") -> 0.01490096965 | X124: =_xlfn.IFS(AND(R124="y",$D124="Local"), 1, AND(R124="y",$D124<>"Local"),20.7557554582461%, R124="","") -> 0.2075575546 | Y124: =_xlfn.IFS(AND(S124="y",$D124="Local"), 1, AND(S124="y",$D124<>"Local"),30.3499104327336%, S124="","") -> 0.3034991043 | Z124: =_xlfn.IFS(AND(T124="y",$D124="Local"), 1, AND(T124="y",$D124<>"Local"),29.0043833288201%, T124="","") -> 0.2900438333 | AA124: =_xlfn.IFS(AND(U124="y",$D124="Local"), 1, AND(U124="y",$D124<>"Local"),18.3998538156536%, U124="","") -> 0.1839985382 | AB124: 1 | AD124: 2887.518689 | AE124: 40220.62539 | AF124: 58812.2355 | AG124: 56204.86514 | AH124: 35655.34528
B125: 164,RP33153 | D125: District | E125: Urban East | F125: COUNCIL LAND BRISB-002/0038-4 ^02661 | I125: 0 | K125: 402.7573733 | L125: 442.4500005 | M125: 178200 | N125: 2016 | O125: =IFERROR(('General Input Sheet'!$G$38/(VLOOKUP(N125,'General Input Sheet'!$E$38:$G$44,3,FALSE))),1) -> 1 | P125: 178200 | Q125: y | R125: y | S125: y | T125: y | U125: y | W125: =_xlfn.IFS(AND(Q125="y",$D125="Local"), 1, AND(Q125="y",$D125<>"Local"),1.49009696454663%, Q125="","") -> 0.01490096965 | X125: =_xlfn.IFS(AND(R125="y",$D125="Local"), 1, AND(R125="y",$D125<>"Local"),20.7557554582461%, R125="","") -> 0.2075575546 | Y125: =_xlfn.IFS(AND(S125="y",$D125="Local"), 1, AND(S125="y",$D125<>"Local"),30.3499104327336%, S125="","") -> 0.3034991043 | Z125: =_xlfn.IFS(AND(T125="y",$D125="Local"), 1, AND(T125="y",$D125<>"Local"),29.0043833288201%, T125="","") -> 0.2900438333 | AA125: =_xlfn.IFS(AND(U125="y",$D125="Local"), 1, AND(U125="y",$D125<>"Local"),18.3998538156536%, U125="","") -> 0.1839985382 | AB125: 1 | AD125: 2655.352791 | AE125: 36986.75623 | AF125: 54083.54039 | AG125: 51685.81109 | AH125: 32788.5395
B126: 164,SP237751 | D126: District | E126: Urban East | F126: 002/0028-4 ^07509.CARINA.NYRANG ST.0028 LIBRARY | G126: 56000 | H126: 2100 | I126: 45 | J126: 150500 | K126: 4365.646246 | L126: 104.2886584 | M126: 455287.39 | N126: 2016 | O126: =IFERROR(('General Input Sheet'!$G$38/(VLOOKUP(N126,'General Input Sheet'!$E$38:$G$44,3,FALSE))),1) -> 1 | P126: 605787.39 | Q126: y | R126: y | S126: y | T126: y | U126: y | W126: =_xlfn.IFS(AND(Q126="y",$D126="Local"), 1, AND(Q126="y",$D126<>"Local"),1.49009696454663%, Q126="","") -> 0.01490096965 | X126: =_xlfn.IFS(AND(R126="y",$D126="Local"), 1, AND(R126="y",$D126<>"Local"),20.7557554582461%, R126="","") -> 0.2075575546 | Y126: =_xlfn.IFS(AND(S126="y",$D126="Local"), 1, AND(S126="y",$D126<>"Local"),30.3499104327336%, S126="","") -> 0.3034991043 | Z126: =_xlfn.IFS(AND(T126="y",$D126="Local"), 1, AND(T126="y",$D126<>"Local"),29.0043833288201%, T126="","") -> 0.2900438333 | AA126: =_xlfn.IFS(AND(U126="y",$D126="Local"), 1, AND(U126="y",$D126<>"Local"),18.3998538156536%, U126="","") -> 0.1839985382 | AB126: 1 | AD126: 9026.81951 | AE126: 125735.7493 | AF126: 183855.9303 | AG126: 175704.8968 | AH126: 111463.9942
B127: 165,RP33153 | D127: District | E127: Urban East | F127: COUNCIL LAND BRISB-000/0036-A ^02661 | I127: 0 | K127: 401.9703521 | L127: 443.3162771 | M127: 178200 | N127: 2016 | O127: =IFERROR(('General Input Sheet'!$G$38/(VLOOKUP(N127,'General Input Sheet'!$E$38:$G$44,3,FALSE))),1) -> 1 | P127: 178200 | Q127: y | R127: y | S127: y | T127: y | U127: y | W127: =_xlfn.IFS(AND(Q127="y",$D127="Local"), 1, AND(Q127="y",$D127<>"Local"),1.49009696454663%, Q127="","") -> 0.01490096965 | X127: =_xlfn.IFS(AND(R127="y",$D127="Local"), 1, AND(R127="y",$D127<>"Local"),20.7557554582461%, R127="","") -> 0.2075575546 | Y127: =_xlfn.IFS(AND(S127="y",$D127="Local"), 1, AND(S127="y",$D127<>"Local"),30.3499104327336%, S127="","") -> 0.3034991043 | Z127: =_xlfn.IFS(AND(T127="y",$D127="Local"), 1, AND(T127="y",$D127<>"Local"),29.0043833288201%, T127="","") -> 0.2900438333 | AA127: =_xlfn.IFS(AND(U127="y",$D127="Local"), 1, AND(U127="y",$D127<>"Local"),18.3998538156536%, U127="","") -> 0.1839985382 | AB127: 1 | AD127: 2655.352791 | AE127: 36986.75623 | AF127: 54083.54039 | AG127: 51685.81109 | AH127: 32788.5395
B128: 166,RP33153 | D128: District | E128: Urban East | F128: COUNCIL LAND BRISB-001/0036-4 ^02661 | I128: 0 | K128: 401.204619 | L128: 444.1623839 | M128: 178200 | N128: 2016 | O128: =IFERROR(('General Input Sheet'!$G$38/(VLOOKUP(N128,'General Input Sheet'!$E$38:$G$44,3,FALSE))),1) -> 1 | P128: 178200 | Q128: y | R128: y | S128: y | T128: y | U128: y | W128: =_xlfn.IFS(AND(Q128="y",$D128="Local"), 1, AND(Q128="y",$D128<>"Local"),1.49009696454663%, Q128="","") -> 0.01490096965 | X128: =_xlfn.IFS(AND(R128="y",$D128="Local"), 1, AND(R128="y",$D128<>"Local"),20.7557554582461%, R128="","") -> 0.2075575546 | Y128: =_xlfn.IFS(AND(S128="y",$D128="Local"), 1, AND(S128="y",$D128<>"Local"),30.3499104327336%, S128="","") -> 0.3034991043 | Z128: =_xlfn.IFS(AND(T128="y",$D128="Local"), 1, AND(T128="y",$D128<>"Local"),29.0043833288201%, T128="","") -> 0.2900438333 | AA128: =_xlfn.IFS(AND(U128="y",$D128="Local"), 1, AND(U128="y",$D128<>"Local"),18.3998538156536%, U128="","") -> 0.1839985382 | AB128: 1 | AD128: 2655.352791 | AE128: 36986.75623 | AF128: 54083.54039 | AG128: 51685.81109 | AH128: 32788.5395
B129: 167,RP33153 | D129: District | E129: Urban East | F129: COUNCIL LAND BRISB-000/0034-A ^02661 | I129: 0 | K129: 400.4660063 | L129: 384.3022818 | M129: 153900 | N129: 2016 | O129: =IFERROR(('General Input Sheet'!$G$38/(VLOOKUP(N129,'General Input Sheet'!$E$38:$G$44,3,FALSE))),1) -> 1 | P129: 153900 | Q129: y | R129: y | S129: y | T129: y | U129: y | W129: =_xlfn.IFS(AND(Q129="y",$D129="Local"), 1, AND(Q129="y",$D129<>"Local"),1.49009696454663%, Q129="","") -> 0.01490096965 | X129: =_xlfn.IFS(AND(R129="y",$D129="Local"), 1, AND(R129="y",$D129<>"Local"),20.7557554582461%, R129="","") -> 0.2075575546 | Y129: =_xlfn.IFS(AND(S129="y",$D129="Local"), 1, AND(S129="y",$D129<>"Local"),30.3499104327336%, S129="","") -> 0.3034991043 | Z129: =_xlfn.IFS(AND(T129="y",$D129="Local"), 1, AND(T129="y",$D129<>"Local"),29.0043833288201%, T129="","") -> 0.2900438333 | AA129: =_xlfn.IFS(AND(U129="y",$D129="Local"), 1, AND(U129="y",$D129<>"Local"),18.3998538156536%, U129="","") -> 0.1839985382 | AB129: 1 | AD129: 2293.259228 | AE129: 31943.10765 | AF129: 46708.51216 | AG129: 44637.74594 | AH129: 28317.37502
B130: 168,RP33153 | D130: District | E130: Urban East | F130: COUNCIL LAND BRISB-000/0006 ^10652 | I130: 0 | K130: 204.8332259 | L130: 477.3893473 | M130: 97785.2 | N130: 2016 | O130: =IFERROR(('General Input Sheet'!$G$38/(VLOOKUP(N130,'General Input Sheet'!$E$38:$G$44,3,FALSE))),1) -> 1 | P130: 97785.2 | Q130: y | R130: y | S130: y | T130: y | U130: y | W130: =_xlfn.IFS(AND(Q130="y",$D130="Local"), 1, AND(Q130="y",$D130<>"Local"),1.49009696454663%, Q130="","") -> 0.01490096965 | X130: =_xlfn.IFS(AND(R130="y",$D130="Local"), 1, AND(R130="y",$D130<>"Local"),20.7557554582461%, R130="","") -> 0.2075575546 | Y130: =_xlfn.IFS(AND(S130="y",$D130="Local"), 1, AND(S130="y",$D130<>"Local"),30.3499104327336%, S130="","") -> 0.3034991043 | Z130: =_xlfn.IFS(AND(T130="y",$D130="Local"), 1, AND(T130="y",$D130<>"Local"),29.0043833288201%, T130="","") -> 0.2900438333 | AA130: =_xlfn.IFS(AND(U130="y",$D130="Local"), 1, AND(U130="y",$D130<>"Local"),18.3998538156536%, U130="","") -> 0.1839985382 | AB130: 1 | AD130: 1457.094297 | AE130: 20296.05699 | AF130: 29677.72062 | AG130: 28361.99425 | AH130: 17992.33385
B131: 169,RP33153 | D131: District | E131: Urban East | F131: COUNCIL LAND BRISB-000/0008 ^10652 | I131: 0 | K131: 207.2206812 | L131: 477.3719469 | M131: 98921.34 | N131: 2016 | O131: =IFERROR(('General Input Sheet'!$G$38/(VLOOKUP(N131,'General Input Sheet'!$E$38:$G$44,3,FALSE))),1) -> 1 | P131: 98921.34 | Q131: y | R131: y | S131: y | T131: y | U131: y | W131: =_xlfn.IFS(AND(Q131="y",$D131="Local"), 1, AND(Q131="y",$D131<>"Local"),1.49009696454663%, Q131="","") -> 0.01490096965 | X131: =_xlfn.IFS(AND(R131="y",$D131="Local"), 1, AND(R131="y",$D131<>"Local"),20.7557554582461%, R131="","") -> 0.2075575546 | Y131: =_xlfn.IFS(AND(S131="y",$D131="Local"), 1, AND(S131="y",$D131<>"Local"),30.3499104327336%, S131="","") -> 0.3034991043 | Z131: =_xlfn.IFS(AND(T131="y",$D131="Local"), 1, AND(T131="y",$D131<>"Local"),29.0043833288201%, T131="","") -> 0.2900438333 | AA131: =_xlfn.IFS(AND(U131="y",$D131="Local"), 1, AND(U131="y",$D131<>"Local"),18.3998538156536%, U131="","") -> 0.1839985382 | AB131: 1 | AD131: 1474.023885 | AE131: 20531.87143 | AF131: 30022.53809 | AG131: 28691.52465 | AH131: 18201.38195
B132: 17,RP12089 | D132: Local | E132: Urban South | F132: OPENS SPACE LAND-000/0040 ^03088 | I132: 0 | K132: 403.1814143 | L132: 387.5203183 | M132: 156240.99 | N132: 2016 | O132: =IFERROR(('General Input Sheet'!$G$38/(VLOOKUP(N132,'General Input Sheet'!$E$38:$G$44,3,FALSE))),1) -> 1 | P132: 156240.99 | Q132: =IF(OR(Q$9=$E132,$D132="Metropolitan",$D132="District"),"y","") ->  | T132: y | W132: =_xlfn.IFS(AND(Q132="y",$D132="Local"), 1, AND(Q132="y",$D132<>"Local"),1.49009696454663%, Q132="","") ->  | X132: =_xlfn.IFS(AND(R132="y",$D132="Local"), 1, AND(R132="y",$D132<>"Local"),20.7557554582461%, R132="","") ->  | Y132: =_xlfn.IFS(AND(S132="y",$D132="Local"), 1, AND(S132="y",$D132<>"Local"),30.3499104327336%, S132="","") ->  | Z132: =_xlfn.IFS(AND(T132="y",$D132="Local"), 1, AND(T132="y",$D132<>"Local"),29.0043833288201%, T132="","") -> 1 | AA132: =_xlfn.IFS(AND(U132="y",$D132="Local"), 1, AND(U132="y",$D132<>"Local"),18.3998538156536%, U132="","") ->  | AB132: 1 | AG132: 156240.99
B133: 17,RP23324 | D133: Local | E133: Urban West | F133: COUNCIL LAND BRISB-000/0186 ^06410 | I133: 0 | K133: 460.5147801 | L133: 767.3545242 | M133: 353378.1 | N133: 2016 | O133: =IFERROR(('General Input Sheet'!$G$38/(VLOOKUP(N133,'General Input Sheet'!$E$38:$G$44,3,FALSE))),1) -> 1 | P133: 353378.1 | U133: y | W133: =_xlfn.IFS(AND(Q133="y",$D133="Local"), 1, AND(Q133="y",$D133<>"Local"),1.49009696454663%, Q133="","") ->  | X133: =_xlfn.IFS(AND(R133="y",$D133="Local"), 1, AND(R133="y",$D133<>"Local"),20.7557554582461%, R133="","") ->  | Y133: =_xlfn.IFS(AND(S133="y",$D133="Local"), 1, AND(S133="y",$D133<>"Local"),30.3499104327336%, S133="","") ->  | Z133: =_xlfn.IFS(AND(T133="y",$D133="Local"), 1, AND(T133="y",$D133<>"Local"),29.0043833288201%, T133="","") ->  | AA133: =_xlfn.IFS(AND(U133="y",$D133="Local"), 1, AND(U133="y",$D133<>"Local"),18.3998538156536%, U133="","") -> 1 | AB133: 1 | AH133: 353378.1
B134: 17,RP37442 | D134: District | E134: Urban South | F134: OPENS SPACE LAND-000/1377 ^00901 | I134: 0 | K134: 612.2993447 | L134: 173.0744952 | M134: 105973.4 | N134: 2016 | O134: =IFERROR(('General Input Sheet'!$G$38/(VLOOKUP(N134,'General Input Sheet'!$E$38:$G$44,3,FALSE))),1) -> 1 | P134: 105973.4 | Q134: y | R134: y | S134: y | T134: y | U134: y | W134: =_xlfn.IFS(AND(Q134="y",$D134="Local"), 1, AND(Q134="y",$D134<>"Local"),1.49009696454663%, Q134="","") -> 0.01490096965 | X134: =_xlfn.IFS(AND(R134="y",$D134="Local"), 1, AND(R134="y",$D134<>"Local"),20.7557554582461%, R134="","") -> 0.2075575546 | Y134: =_xlfn.IFS(AND(S134="y",$D134="Local"), 1, AND(S134="y",$D134<>"Local"),30.3499104327336%, S134="","") -> 0.3034991043 | Z134: =_xlfn.IFS(AND(T134="y",$D134="Local"), 1, AND(T134="y",$D134<>"Local"),29.0043833288201%, T134="","") -> 0.2900438333 | AA134: =_xlfn.IFS(AND(U134="y",$D134="Local"), 1, AND(U134="y",$D134<>"Local"),18.3998538156536%, U134="","") -> 0.1839985382 | AB134: 1 | AD134: 1579.106417 | AE134: 21995.57975 | AF134: 32162.83198 | AG134: 30736.93116 | AH134: 19498.95068
B135: 170,RP33153 | D135: District | E135: Urban East | F135: COUNCIL LAND BRISB-000/0010 ^10652 | I135: 0 | K135: 150.8085198 | L135: 477.4545236 | M135: 72004.21 | N135: 2016 | O135: =IFERROR(('General Input Sheet'!$G$38/(VLOOKUP(N135,'General Input Sheet'!$E$38:$G$44,3,FALSE))),1) -> 1 | P135: 72004.21 | Q135: y | R135: y | S135: y | T135: y | U135: y | W135: =_xlfn.IFS(AND(Q135="y",$D135="Local"), 1, AND(Q135="y",$D135<>"Local"),1.49009696454663%, Q135="","") -> 0.01490096965 | X135: =_xlfn.IFS(AND(R135="y",$D135="Local"), 1, AND(R135="y",$D135<>"Local"),20.7557554582461%, R135="","") -> 0.2075575546 | Y135: =_xlfn.IFS(AND(S135="y",$D135="Local"), 1, AND(S135="y",$D135<>"Local"),30.3499104327336%, S135="","") -> 0.3034991043 | Z135: =_xlfn.IFS(AND(T135="y",$D135="Local"), 1, AND(T135="y",$D135<>"Local"),29.0043833288201%, T135="","") -> 0.2900438333 | AA135: =_xlfn.IFS(AND(U135="y",$D135="Local"), 1, AND(U135="y",$D135<>"Local"),18.3998538156536%, U135="","") -> 0.1839985382 | AB135: 1 | AD135: 1072.932548 | AE135: 14945.01775 | AF135: 21853.21324 | AG135: 20884.37708 | AH135: 13248.66938
B136: 177,RP68840 | D136: Local | E136: Urban East | F136: OPENS SPACE LAND-000/0026 ^00494 | I136: 0 | K136: 1744.909545 | L136: 151.1826219 | M136: 263800 | N136: 2016 | O136: =IFERROR(('General Input Sheet'!$G$38/(VLOOKUP(N136,'General Input Sheet'!$E$38:$G$44,3,FALSE))),1) -> 1 | P136: 263800 | R136: y | W136: =_xlfn.IFS(AND(Q136="y",$D136="Local"), 1, AND(Q136="y",$D136<>"Local"),1.49009696454663%, Q136="","") ->  | X136: =_xlfn.IFS(AND(R136="y",$D136="Local"), 1, AND(R136="y",$D136<>"Local"),20.7557554582461%, R136="","") -> 1 | Y136: =_xlfn.IFS(AND(S136="y",$D136="Local"), 1, AND(S136="y",$D136<>"Local"),30.3499104327336%, S136="","") ->  | Z136: =_xlfn.IFS(AND(T136="y",$D136="Local"), 1, AND(T136="y",$D136<>"Local"),29.0043833288201%, T136="","") ->  | AA136: =_xlfn.IFS(AND(U136="y",$D136="Local"), 1, AND(U136="y",$D136<>"Local"),18.3998538156536%, U136="","") ->  | AB136: 1 | AE136: 263800
B137: 178,RP33153 | D137: Local | E137: Urban East | F137: COUNCIL LAND BRISB-000/0026 ^10652 | I137: 0 | K137: 386.0633666 | L137: 477.4339809 | M137: 184319.77 | N137: 2016 | O137: =IFERROR(('General Input Sheet'!$G$38/(VLOOKUP(N137,'General Input Sheet'!$E$38:$G$44,3,FALSE))),1) -> 1 | P137: 184319.77 | R137: y | W137: =_xlfn.IFS(AND(Q137="y",$D137="Local"), 1, AND(Q137="y",$D137<>"Local"),1.49009696454663%, Q137="","") ->  | X137: =_xlfn.IFS(AND(R137="y",$D137="Local"), 1, AND(R137="y",$D137<>"Local"),20.7557554582461%, R137="","") -> 1 | Y137: =_xlfn.IFS(AND(S137="y",$D137="Local"), 1, AND(S137="y",$D137<>"Local"),30.3499104327336%, S137="","") ->  | Z137: =_xlfn.IFS(AND(T137="y",$D137="Local"), 1, AND(T137="y",$D137<>"Local"),29.0043833288201%, T137="","") ->  | AA137: =_xlfn.IFS(AND(U137="y",$D137="Local"), 1, AND(U137="y",$D137<>"Local"),18.3998538156536%, U137="","") ->  | AB137: 1 | AE137: 184319.77
B138: 179,RP33153 | D138: Local | E138: Urban East | F138: COUNCIL LAND BRISB-000/0028 ^10652 | I138: 0 | K138: 407.2528836 | L138: 477.3446864 | M138: 194400 | N138: 2016 | O138: =IFERROR(('General Input Sheet'!$G$38/(VLOOKUP(N138,'General Input Sheet'!$E$38:$G$44,3,FALSE))),1) -> 1 | P138: 194400 | R138: y | W138: =_xlfn.IFS(AND(Q138="y",$D138="Local"), 1, AND(Q138="y",$D138<>"Local"),1.49009696454663%, Q138="","") ->  | X138: =_xlfn.IFS(AND(R138="y",$D138="Local"), 1, AND(R138="y",$D138<>"Local"),20.7557554582461%, R138="","") -> 1 | Y138: =_xlfn.IFS(AND(S138="y",$D138="Local"), 1, AND(S138="y",$D138<>"Local"),30.3499104327336%, S138="","") ->  | Z138: =_xlfn.IFS(AND(T138="y",$D138="Local"), 1, AND(T138="y",$D138<>"Local"),29.0043833288201%, T138="","") ->  | AA138: =_xlfn.IFS(AND(U138="y",$D138="Local"), 1, AND(U138="y",$D138<>"Local"),18.3998538156536%, U138="","") ->  | AB138: 1 | AE138: 194400
B139: 18,RP19335 | D139: Local | E139: Urban North | F139: COUNCIL LAND BRISB-001/0014-4 ^06287 | I139: 0 | K139: 408.2916836 | L139: 595.1627471 | M139: 243000 | N139: 2016 | O139: =IFERROR(('General Input Sheet'!$G$38/(VLOOKUP(N139,'General Input Sheet'!$E$38:$G$44,3,FALSE))),1) -> 1 | P139: 243000 | S139: y | W139: =_xlfn.IFS(AND(Q139="y",$D139="Local"), 1, AND(Q139="y",$D139<>"Local"),1.49009696454663%, Q139="","") ->  | X139: =_xlfn.IFS(AND(R139="y",$D139="Local"), 1, AND(R139="y",$D139<>"Local"),20.7557554582461%, R139="","") ->  | Y139: =_xlfn.IFS(AND(S139="y",$D139="Local"), 1, AND(S139="y",$D139<>"Local"),30.3499104327336%, S139="","") -> 1 | Z139: =_xlfn.IFS(AND(T139="y",$D139="Local"), 1, AND(T139="y",$D139<>"Local"),29.0043833288201%, T139="","") ->  | AA139: =_xlfn.IFS(AND(U139="y",$D139="Local"), 1, AND(U139="y",$D139<>"Local"),18.3998538156536%, U139="","") ->  | AB139: 1 | AF139: 243000
B140: 18,RP37442 | D140: District | E140: Urban South | F140: OPENS SPACE LAND-000/1375 ^00901 | I140: 0 | K140: 531.6464487 | L140: 167.1871038 | M140: 88884.43 | N140: 2016 | O140: =IFERROR(('General Input Sheet'!$G$38/(VLOOKUP(N140,'General Input Sheet'!$E$38:$G$44,3,FALSE))),1) -> 1 | P140: 88884.43 | Q140: y | R140: y | S140: y | T140: y | U140: y | W140: =_xlfn.IFS(AND(Q140="y",$D140="Local"), 1, AND(Q140="y",$D140<>"Local"),1.49009696454663%, Q140="","") -> 0.01490096965 | X140: =_xlfn.IFS(AND(R140="y",$D140="Local"), 1, AND(R140="y",$D140<>"Local"),20.7557554582461%, R140="","") -> 0.2075575546 | Y140: =_xlfn.IFS(AND(S140="y",$D140="Local"), 1, AND(S140="y",$D140<>"Local"),30.3499104327336%, S140="","") -> 0.3034991043 | Z140: =_xlfn.IFS(AND(T140="y",$D140="Local"), 1, AND(T140="y",$D140<>"Local"),29.0043833288201%, T140="","") -> 0.2900438333 | AA140: =_xlfn.IFS(AND(U140="y",$D140="Local"), 1, AND(U140="y",$D140<>"Local"),18.3998538156536%, U140="","") -> 0.1839985382 | AB140: 1 | AD140: 1324.464193 | AE140: 18448.63493 | AF140: 26976.34489 | AG140: 25780.3808 | AH140: 16354.60518
B141: 180,RP33153 | D141: Local | E141: Urban East | F141: COUNCIL LAND BRISB-000/0030 ^10652 | I141: 0 | K141: 407.1883424 | L141: 397.8502897 | M141: 162000 | N141: 2016 | O141: =IFERROR(('General Input Sheet'!$G$38/(VLOOKUP(N141,'General Input Sheet'!$E$38:$G$44,3,FALSE))),1) -> 1 | P141: =J141+M141 -> 162000 | R141: y | W141: =_xlfn.IFS(AND(Q141="y",$D141="Local"), 1, AND(Q141="y",$D141<>"Local"),1.49009696454663%, Q141="","") ->  | X141: =_xlfn.IFS(AND(R141="y",$D141="Local"), 1, AND(R141="y",$D141<>"Local"),20.7557554582461%, R141="","") -> 1 | Y141: =_xlfn.IFS(AND(S141="y",$D141="Local"), 1, AND(S141="y",$D141<>"Local"),30.3499104327336%, S141="","") ->  | Z141: =_xlfn.IFS(AND(T141="y",$D141="Local"), 1, AND(T141="y",$D141<>"Local"),29.0043833288201%, T141="","") ->  | AA141: =_xlfn.IFS(AND(U141="y",$D141="Local"), 1, AND(U141="y",$D141<>"Local"),18.3998538156536%, U141="","") ->  | AB141: =SUM(W141:AA141) -> 1 | AD141: =IF(W141="","",(W141/$AB141)*$P141) ->  | AE141: =IF(X141="","",(X141/$AB141)*$P141) -> 162000 | AF141: =IF(Y141="","",(Y141/$AB141)*$P141) ->  | AG141: =IF(Z141="","",(Z141/$AB141)*$P141) ->  | AH141: =IF(AA141="","",(AA141/$AB141)*$P141) -> 
B142: 181,RP33153 | D142: Local | E142: Urban East | F142: COUNCIL LAND BRISB-000/0032 ^10652 | I142: =IFERROR((J142-G142)/H142,0) -> 0 | K142: 196.3670157 | L142: 477.4233578 | M142: 93750.2 | N142: 2016 | O142: =IFERROR(('General Input Sheet'!$G$38/(VLOOKUP(N142,'General Input Sheet'!$E$38:$G$44,3,FALSE))),1) -> 1 | P142: 93750.2 | R142: y | W142: =_xlfn.IFS(AND(Q142="y",$D142="Local"), 1, AND(Q142="y",$D142<>"Local"),1.49009696454663%, Q142="","") ->  | X142: =_xlfn.IFS(AND(R142="y",$D142="Local"), 1, AND(R142="y",$D142<>"Local"),20.7557554582461%, R142="","") -> 1 | Y142: =_xlfn.IFS(AND(S142="y",$D142="Local"), 1, AND(S142="y",$D142<>"Local"),30.3499104327336%, S142="","") ->  | Z142: =_xlfn.IFS(AND(T142="y",$D142="Local"), 1, AND(T142="y",$D142<>"Local"),29.0043833288201%, T142="","") ->  | AA142: =_xlfn.IFS(AND(U142="y",$D142="Local"), 1, AND(U142="y",$D142<>"Local"),18.3998538156536%, U142="","") ->  | AB142: 1 | AE142: 93750.2
B143: 181,RP33227 | D143: Local | E143: Urban East | F143: COUNCIL LAND BRISB-000/0062-A ^08502 | I143: 0 | K143: 0.008366740564 | L143: =IFERROR(M143/K143,0) -> 460.1552983 | M143: 3.85 | N143: 2016 | O143: =IFERROR(('General Input Sheet'!$G$38/(VLOOKUP(N143,'General Input Sheet'!$E$38:$G$44,3,FALSE))),1) -> 1 | P143: 3.85 | R143: y | W143: =_xlfn.IFS(AND(Q143="y",$D143="Local"), 1, AND(Q143="y",$D143<>"Local"),1.49009696454663%, Q143="","") ->  | X143: =_xlfn.IFS(AND(R143="y",$D143="Local"), 1, AND(R143="y",$D143<>"Local"),20.7557554582461%, R143="","") -> 1 | Y143: =_xlfn.IFS(AND(S143="y",$D143="Local"), 1, AND(S143="y",$D143<>"Local"),30.3499104327336%, S143="","") ->  | Z143: =_xlfn.IFS(AND(T143="y",$D143="Local"), 1, AND(T143="y",$D143<>"Local"),29.0043833288201%, T143="","") ->  | AA143: =_xlfn.IFS(AND(U143="y",$D143="Local"), 1, AND(U143="y",$D143<>"Local"),18.3998538156536%, U143="","") ->  | AB143: 1 | AE143: 3.85
B144: 182,RP33227 | D144: Local | E144: Urban East | F144: COUNCIL LAND BRISB-000/0064-A ^08502 | I144: 0 | K144: 0.4170056878 | L144: 459.1783891 | M144: 191.48 | N144: 2016 | O144: =IFERROR(('General Input Sheet'!$G$38/(VLOOKUP(N144,'General Input Sheet'!$E$38:$G$44,3,FALSE))),1) -> 1 | P144: 191.48 | R144: y | W144: =_xlfn.IFS(AND(Q144="y",$D144="Local"), 1, AND(Q144="y",$D144<>"Local"),1.49009696454663%, Q144="","") ->  | X144: =_xlfn.IFS(AND(R144="y",$D144="Local"), 1, AND(R144="y",$D144<>"Local"),20.7557554582461%, R144="","") -> 1 | Y144: =_xlfn.IFS(AND(S144="y",$D144="Local"), 1, AND(S144="y",$D144<>"Local"),30.3499104327336%, S144="","") ->  | Z144: =_xlfn.IFS(AND(T144="y",$D144="Local"), 1, AND(T144="y",$D144<>"Local"),29.0043833288201%, T144="","") ->  | AA144: =_xlfn.IFS(AND(U144="y",$D144="Local"), 1, AND(U144="y",$D144<>"Local"),18.3998538156536%, U144="","") ->  | AB144: 1 | AE144: 191.48
B145: 183,RP33227 | D145: Local | E145: Urban East | F145: COUNCIL LAND BRISB-000/0066-A ^08502 | I145: 0 | K145: 0.3874177547 | L145: 458.4456904 | M145: 177.61 | N145: 2016 | O145: =IFERROR(('General Input Sheet'!$G$38/(VLOOKUP(N145,'General Input Sheet'!$E$38:$G$44,3,FALSE))),1) -> 1 | P145: 177.61 | R145: y | W145: =_xlfn.IFS(AND(Q145="y",$D145="Local"), 1, AND(Q145="y",$D145<>"Local"),1.49009696454663%, Q145="","") ->  | X145: =_xlfn.IFS(AND(R145="y",$D145="Local"), 1, AND(R145="y",$D145<>"Local"),20.7557554582461%, R145="","") -> 1 | Y145: =_xlfn.IFS(AND(S145="y",$D145="Local"), 1, AND(S145="y",$D145<>"Local"),30.3499104327336%, S145="","") ->  | Z145: =_xlfn.IFS(AND(T145="y",$D145="Local"), 1, AND(T145="y",$D145<>"Local"),29.0043833288201%, T145="","") ->  | AA145: =_xlfn.IFS(AND(U145="y",$D145="Local"), 1, AND(U145="y",$D145<>"Local"),18.3998538156536%, U145="","") ->  | AB145: 1 | AE145: 177.61
B146: 189,RP87130 | D146: District | E146: Urban South | F146: OPENS SPACE LAND-000/0089 ^02584 COMMUNITY SERVICE/GROUP | G146: 56000 | H146: 7054 | I146: 45 | J146: 373430 | K146: 4514.182687 | L146: 43.69732766 | M146: 197257.72 | N146: 2016 | O146: =IFERROR(('General Input Sheet'!$G$38/(VLOOKUP(N146,'General Input Sheet'!$E$38:$G$44,3,FALSE))),1) -> 1 | P146: 570687.72 | Q146: y | R146: y | S146: y | T146: y | U146: y | W146: =_xlfn.IFS(AND(Q146="y",$D146="Local"), 1, AND(Q146="y",$D146<>"Local"),1.49009696454663%, Q146="","") -> 0.01490096965 | X146: =_xlfn.IFS(AND(R146="y",$D146="Local"), 1, AND(R146="y",$D146<>"Local"),20.7557554582461%, R146="","") -> 0.2075575546 | Y146: =_xlfn.IFS(AND(S146="y",$D146="Local"), 1, AND(S146="y",$D146<>"Local"),30.3499104327336%, S146="","") -> 0.3034991043 | Z146: =_xlfn.IFS(AND(T146="y",$D146="Local"), 1, AND(T146="y",$D146<>"Local"),29.0043833288201%, T146="","") -> 0.2900438333 | AA146: =_xlfn.IFS(AND(U146="y",$D146="Local"), 1, AND(U146="y",$D146<>"Local"),18.3998538156536%, U146="","") -> 0.1839985382 | AB146: 1 | AD146: 8503.800393 | AE146: 118450.5476 | AF146: 173203.2119 | AG146: 165524.4539 | AH146: 105005.7062
B147: 19,RP19335 | D147: Local | E147: Urban North | F147: COUNCIL LAND BRISB-000/0038 ^09702 | I147: 0 | K147: 190.590954 | L147: 536.1245005 | M147: 102180.48 | N147: 2016 | O147: =IFERROR(('General Input Sheet'!$G$38/(VLOOKUP(N147,'General Input Sheet'!$E$38:$G$44,3,FALSE))),1) -> 1 | P147: 102180.48 | S147: y | W147: =_xlfn.IFS(AND(Q147="y",$D147="Local"), 1, AND(Q147="y",$D147<>"Local"),1.49009696454663%, Q147="","") ->  | X147: =_xlfn.IFS(AND(R147="y",$D147="Local"), 1, AND(R147="y",$D147<>"Local"),20.7557554582461%, R147="","") ->  | Y147: =_xlfn.IFS(AND(S147="y",$D147="Local"), 1, AND(S147="y",$D147<>"Local"),30.3499104327336%, S147="","") -> 1 | Z147: =_xlfn.IFS(AND(T147="y",$D147="Local"), 1, AND(T147="y",$D147<>"Local"),29.0043833288201%, T147="","") ->  | AA147: =_xlfn.IFS(AND(U147="y",$D147="Local"), 1, AND(U147="y",$D147<>"Local"),18.3998538156536%, U147="","") ->  | AB147: 1 | AF147: 102180.48
B148: 19,RP37442 | D148: District | E148: Urban South | F148: OPENS SPACE LAND-000/1373 ^00901 | I148: 0 | K148: 424.0224273 | L148: 172.5218415 | M148: 73153.13 | N148: 2016 | O148: =IFERROR(('General Input Sheet'!$G$38/(VLOOKUP(N148,'General Input Sheet'!$E$38:$G$44,3,FALSE))),1) -> 1 | P148: 73153.13 | Q148: y | R148: y | S148: y | T148: y | U148: y | W148: =_xlfn.IFS(AND(Q148="y",$D148="Local"), 1, AND(Q148="y",$D148<>"Local"),1.49009696454663%, Q148="","") -> 0.01490096965 | X148: =_xlfn.IFS(AND(R148="y",$D148="Local"), 1, AND(R148="y",$D148<>"Local"),20.7557554582461%, R148="","") -> 0.2075575546 | Y148: =_xlfn.IFS(AND(S148="y",$D148="Local"), 1, AND(S148="y",$D148<>"Local"),30.3499104327336%, S148="","") -> 0.3034991043 | Z148: =_xlfn.IFS(AND(T148="y",$D148="Local"), 1, AND(T148="y",$D148<>"Local"),29.0043833288201%, T148="","") -> 0.2900438333 | AA148: =_xlfn.IFS(AND(U148="y",$D148="Local"), 1, AND(U148="y",$D148<>"Local"),18.3998538156536%, U148="","") -> 0.1839985382 | AB148: 1 | AD148: 1090.05257 | AE148: 15183.48477 | AF148: 22201.90943 | AG148: 21217.61424 | AH148: 13460.06898
B149: 192,RP118906 | D149: District | E149: Urban South | F149: COUNCIL LAND BRISB-000/0011-A ^13240 COMMUNITY SPACE | G149: 56000 | H149: 2900 | I149: 45 | J149: 186500 | K149: 2819.960321 | L149: 49.7454801 | M149: 140280.28 | N149: 2016 | O149: =IFERROR(('General Input Sheet'!$G$38/(VLOOKUP(N149,'General Input Sheet'!$E$38:$G$44,3,FALSE))),1) -> 1 | P149: 326780.28 | Q149: y | R149: y | S149: y | T149: y | U149: y | W149: =_xlfn.IFS(AND(Q149="y",$D149="Local"), 1, AND(Q149="y",$D149<>"Local"),1.49009696454663%, Q149="","") -> 0.01490096965 | X149: =_xlfn.IFS(AND(R149="y",$D149="Local"), 1, AND(R149="y",$D149<>"Local"),20.7557554582461%, R149="","") -> 0.2075575546 | Y149: =_xlfn.IFS(AND(S149="y",$D149="Local"), 1, AND(S149="y",$D149<>"Local"),30.3499104327336%, S149="","") -> 0.3034991043 | Z149: =_xlfn.IFS(AND(T149="y",$D149="Local"), 1, AND(T149="y",$D149<>"Local"),29.0043833288201%, T149="","") -> 0.2900438333 | AA149: =_xlfn.IFS(AND(U149="y",$D149="Local"), 1, AND(U149="y",$D149<>"Local"),18.3998538156536%, U149="","") -> 0.1839985382 | AB149: 1 | AD149: 4869.343033 | AE149: 67825.7158 | AF149: 99177.52229 | AG149: 94780.60505 | AH149: 60127.09382
B150: 195,RP33153 | D150: Local | E150: Urban East | F150: COUNCIL LAND BRISB-000/0032-A ^10652 | I150: 0 | K150: 46.36815736 | L150: 248.5041601 | M150: 11522.68 | N150: 2016 | O150: =IFERROR(('General Input Sheet'!$G$38/(VLOOKUP(N150,'General Input Sheet'!$E$38:$G$44,3,FALSE))),1) -> 1 | P150: 11522.68 | R150: y | W150: =_xlfn.IFS(AND(Q150="y",$D150="Local"), 1, AND(Q150="y",$D150<>"Local"),1.49009696454663%, Q150="","") ->  | X150: =_xlfn.IFS(AND(R150="y",$D150="Local"), 1, AND(R150="y",$D150<>"Local"),20.7557554582461%, R150="","") -> 1 | Y150: =_xlfn.IFS(AND(S150="y",$D150="Local"), 1, AND(S150="y",$D150<>"Local"),30.3499104327336%, S150="","") ->  | Z150: =_xlfn.IFS(AND(T150="y",$D150="Local"), 1, AND(T150="y",$D150<>"Local"),29.0043833288201%, T150="","") ->  | AA150: =_xlfn.IFS(AND(U150="y",$D150="Local"), 1, AND(U150="y",$D150<>"Local"),18.3998538156536%, U150="","") ->  | AB150: 1 | AE150: 11522.68
B151: 196,RP33153 | D151: Local | E151: Urban East | F151: COUNCIL LAND BRISB-000/0030-A ^10652 | I151: 0 | K151: 95.72781917 | L151: 298.2181172 | M151: 28547.77 | N151: 2016 | O151: =IFERROR(('General Input Sheet'!$G$38/(VLOOKUP(N151,'General Input Sheet'!$E$38:$G$44,3,FALSE))),1) -> 1 | P151: 28547.77 | R151: y | W151: =_xlfn.IFS(AND(Q151="y",$D151="Local"), 1, AND(Q151="y",$D151<>"Local"),1.49009696454663%, Q151="","") ->  | X151: =_xlfn.IFS(AND(R151="y",$D151="Local"), 1, AND(R151="y",$D151<>"Local"),20.7557554582461%, R151="","") -> 1 | Y151: =_xlfn.IFS(AND(S151="y",$D151="Local"), 1, AND(S151="y",$D151<>"Local"),30.3499104327336%, S151="","") ->  | Z151: =_xlfn.IFS(AND(T151="y",$D151="Local"), 1, AND(T151="y",$D151<>"Local"),29.0043833288201%, T151="","") ->  | AA151: =_xlfn.IFS(AND(U151="y",$D151="Local"), 1, AND(U151="y",$D151<>"Local"),18.3998538156536%, U151="","") ->  | AB151: 1 | AE151: 28547.77
B152: 197,RP33153 | D152: Local | E152: Urban East | F152: COUNCIL LAND BRISB-000/0028-A ^10652 | I152: 0 | K152: 95.73910113 | L152: 397.5756985 | M152: 38063.54 | N152: 2016 | O152: =IFERROR(('General Input Sheet'!$G$38/(VLOOKUP(N152,'General Input Sheet'!$E$38:$G$44,3,FALSE))),1) -> 1 | P152: 38063.54 | R152: y | W152: =_xlfn.IFS(AND(Q152="y",$D152="Local"), 1, AND(Q152="y",$D152<>"Local"),1.49009696454663%, Q152="","") ->  | X152: =_xlfn.IFS(AND(R152="y",$D152="Local"), 1, AND(R152="y",$D152<>"Local"),20.7557554582461%, R152="","") -> 1 | Y152: =_xlfn.IFS(AND(S152="y",$D152="Local"), 1, AND(S152="y",$D152<>"Local"),30.3499104327336%, S152="","") ->  | Z152: =_xlfn.IFS(AND(T152="y",$D152="Local"), 1, AND(T152="y",$D152<>"Local"),29.0043833288201%, T152="","") ->  | AA152: =_xlfn.IFS(AND(U152="y",$D152="Local"), 1, AND(U152="y",$D152<>"Local"),18.3998538156536%, U152="","") ->  | AB152: 1 | AE152: 38063.54
B153: 198,RP33153 | D153: Local | E153: Urban East | F153: COUNCIL LAND BRISB-000/0026-A ^10652 | I153: 0 | K153: 84.63279872 | L153: 268.4081153 | M153: 22716.13 | N153: 2016 | O153: =IFERROR(('General Input Sheet'!$G$38/(VLOOKUP(N153,'General Input Sheet'!$E$38:$G$44,3,FALSE))),1) -> 1 | P153: 22716.13 | R153: y | W153: =_xlfn.IFS(AND(Q153="y",$D153="Local"), 1, AND(Q153="y",$D153<>"Local"),1.49009696454663%, Q153="","") ->  | X153: =_xlfn.IFS(AND(R153="y",$D153="Local"), 1, AND(R153="y",$D153<>"Local"),20.7557554582461%, R153="","") -> 1 | Y153: =_xlfn.IFS(AND(S153="y",$D153="Local"), 1, AND(S153="y",$D153<>"Local"),30.3499104327336%, S153="","") ->  | Z153: =_xlfn.IFS(AND(T153="y",$D153="Local"), 1, AND(T153="y",$D153<>"Local"),29.0043833288201%, T153="","") ->  | AA153: =_xlfn.IFS(AND(U153="y",$D153="Local"), 1, AND(U153="y",$D153<>"Local"),18.3998538156536%, U153="","") ->  | AB153: 1 | AE153: 22716.13
B154: 199,RP46085 | D154: Local | E154: Urban South | F154: OPENS SPACE LAND-000/0108 ^10075 | I154: 0 | K154: 142.4183484 | L154: 294.9860777 | M154: 42011.43 | N154: 2016 | O154: =IFERROR(('General Input Sheet'!$G$38/(VLOOKUP(N154,'General Input Sheet'!$E$38:$G$44,3,FALSE))),1) -> 1 | P154: 42011.43 | T154: y | W154: =_xlfn.IFS(AND(Q154="y",$D154="Local"), 1, AND(Q154="y",$D154<>"Local"),1.49009696454663%, Q154="","") ->  | X154: =_xlfn.IFS(AND(R154="y",$D154="Local"), 1, AND(R154="y",$D154<>"Local"),20.7557554582461%, R154="","") ->  | Y154: =_xlfn.IFS(AND(S154="y",$D154="Local"), 1, AND(S154="y",$D154<>"Local"),30.3499104327336%, S154="","") ->  | Z154: =_xlfn.IFS(AND(T154="y",$D154="Local"), 1, AND(T154="y",$D154<>"Local"),29.0043833288201%, T154="","") -> 1 | AA154: =_xlfn.IFS(AND(U154="y",$D154="Local"), 1, AND(U154="y",$D154<>"Local"),18.3998538156536%, U154="","") ->  | AB154: 1 | AG154: 42011.43
B155: 2,RP106705 | D155: District | E155: Urban North | F155: COUNCIL LAND BRISB-000/0035-A ^05692 | I155: 0 | K155: 259.337883 | L155: 154.9366006 | M155: 40180.93 | N155: 2016 | O155: =IFERROR(('General Input Sheet'!$G$38/(VLOOKUP(N155,'General Input Sheet'!$E$38:$G$44,3,FALSE))),1) -> 1 | P155: 40180.93 | Q155: y | R155: y | S155: y | T155: y | U155: y | W155: =_xlfn.IFS(AND(Q155="y",$D155="Local"), 1, AND(Q155="y",$D155<>"Local"),1.49009696454663%, Q155="","") -> 0.01490096965 | X155: =_xlfn.IFS(AND(R155="y",$D155="Local"), 1, AND(R155="y",$D155<>"Local"),20.7557554582461%, R155="","") -> 0.2075575546 | Y155: =_xlfn.IFS(AND(S155="y",$D155="Local"), 1, AND(S155="y",$D155<>"Local"),30.3499104327336%, S155="","") -> 0.3034991043 | Z155: =_xlfn.IFS(AND(T155="y",$D155="Local"), 1, AND(T155="y",$D155<>"Local"),29.0043833288201%, T155="","") -> 0.2900438333 | AA155: =_xlfn.IFS(AND(U155="y",$D155="Local"), 1, AND(U155="y",$D155<>"Local"),18.3998538156536%, U155="","") -> 0.1839985382 | AB155: 1 | AD155: 598.7348183 | AE155: 8339.855572 | AF155: 12194.87627 | AG155: 11654.23096 | AH155: 7393.232382
B156: 2,RP109185 | D156: Local | E156: Urban North | F156: COUNCIL LAND BRISB-001/0026-4 ^08490 | I156: 0 | K156: 2163.115912 | L156: 94.66033645 | M156: 204761.28 | N156: 2016 | O156: =IFERROR(('General Input Sheet'!$G$38/(VLOOKUP(N156,'General Input Sheet'!$E$38:$G$44,3,FALSE))),1) -> 1 | P156: 204761.28 | S156: y | W156: =_xlfn.IFS(AND(Q156="y",$D156="Local"), 1, AND(Q156="y",$D156<>"Local"),1.49009696454663%, Q156="","") ->  | X156: =_xlfn.IFS(AND(R156="y",$D156="Local"), 1, AND(R156="y",$D156<>"Local"),20.7557554582461%, R156="","") ->  | Y156: =_xlfn.IFS(AND(S156="y",$D156="Local"), 1, AND(S156="y",$D156<>"Local"),30.3499104327336%, S156="","") -> 1 | Z156: =_xlfn.IFS(AND(T156="y",$D156="Local"), 1, AND(T156="y",$D156<>"Local"),29.0043833288201%, T156="","") ->  | AA156: =_xlfn.IFS(AND(U156="y",$D156="Local"), 1, AND(U156="y",$D156<>"Local"),18.3998538156536%, U156="","") ->  | AB156: 1 | AF156: 204761.28
B157: 2,RP109591 | D157: Local | E157: Urban West | F157: OPENS SPACE LAND-000/0020 ^04918 | I157: 0 | K157: 273.7418206 | L157: 326.7646858 | M157: 89449.16 | N157: 2016 | O157: =IFERROR(('General Input Sheet'!$G$38/(VLOOKUP(N157,'General Input Sheet'!$E$38:$G$44,3,FALSE))),1) -> 1 | P157: 89449.16 | U157: y | W157: =_xlfn.IFS(AND(Q157="y",$D157="Local"), 1, AND(Q157="y",$D157<>"Local"),1.49009696454663%, Q157="","") ->  | X157: =_xlfn.IFS(AND(R157="y",$D157="Local"), 1, AND(R157="y",$D157<>"Local"),20.7557554582461%, R157="","") ->  | Y157: =_xlfn.IFS(AND(S157="y",$D157="Local"), 1, AND(S157="y",$D157<>"Local"),30.3499104327336%, S157="","") ->  | Z157: =_xlfn.IFS(AND(T157="y",$D157="Local"), 1, AND(T157="y",$D157<>"Local"),29.0043833288201%, T157="","") ->  | AA157: =_xlfn.IFS(AND(U157="y",$D157="Local"), 1, AND(U157="y",$D157<>"Local"),18.3998538156536%, U157="","") -> 1 | AB157: 1 | AH157: 89449.16
B158: 2,RP113351 | D158: District | E158: Urban South | F158: OPENS SPACE LAND-000/0069 ^07275 COMMUNITY SERVICE/GROUP | G158: 56000 | H158: 2900 | I158: 45 | J158: 186500 | K158: 5965.722228 | L158: 80.99575736 | M158: 483198.19 | N158: 2016 | O158: =IFERROR(('General Input Sheet'!$G$38/(VLOOKUP(N158,'General Input Sheet'!$E$38:$G$44,3,FALSE))),1) -> 1 | P158: 669698.19 | Q158: y | R158: y | S158: y | T158: y | U158: y | W158: =_xlfn.IFS(AND(Q158="y",$D158="Local"), 1, AND(Q158="y",$D158<>"Local"),1.49009696454663%, Q158="","") -> 0.01490096965 | X158: =_xlfn.IFS(AND(R158="y",$D158="Local"), 1, AND(R158="y",$D158<>"Local"),20.7557554582461%, R158="","") -> 0.2075575546 | Y158: =_xlfn.IFS(AND(S158="y",$D158="Local"), 1, AND(S158="y",$D158<>"Local"),30.3499104327336%, S158="","") -> 0.3034991043 | Z158: =_xlfn.IFS(AND(T158="y",$D158="Local"), 1, AND(T158="y",$D158<>"Local"),29.0043833288201%, T158="","") -> 0.2900438333 | AA158: =_xlfn.IFS(AND(U158="y",$D158="Local"), 1, AND(U158="y",$D158<>"Local"),18.3998538156536%, U158="","") -> 0.1839985382 | AB158: 1 | AD158: 9979.152401 | AE158: 139000.9186 | AF158: 203252.8008 | AG158: 194241.8302 | AH158: 123223.488
B159: 2,RP116000 | D159: District | E159: Urban West | F159: COUNCIL LAND BRISB-000/0247 ^02793 | I159: 0 | K159: 4569.771149 | L159: 10.01929605 | M159: 45785.89 | N159: 2016 | O159: =IFERROR(('General Input Sheet'!$G$38/(VLOOKUP(N159,'General Input Sheet'!$E$38:$G$44,3,FALSE))),1) -> 1 | P159: 45785.89 | Q159: y | R159: y | S159: y | T159: y | U159: y | W159: =_xlfn.IFS(AND(Q159="y",$D159="Local"), 1, AND(Q159="y",$D159<>"Local"),1.49009696454663%, Q159="","") -> 0.01490096965 | X159: =_xlfn.IFS(AND(R159="y",$D159="Local"), 1, AND(R159="y",$D159<>"Local"),20.7557554582461%, R159="","") -> 0.2075575546 | Y159: =_xlfn.IFS(AND(S159="y",$D159="Local"), 1, AND(S159="y",$D159<>"Local"),30.3499104327336%, S159="","") -> 0.3034991043 | Z159: =_xlfn.IFS(AND(T159="y",$D159="Local"), 1, AND(T159="y",$D159<>"Local"),29.0043833288201%, T159="","") -> 0.2900438333 | AA159: =_xlfn.IFS(AND(U159="y",$D159="Local"), 1, AND(U159="y",$D159<>"Local"),18.3998538156536%, U159="","") -> 0.1839985382 | AB159: 1 | AD159: 682.2541571 | AE159: 9503.207363 | AF159: 13895.97661 | AG159: 13279.91505 | AH159: 8424.536828
B160: 2,RP116686 | D160: District | E160: Urban West | F160: COUNCIL LAND BRISB-000/0014 ^05340-JOSLING ST. | I160: 0 | K160: 3161.033271 | L160: 150.4593496 | M160: 475607.01 | N160: 2016 | O160: =IFERROR(('General Input Sheet'!$G$38/(VLOOKUP(N160,'General Input Sheet'!$E$38:$G$44,3,FALSE))),1) -> 1 | P160: 475607.01 | Q160: y | R160: y | S160: y | T160: y | U160: y | W160: =_xlfn.IFS(AND(Q160="y",$D160="Local"), 1, AND(Q160="y",$D160<>"Local"),1.49009696454663%, Q160="","") -> 0.01490096965 | X160: =_xlfn.IFS(AND(R160="y",$D160="Local"), 1, AND(R160="y",$D160<>"Local"),20.7557554582461%, R160="","") -> 0.2075575546 | Y160: =_xlfn.IFS(AND(S160="y",$D160="Local"), 1, AND(S160="y",$D160<>"Local"),30.3499104327336%, S160="","") -> 0.3034991043 | Z160: =_xlfn.IFS(AND(T160="y",$D160="Local"), 1, AND(T160="y",$D160<>"Local"),29.0043833288201%, T160="","") -> 0.2900438333 | AA160: =_xlfn.IFS(AND(U160="y",$D160="Local"), 1, AND(U160="y",$D160<>"Local"),18.3998538156536%, U160="","") -> 0.1839985382 | AB160: 1 | AD160: 7087.005619 | AE160: 98715.82794 | AF160: 144346.3015 | AG160: 137946.8803 | AH160: 87510.99458
B161: 2,RP118649 | D161: Local | E161: Urban North | F161: OPENS SPACE LAND-001/0356-4 ^08576 | I161: 0 | K161: 856.7415506 | L161: 49.67905428 | M161: 42562.11 | N161: 2016 | O161: =IFERROR(('General Input Sheet'!$G$38/(VLOOKUP(N161,'General Input Sheet'!$E$38:$G$44,3,FALSE))),1) -> 1 | P161: 42562.11 | S161: y | W161: =_xlfn.IFS(AND(Q161="y",$D161="Local"), 1, AND(Q161="y",$D161<>"Local"),1.49009696454663%, Q161="","") ->  | X161: =_xlfn.IFS(AND(R161="y",$D161="Local"), 1, AND(R161="y",$D161<>"Local"),20.7557554582461%, R161="","") ->  | Y161: =_xlfn.IFS(AND(S161="y",$D161="Local"), 1, AND(S161="y",$D161<>"Local"),30.3499104327336%, S161="","") -> 1 | Z161: =_xlfn.IFS(AND(T161="y",$D161="Local"), 1, AND(T161="y",$D161<>"Local"),29.0043833288201%, T161="","") ->  | AA161: =_xlfn.IFS(AND(U161="y",$D161="Local"), 1, AND(U161="y",$D161<>"Local"),18.3998538156536%, U161="","") ->  | AB161: 1 | AF161: 42562.11
B162: 2,RP121595 | D162: Local | E162: Urban West | F162: COUNCIL LAND BRISB-000/0693 ^03708 | I162: 0 | K162: 633.5288634 | L162: 269.6798991 | M162: 170850 | N162: 2016 | O162: =IFERROR(('General Input Sheet'!$G$38/(VLOOKUP(N162,'General Input Sheet'!$E$38:$G$44,3,FALSE))),1) -> 1 | P162: 170850 | U162: y | W162: =_xlfn.IFS(AND(Q162="y",$D162="Local"), 1, AND(Q162="y",$D162<>"Local"),1.49009696454663%, Q162="","") ->  | X162: =_xlfn.IFS(AND(R162="y",$D162="Local"), 1, AND(R162="y",$D162<>"Local"),20.7557554582461%, R162="","") ->  | Y162: =_xlfn.IFS(AND(S162="y",$D162="Local"), 1, AND(S162="y",$D162<>"Local"),30.3499104327336%, S162="","") ->  | Z162: =_xlfn.IFS(AND(T162="y",$D162="Local"), 1, AND(T162="y",$D162<>"Local"),29.0043833288201%, T162="","") ->  | AA162: =_xlfn.IFS(AND(U162="y",$D162="Local"), 1, AND(U162="y",$D162<>"Local"),18.3998538156536%, U162="","") -> 1 | AB162: 1 | AH162: 170850
B163: 2,RP134931 | D163: Local | E163: Urban North | F163: COUNCIL LAND BRISB-000/0080 ^08938 | I163: 0 | K163: 4065.728301 | L163: 90.19307313 | M163: 366700.53 | N163: 2016 | O163: =IFERROR(('General Input Sheet'!$G$38/(VLOOKUP(N163,'General Input Sheet'!$E$38:$G$44,3,FALSE))),1) -> 1 | P163: 366700.53 | S163: y | W163: =_xlfn.IFS(AND(Q163="y",$D163="Local"), 1, AND(Q163="y",$D163<>"Local"),1.49009696454663%, Q163="","") ->  | X163: =_xlfn.IFS(AND(R163="y",$D163="Local"), 1, AND(R163="y",$D163<>"Local"),20.7557554582461%, R163="","") ->  | Y163: =_xlfn.IFS(AND(S163="y",$D163="Local"), 1, AND(S163="y",$D163<>"Local"),30.3499104327336%, S163="","") -> 1 | Z163: =_xlfn.IFS(AND(T163="y",$D163="Local"), 1, AND(T163="y",$D163<>"Local"),29.0043833288201%, T163="","") ->  | AA163: =_xlfn.IFS(AND(U163="y",$D163="Local"), 1, AND(U163="y",$D163<>"Local"),18.3998538156536%, U163="","") ->  | AB163: 1 | AF163: 366700.53
B164: 2,RP165926 | D164: Local | E164: Urban North | F164: COUNCIL LAND BRISB-000/0100 ^03703 | I164: 0 | K164: 912.2201131 | L164: 31.26131467 | M164: 28517.2 | N164: 2016 | O164: =IFERROR(('General Input Sheet'!$G$38/(VLOOKUP(N164,'General Input Sheet'!$E$38:$G$44,3,FALSE))),1) -> 1 | P164: 28517.2 | S164: y | W164: =_xlfn.IFS(AND(Q164="y",$D164="Local"), 1, AND(Q164="y",$D164<>"Local"),1.49009696454663%, Q164="","") ->  | X164: =_xlfn.IFS(AND(R164="y",$D164="Local"), 1, AND(R164="y",$D164<>"Local"),20.7557554582461%, R164="","") ->  | Y164: =_xlfn.IFS(AND(S164="y",$D164="Local"), 1, AND(S164="y",$D164<>"Local"),30.3499104327336%, S164="","") -> 1 | Z164: =_xlfn.IFS(AND(T164="y",$D164="Local"), 1, AND(T164="y",$D164<>"Local"),29.0043833288201%, T164="","") ->  | AA164: =_xlfn.IFS(AND(U164="y",$D164="Local"), 1, AND(U164="y",$D164<>"Local"),18.3998538156536%, U164="","") ->  | AB164: 1 | AF164: 28517.2
B165: 2,RP165988 | D165: District | E165: Urban North | F165: OPENS SPACE LAND-000/0130 ^08981 | I165: 0 | K165: 1190.638327 | L165: 3.169451138 | M165: 3773.67 | N165: 2016 | O165: =IFERROR(('General Input Sheet'!$G$38/(VLOOKUP(N165,'General Input Sheet'!$E$38:$G$44,3,FALSE))),1) -> 1 | P165: 3773.67 | Q165: y | R165: y | S165: y | T165: y | U165: y | W165: =_xlfn.IFS(AND(Q165="y",$D165="Local"), 1, AND(Q165="y",$D165<>"Local"),1.49009696454663%, Q165="","") -> 0.01490096965 | X165: =_xlfn.IFS(AND(R165="y",$D165="Local"), 1, AND(R165="y",$D165<>"Local"),20.7557554582461%, R165="","") -> 0.2075575546 | Y165: =_xlfn.IFS(AND(S165="y",$D165="Local"), 1, AND(S165="y",$D165<>"Local"),30.3499104327336%, S165="","") -> 0.3034991043 | Z165: =_xlfn.IFS(AND(T165="y",$D165="Local"), 1, AND(T165="y",$D165<>"Local"),29.0043833288201%, T165="","") -> 0.2900438333 | AA165: =_xlfn.IFS(AND(U165="y",$D165="Local"), 1, AND(U165="y",$D165<>"Local"),18.3998538156536%, U165="","") -> 0.1839985382 | AB165: 1 | AD165: 56.23134212 | AE165: 783.253717 | AF165: 1145.305465 | AG165: 1094.529712 | AH165: 694.3497635
B166: 2,RP181938 | D166: District | E166: Urban South | F166: COUNCIL LAND BRISB-001/0446-4 ^00926 | I166: 0 | K166: 2305.268086 | L166: 4.711460705 | M166: 10861.18 | N166: 2016 | O166: =IFERROR(('General Input Sheet'!$G$38/(VLOOKUP(N166,'General Input Sheet'!$E$38:$G$44,3,FALSE))),1) -> 1 | P166: 10861.18 | Q166: y | R166: y | S166: y | T166: y | U166: y | W166: =_xlfn.IFS(AND(Q166="y",$D166="Local"), 1, AND(Q166="y",$D166<>"Local"),1.49009696454663%, Q166="","") -> 0.01490096965 | X166: =_xlfn.IFS(AND(R166="y",$D166="Local"), 1, AND(R166="y",$D166<>"Local"),20.7557554582461%, R166="","") -> 0.2075575546 | Y166: =_xlfn.IFS(AND(S166="y",$D166="Local"), 1, AND(S166="y",$D166<>"Local"),30.3499104327336%, S166="","") -> 0.3034991043 | Z166: =_xlfn.IFS(AND(T166="y",$D166="Local"), 1, AND(T166="y",$D166<>"Local"),29.0043833288201%, T166="","") -> 0.2900438333 | AA166: =_xlfn.IFS(AND(U166="y",$D166="Local"), 1, AND(U166="y",$D166<>"Local"),18.3998538156536%, U166="","") -> 0.1839985382 | AB166: 1 | AD166: 161.8421135 | AE166: 2254.319961 | AF166: 3296.358402 | AG166: 3150.218281 | AH166: 1998.441243
B167: 2,RP18399 | D167: District | E167: Urban West | F167: COUNCIL LAND BRISB-000/0095 ^05059 | I167: 0 | K167: 2505.041292 | L167: 22.72633197 | M167: 56930.4 | N167: 2016 | O167: =IFERROR(('General Input Sheet'!$G$38/(VLOOKUP(N167,'General Input Sheet'!$E$38:$G$44,3,FALSE))),1) -> 1 | P167: 56930.4 | Q167: y | R167: y | S167: y | T167: y | U167: y | W167: =_xlfn.IFS(AND(Q167="y",$D167="Local"), 1, AND(Q167="y",$D167<>"Local"),1.49009696454663%, Q167="","") -> 0.01490096965 | X167: =_xlfn.IFS(AND(R167="y",$D167="Local"), 1, AND(R167="y",$D167<>"Local"),20.7557554582461%, R167="","") -> 0.2075575546 | Y167: =_xlfn.IFS(AND(S167="y",$D167="Local"), 1, AND(S167="y",$D167<>"Local"),30.3499104327336%, S167="","") -> 0.3034991043 | Z167: =_xlfn.IFS(AND(T167="y",$D167="Local"), 1, AND(T167="y",$D167<>"Local"),29.0043833288201%, T167="","") -> 0.2900438333 | AA167: =_xlfn.IFS(AND(U167="y",$D167="Local"), 1, AND(U167="y",$D167<>"Local"),18.3998538156536%, U167="","") -> 0.1839985382 | AB167: 1 | AD167: 848.3181623 | AE167: 11816.33461 | AF167: 17278.32541 | AG167: 16512.31145 | AH167: 10475.11038
B168: 2,RP19334 | D168: Local | E168: Urban North | F168: COUNCIL LAND BRISB-000/0044-A ^09702 | I168: 0 | K168: 304.6436129 | L168: 235.0648659 | M168: 71611.01 | N168: 2016 | O168: =IFERROR(('General Input Sheet'!$G$38/(VLOOKUP(N168,'General Input Sheet'!$E$38:$G$44,3,FALSE))),1) -> 1 | P168: 71611.01 | S168: y | W168: =_xlfn.IFS(AND(Q168="y",$D168="Local"), 1, AND(Q168="y",$D168<>"Local"),1.49009696454663%, Q168="","") ->  | X168: =_xlfn.IFS(AND(R168="y",$D168="Local"), 1, AND(R168="y",$D168<>"Local"),20.7557554582461%, R168="","") ->  | Y168: =_xlfn.IFS(AND(S168="y",$D168="Local"), 1, AND(S168="y",$D168<>"Local"),30.3499104327336%, S168="","") -> 1 | Z168: =_xlfn.IFS(AND(T168="y",$D168="Local"), 1, AND(T168="y",$D168<>"Local"),29.0043833288201%, T168="","") ->  | AA168: =_xlfn.IFS(AND(U168="y",$D168="Local"), 1, AND(U168="y",$D168<>"Local"),18.3998538156536%, U168="","") ->  | AB168: 1 | AF168: 71611.01
B169: 2,RP23621 | D169: Metropolitan | E169: Fringe | F169: COUNCIL LAND BRISB-000/0407 ^02048 | I169: 0 | K169: 3698.907951 | L169: 4.811487671 | M169: 17797.25 | N169: 2016 | O169: =IFERROR(('General Input Sheet'!$G$38/(VLOOKUP(N169,'General Input Sheet'!$E$38:$G$44,3,FALSE))),1) -> 1 | P169: 17797.25 | Q169: y | R169: y | S169: y | T169: y | U169: y | W169: =_xlfn.IFS(AND(Q169="y",$D169="Local"), 1, AND(Q169="y",$D169<>"Local"),1.49009696454663%, Q169="","") -> 0.01490096965 | X169: =_xlfn.IFS(AND(R169="y",$D169="Local"), 1, AND(R169="y",$D169<>"Local"),20.7557554582461%, R169="","") -> 0.2075575546 | Y169: =_xlfn.IFS(AND(S169="y",$D169="Local"), 1, AND(S169="y",$D169<>"Local"),30.3499104327336%, S169="","") -> 0.3034991043 | Z169: =_xlfn.IFS(AND(T169="y",$D169="Local"), 1, AND(T169="y",$D169<>"Local"),29.0043833288201%, T169="","") -> 0.2900438333 | AA169: =_xlfn.IFS(AND(U169="y",$D169="Local"), 1, AND(U169="y",$D169<>"Local"),18.3998538156536%, U169="","") -> 0.1839985382 | AB169: 1 | AD169: 265.196282 | AE169: 3693.953688 | AF169: 5401.449434 | AG169: 5161.982612 | AH169: 3274.667983
B170: 2,RP33074 | D170: Local | E170: Urban East | F170: COUNCIL LAND BRISB-000/0053 ^04346 | I170: 0 | K170: 1568.828837 | L170: 229.8853141 | M170: 360650.71 | N170: 2016 | O170: =IFERROR(('General Input Sheet'!$G$38/(VLOOKUP(N170,'General Input Sheet'!$E$38:$G$44,3,FALSE))),1) -> 1 | P170: 360650.71 | R170: y | W170: =_xlfn.IFS(AND(Q170="y",$D170="Local"), 1, AND(Q170="y",$D170<>"Local"),1.49009696454663%, Q170="","") ->  | X170: =_xlfn.IFS(AND(R170="y",$D170="Local"), 1, AND(R170="y",$D170<>"Local"),20.7557554582461%, R170="","") -> 1 | Y170: =_xlfn.IFS(AND(S170="y",$D170="Local"), 1, AND(S170="y",$D170<>"Local"),30.3499104327336%, S170="","") ->  | Z170: =_xlfn.IFS(AND(T170="y",$D170="Local"), 1, AND(T170="y",$D170<>"Local"),29.0043833288201%, T170="","") ->  | AA170: =_xlfn.IFS(AND(U170="y",$D170="Local"), 1, AND(U170="y",$D170<>"Local"),18.3998538156536%, U170="","") ->  | AB170: 1 | AE170: 360650.71
B171: 2,RP33564 | D171: Local | E171: Urban North | F171: COUNCIL LAND BRISB-000/0069 ^02599 COMMUNITY SERVICE/GROUP | G171: 56000 | H171: 750 | I171: 45 | J171: 89750 | K171: 701.7513071 | L171: 297.488965 | M171: 208763.27 | N171: 2016 | O171: =IFERROR(('General Input Sheet'!$G$38/(VLOOKUP(N171,'General Input Sheet'!$E$38:$G$44,3,FALSE))),1) -> 1 | P171: 298513.27 | S171: y | W171: =_xlfn.IFS(AND(Q171="y",$D171="Local"), 1, AND(Q171="y",$D171<>"Local"),1.49009696454663%, Q171="","") ->  | X171: =_xlfn.IFS(AND(R171="y",$D171="Local"), 1, AND(R171="y",$D171<>"Local"),20.7557554582461%, R171="","") ->  | Y171: =_xlfn.IFS(AND(S171="y",$D171="Local"), 1, AND(S171="y",$D171<>"Local"),30.3499104327336%, S171="","") -> 1 | Z171: =_xlfn.IFS(AND(T171="y",$D171="Local"), 1, AND(T171="y",$D171<>"Local"),29.0043833288201%, T171="","") ->  | AA171: =_xlfn.IFS(AND(U171="y",$D171="Local"), 1, AND(U171="y",$D171<>"Local"),18.3998538156536%, U171="","") ->  | AB171: 1 | AF171: 298513.27
B172: 2,RP33818 | D172: District | E172: Urban North | F172: OPENS SPACE LAND-000/0061 ^01048 COMMUNITY SERVICE/GROUP | G172: 56000 | H172: 905 | I172: 45 | J172: 96725 | K172: 1162.852444 | L172: 19.80230607 | M172: 23027.16 | N172: 2016 | O172: =IFERROR(('General Input Sheet'!$G$38/(VLOOKUP(N172,'General Input Sheet'!$E$38:$G$44,3,FALSE))),1) -> 1 | P172: 119752.16 | Q172: y | R172: y | S172: y | T172: y | U172: y | W172: =_xlfn.IFS(AND(Q172="y",$D172="Local"), 1, AND(Q172="y",$D172<>"Local"),1.49009696454663%, Q172="","") -> 0.01490096965 | X172: =_xlfn.IFS(AND(R172="y",$D172="Local"), 1, AND(R172="y",$D172<>"Local"),20.7557554582461%, R172="","") -> 0.2075575546 | Y172: =_xlfn.IFS(AND(S172="y",$D172="Local"), 1, AND(S172="y",$D172<>"Local"),30.3499104327336%, S172="","") -> 0.3034991043 | Z172: =_xlfn.IFS(AND(T172="y",$D172="Local"), 1, AND(T172="y",$D172<>"Local"),29.0043833288201%, T172="","") -> 0.2900438333 | AA172: =_xlfn.IFS(AND(U172="y",$D172="Local"), 1, AND(U172="y",$D172<>"Local"),18.3998538156536%, U172="","") -> 0.1839985382 | AB172: 1 | AD172: 1784.423301 | AE172: 24855.46549 | AF172: 36344.6733 | AG172: 34733.37553 | AH172: 22034.22238
B173: 2,RP37387 | D173: District | E173: Urban South | F173: OPENS SPACE LAND-001/1490-4 ^00926 COMMUNITY SERVICE/GROUP | G173: 56000 | H173: 1670 | I173: 45 | J173: 131150 | K173: 2675.581035 | L173: 102.5762279 | M173: 274451.01 | N173: 2016 | O173: =IFERROR(('General Input Sheet'!$G$38/(VLOOKUP(N173,'General Input Sheet'!$E$38:$G$44,3,FALSE))),1) -> 1 | P173: 405601.01 | Q173: y | R173: y | S173: y | T173: y | U173: y | W173: =_xlfn.IFS(AND(Q173="y",$D173="Local"), 1, AND(Q173="y",$D173<>"Local"),1.49009696454663%, Q173="","") -> 0.01490096965 | X173: =_xlfn.IFS(AND(R173="y",$D173="Local"), 1, AND(R173="y",$D173<>"Local"),20.7557554582461%, R173="","") -> 0.2075575546 | Y173: =_xlfn.IFS(AND(S173="y",$D173="Local"), 1, AND(S173="y",$D173<>"Local"),30.3499104327336%, S173="","") -> 0.3034991043 | Z173: =_xlfn.IFS(AND(T173="y",$D173="Local"), 1, AND(T173="y",$D173<>"Local"),29.0043833288201%, T173="","") -> 0.2900438333 | AA173: =_xlfn.IFS(AND(U173="y",$D173="Local"), 1, AND(U173="y",$D173<>"Local"),18.3998538156536%, U173="","") -> 0.1839985382 | AB173: 1 | AD173: 6043.848338 | AE173: 84185.55377 | AF173: 123099.5432 | AG173: 117642.0717 | AH173: 74629.99291
B174: 2,RP58389 | D174: District | E174: Urban West | F174: COUNCIL LAND BRISB-000/0037 ^00159 | I174: 0 | K174: 3088.799848 | L174: 477.8730617 | M174: 1476054.24 | N174: 2016 | O174: =IFERROR(('General Input Sheet'!$G$38/(VLOOKUP(N174,'General Input Sheet'!$E$38:$G$44,3,FALSE))),1) -> 1 | P174: 1476054.24 | Q174: y | R174: y | S174: y | T174: y | U174: y | W174: =_xlfn.IFS(AND(Q174="y",$D174="Local"), 1, AND(Q174="y",$D174<>"Local"),1.49009696454663%, Q174="","") -> 0.01490096965 | X174: =_xlfn.IFS(AND(R174="y",$D174="Local"), 1, AND(R174="y",$D174<>"Local"),20.7557554582461%, R174="","") -> 0.2075575546 | Y174: =_xlfn.IFS(AND(S174="y",$D174="Local"), 1, AND(S174="y",$D174<>"Local"),30.3499104327336%, S174="","") -> 0.3034991043 | Z174: =_xlfn.IFS(AND(T174="y",$D174="Local"), 1, AND(T174="y",$D174<>"Local"),29.0043833288201%, T174="","") -> 0.2900438333 | AA174: =_xlfn.IFS(AND(U174="y",$D174="Local"), 1, AND(U174="y",$D174<>"Local"),18.3998538156536%, U174="","") -> 0.1839985382 | AB174: 1 | AD174: 21994.63943 | AE174: 306366.2085 | AF174: 447981.1398 | AG174: 428120.4299 | AH174: 271591.8224
B175: 2,RP62246 | D175: Local | E175: Urban West | F175: COUNCIL LAND BRISB-000/0026 ^10433 | I175: 0 | K175: 282.3031067 | L175: 591.245353 | M175: 166910.4 | N175: 2016 | O175: =IFERROR(('General Input Sheet'!$G$38/(VLOOKUP(N175,'General Input Sheet'!$E$38:$G$44,3,FALSE))),1) -> 1 | P175: 166910.4 | U175: y | W175: =_xlfn.IFS(AND(Q175="y",$D175="Local"), 1, AND(Q175="y",$D175<>"Local"),1.49009696454663%, Q175="","") ->  | X175: =_xlfn.IFS(AND(R175="y",$D175="Local"), 1, AND(R175="y",$D175<>"Local"),20.7557554582461%, R175="","") ->  | Y175: =_xlfn.IFS(AND(S175="y",$D175="Local"), 1, AND(S175="y",$D175<>"Local"),30.3499104327336%, S175="","") ->  | Z175: =_xlfn.IFS(AND(T175="y",$D175="Local"), 1, AND(T175="y",$D175<>"Local"),29.0043833288201%, T175="","") ->  | AA175: =_xlfn.IFS(AND(U175="y",$D175="Local"), 1, AND(U175="y",$D175<>"Local"),18.3998538156536%, U175="","") -> 1 | AB175: 1 | AH175: 166910.4
B176: 2,RP66838 | D176: District | E176: Urban North | F176: OPENS SPACE LAND-000/0046 ^00930 | I176: 0 | K176: 288.3027169 | L176: 753.884675 | M176: 217347 | N176: 2016 | O176: =IFERROR(('General Input Sheet'!$G$38/(VLOOKUP(N176,'General Input Sheet'!$E$38:$G$44,3,FALSE))),1) -> 1 | P176: 217347 | Q176: y | R176: y | S176: y | T176: y | U176: y | W176: =_xlfn.IFS(AND(Q176="y",$D176="Local"), 1, AND(Q176="y",$D176<>"Local"),1.49009696454663%, Q176="","") -> 0.01490096965 | X176: =_xlfn.IFS(AND(R176="y",$D176="Local"), 1, AND(R176="y",$D176<>"Local"),20.7557554582461%, R176="","") -> 0.2075575546 | Y176: =_xlfn.IFS(AND(S176="y",$D176="Local"), 1, AND(S176="y",$D176<>"Local"),30.3499104327336%, S176="","") -> 0.3034991043 | Z176: =_xlfn.IFS(AND(T176="y",$D176="Local"), 1, AND(T176="y",$D176<>"Local"),29.0043833288201%, T176="","") -> 0.2900438333 | AA176: =_xlfn.IFS(AND(U176="y",$D176="Local"), 1, AND(U176="y",$D176<>"Local"),18.3998538156536%, U176="","") -> 0.1839985382 | AB176: 1 | AD176: 3238.68105 | AE176: 45112.01182 | AF176: 65964.61983 | AG176: 63040.15703 | AH176: 39991.53027
B177: 2,RP69462 | D177: District | E177: Urban West | F177: COUNCIL LAND BRISB-000/0004 ^04766 | I177: 0 | K177: 584.4790134 | L177: 472.5815362 | M177: 276213.99 | N177: 2016 | O177: =IFERROR(('General Input Sheet'!$G$38/(VLOOKUP(N177,'General Input Sheet'!$E$38:$G$44,3,FALSE))),1) -> 1 | P177: 276213.99 | Q177: y | R177: y | S177: y | T177: y | U177: y | W177: =_xlfn.IFS(AND(Q177="y",$D177="Local"), 1, AND(Q177="y",$D177<>"Local"),1.49009696454663%, Q177="","") -> 0.01490096965 | X177: =_xlfn.IFS(AND(R177="y",$D177="Local"), 1, AND(R177="y",$D177<>"Local"),20.7557554582461%, R177="","") -> 0.2075575546 | Y177: =_xlfn.IFS(AND(S177="y",$D177="Local"), 1, AND(S177="y",$D177<>"Local"),30.3499104327336%, S177="","") -> 0.3034991043 | Z177: =_xlfn.IFS(AND(T177="y",$D177="Local"), 1, AND(T177="y",$D177<>"Local"),29.0043833288201%, T177="","") -> 0.2900438333 | AA177: =_xlfn.IFS(AND(U177="y",$D177="Local"), 1, AND(U177="y",$D177<>"Local"),18.3998538156536%, U177="","") -> 0.1839985382 | AB177: 1 | AD177: 4115.856281 | AE177: 57330.30031 | AF177: 83830.69857 | AG177: 80114.16447 | AH177: 50822.97038
B178: 2,RP70794 | D178: District | E178: Urban North | F178: COUNCIL LAND BRISB-000/0088 ^02561 | I178: 0 | K178: 394.805683 | L178: 470.7496827 | M178: 185854.65 | N178: 2016 | O178: =IFERROR(('General Input Sheet'!$G$38/(VLOOKUP(N178,'General Input Sheet'!$E$38:$G$44,3,FALSE))),1) -> 1 | P178: 185854.65 | Q178: y | R178: y | S178: y | T178: y | U178: y | W178: =_xlfn.IFS(AND(Q178="y",$D178="Local"), 1, AND(Q178="y",$D178<>"Local"),1.49009696454663%, Q178="","") -> 0.01490096965 | X178: =_xlfn.IFS(AND(R178="y",$D178="Local"), 1, AND(R178="y",$D178<>"Local"),20.7557554582461%, R178="","") -> 0.2075575546 | Y178: =_xlfn.IFS(AND(S178="y",$D178="Local"), 1, AND(S178="y",$D178<>"Local"),30.3499104327336%, S178="","") -> 0.3034991043 | Z178: =_xlfn.IFS(AND(T178="y",$D178="Local"), 1, AND(T178="y",$D178<>"Local"),29.0043833288201%, T178="","") -> 0.2900438333 | AA178: =_xlfn.IFS(AND(U178="y",$D178="Local"), 1, AND(U178="y",$D178<>"Local"),18.3998538156536%, U178="","") -> 0.1839985382 | AB178: 1 | AD178: 2769.414498 | AE178: 38575.53666 | AF178: 56406.71981 | AG178: 53905.99512 | AH178: 34196.98391
B179: 2,RP73518 | D179: District | E179: Urban North | F179: OPENS SPACE LAND-001/0102-4 ^08232 | I179: 0 | K179: 1172.236721 | L179: 60.81556627 | M179: 71290.24 | N179: 2016 | O179: =IFERROR(('General Input Sheet'!$G$38/(VLOOKUP(N179,'General Input Sheet'!$E$38:$G$44,3,FALSE))),1) -> 1 | P179: 71290.24 | Q179: y | R179: y | S179: y | T179: y | U179: y | W179: =_xlfn.IFS(AND(Q179="y",$D179="Local"), 1, AND(Q179="y",$D179<>"Local"),1.49009696454663%, Q179="","") -> 0.01490096965 | X179: =_xlfn.IFS(AND(R179="y",$D179="Local"), 1, AND(R179="y",$D179<>"Local"),20.7557554582461%, R179="","") -> 0.2075575546 | Y179: =_xlfn.IFS(AND(S179="y",$D179="Local"), 1, AND(S179="y",$D179<>"Local"),30.3499104327336%, S179="","") -> 0.3034991043 | Z179: =_xlfn.IFS(AND(T179="y",$D179="Local"), 1, AND(T179="y",$D179<>"Local"),29.0043833288201%, T179="","") -> 0.2900438333 | AA179: =_xlfn.IFS(AND(U179="y",$D179="Local"), 1, AND(U179="y",$D179<>"Local"),18.3998538156536%, U179="","") -> 0.1839985382 | AB179: 1 | AD179: 1062.293702 | AE179: 14796.82788 | AF179: 21636.52399 | AG179: 20677.29449 | AH179: 13117.29994
B180: 2,RP87362 | D180: Local | E180: Urban North | F180: COUNCIL LAND BRISB-003/0030-4 ^03607 COMMUNITY SERVICE/GROUP | G180: 56000 | H180: 264 | I180: 45 | J180: 67880 | K180: 1640.435748 | L180: 172.6766381 | M180: 283264.93 | N180: 2016 | O180: =IFERROR(('General Input Sheet'!$G$38/(VLOOKUP(N180,'General Input Sheet'!$E$38:$G$44,3,FALSE))),1) -> 1 | P180: 351144.93 | S180: y | W180: =_xlfn.IFS(AND(Q180="y",$D180="Local"), 1, AND(Q180="y",$D180<>"Local"),1.49009696454663%, Q180="","") ->  | X180: =_xlfn.IFS(AND(R180="y",$D180="Local"), 1, AND(R180="y",$D180<>"Local"),20.7557554582461%, R180="","") ->  | Y180: =_xlfn.IFS(AND(S180="y",$D180="Local"), 1, AND(S180="y",$D180<>"Local"),30.3499104327336%, S180="","") -> 1 | Z180: =_xlfn.IFS(AND(T180="y",$D180="Local"), 1, AND(T180="y",$D180<>"Local"),29.0043833288201%, T180="","") ->  | AA180: =_xlfn.IFS(AND(U180="y",$D180="Local"), 1, AND(U180="y",$D180<>"Local"),18.3998538156536%, U180="","") ->  | AB180: 1 | AF180: 351144.93
B181: 2,RP94655 | D181: District | E181: Urban East | F181: COUNCIL LAND BRISB-000/1873 ^06194 COMMUNITY SPACE | G181: 56000 | H181: 1260 | I181: 45 | J181: 112700 | K181: 10775.15986 | L181: 39.58676954 | M181: 426553.77 | N181: 2016 | O181: =IFERROR(('General Input Sheet'!$G$38/(VLOOKUP(N181,'General Input Sheet'!$E$38:$G$44,3,FALSE))),1) -> 1 | P181: 539253.77 | Q181: y | R181: y | S181: y | T181: y | U181: y | W181: =_xlfn.IFS(AND(Q181="y",$D181="Local"), 1, AND(Q181="y",$D181<>"Local"),1.49009696454663%, Q181="","") -> 0.01490096965 | X181: =_xlfn.IFS(AND(R181="y",$D181="Local"), 1, AND(R181="y",$D181<>"Local"),20.7557554582461%, R181="","") -> 0.2075575546 | Y181: =_xlfn.IFS(AND(S181="y",$D181="Local"), 1, AND(S181="y",$D181<>"Local"),30.3499104327336%, S181="","") -> 0.3034991043 | Z181: =_xlfn.IFS(AND(T181="y",$D181="Local"), 1, AND(T181="y",$D181<>"Local"),29.0043833288201%, T181="","") -> 0.2900438333 | AA181: =_xlfn.IFS(AND(U181="y",$D181="Local"), 1, AND(U181="y",$D181<>"Local"),18.3998538156536%, U181="","") -> 0.1839985382 | AB181: 1 | AD181: 8035.404058 | AE181: 111926.1938 | AF181: 163663.0362 | AG181: 156407.2306 | AH181: 99221.90538
B182: 2,SP104149 | D182: District | E182: Urban West | F182: COUNCIL LAND BRISB-005/0547-4 ^10349 | I182: 0 | K182: 2796.367745 | L182: 16.86513159 | M182: 47161.11 | N182: 2016 | O182: =IFERROR(('General Input Sheet'!$G$38/(VLOOKUP(N182,'General Input Sheet'!$E$38:$G$44,3,FALSE))),1) -> 1 | P182: 47161.11 | Q182: y | R182: y | S182: y | T182: y | U182: y | W182: =_xlfn.IFS(AND(Q182="y",$D182="Local"), 1, AND(Q182="y",$D182<>"Local"),1.49009696454663%, Q182="","") -> 0.01490096965 | X182: =_xlfn.IFS(AND(R182="y",$D182="Local"), 1, AND(R182="y",$D182<>"Local"),20.7557554582461%, R182="","") -> 0.2075575546 | Y182: =_xlfn.IFS(AND(S182="y",$D182="Local"), 1, AND(S182="y",$D182<>"Local"),30.3499104327336%, S182="","") -> 0.3034991043 | Z182: =_xlfn.IFS(AND(T182="y",$D182="Local"), 1, AND(T182="y",$D182<>"Local"),29.0043833288201%, T182="","") -> 0.2900438333 | AA182: =_xlfn.IFS(AND(U182="y",$D182="Local"), 1, AND(U182="y",$D182<>"Local"),18.3998538156536%, U182="","") -> 0.1839985382 | AB182: 1 | AD182: 702.7462686 | AE182: 9788.644663 | AF182: 14313.35464 | AG182: 13678.78913 | AH182: 8677.575298
B183: 2,SP122708 | D183: District | E183: Urban South | F183: COUNCIL LAND BRISB-000/0011 ^14877 | I183: 0 | K183: 360.1651446 | L183: 99.15445881 | M183: 35711.98 | N183: 2016 | O183: =IFERROR(('General Input Sheet'!$G$38/(VLOOKUP(N183,'General Input Sheet'!$E$38:$G$44,3,FALSE))),1) -> 1 | P183: 35711.98 | Q183: =IF(OR(Q$9=$E183,$D183="Metropolitan",$D183="District"),"y","") -> y | R183: y | S183: y | T183: y | U183: y | W183: =_xlfn.IFS(AND(Q183="y",$D183="Local"), 1, AND(Q183="y",$D183<>"Local"),1.49009696454663%, Q183="","") -> 0.01490096965 | X183: =_xlfn.IFS(AND(R183="y",$D183="Local"), 1, AND(R183="y",$D183<>"Local"),20.7557554582461%, R183="","") -> 0.2075575546 | Y183: =_xlfn.IFS(AND(S183="y",$D183="Local"), 1, AND(S183="y",$D183<>"Local"),30.3499104327336%, S183="","") -> 0.3034991043 | Z183: =_xlfn.IFS(AND(T183="y",$D183="Local"), 1, AND(T183="y",$D183<>"Local"),29.0043833288201%, T183="","") -> 0.2900438333 | AA183: =_xlfn.IFS(AND(U183="y",$D183="Local"), 1, AND(U183="y",$D183<>"Local"),18.3998538156536%, U183="","") -> 0.1839985382 | AB183: 1 | AD183: 532.14313 | AE183: 7412.291238 | AF183: 10838.55394 | AG183: 10358.03957 | AH183: 6570.952115
B184: 2,SP190113 | D184: District | E184: Urban East | F184: COUNCIL LAND BRISB-002/0056-4 ^00173 | I184: 0 | K184: 5320.577269 | L184: 40.5215598 | M184: 215598.09 | N184: 2016 | O184: =IFERROR(('General Input Sheet'!$G$38/(VLOOKUP(N184,'General Input Sheet'!$E$38:$G$44,3,FALSE))),1) -> 1 | P184: 215598.09 | Q184: y | R184: y | S184: y | T184: y | U184: y | W184: =_xlfn.IFS(AND(Q184="y",$D184="Local"), 1, AND(Q184="y",$D184<>"Local"),1.49009696454663%, Q184="","") -> 0.01490096965 | X184: =_xlfn.IFS(AND(R184="y",$D184="Local"), 1, AND(R184="y",$D184<>"Local"),20.7557554582461%, R184="","") -> 0.2075575546 | Y184: =_xlfn.IFS(AND(S184="y",$D184="Local"), 1, AND(S184="y",$D184<>"Local"),30.3499104327336%, S184="","") -> 0.3034991043 | Z184: =_xlfn.IFS(AND(T184="y",$D184="Local"), 1, AND(T184="y",$D184<>"Local"),29.0043833288201%, T184="","") -> 0.2900438333 | AA184: =_xlfn.IFS(AND(U184="y",$D184="Local"), 1, AND(U184="y",$D184<>"Local"),18.3998538156536%, U184="","") -> 0.1839985382 | AB184: 1 | AD184: 3212.620595 | AE184: 44749.01233 | AF184: 65433.82721 | AG184: 62532.89647 | AH184: 39669.73339
B185: 2,SP265261 | D185: District | E185: Urban West | F185: COUNCIL LAND BRISB-002/0060-4 ^09252 COMMUNITY SERVICE/GROUP | G185: 56000 | H185: 1730 | I185: 45 | J185: 133850 | K185: 1378.715777 | L185: 638.439992 | M185: 880227.29 | N185: 2016 | O185: =IFERROR(('General Input Sheet'!$G$38/(VLOOKUP(N185,'General Input Sheet'!$E$38:$G$44,3,FALSE))),1) -> 1 | P185: 1014077.29 | Q185: y | R185: y | S185: y | T185: y | U185: y | W185: =_xlfn.IFS(AND(Q185="y",$D185="Local"), 1, AND(Q185="y",$D185<>"Local"),1.49009696454663%, Q185="","") -> 0.01490096965 | X185: =_xlfn.IFS(AND(R185="y",$D185="Local"), 1, AND(R185="y",$D185<>"Local"),20.7557554582461%, R185="","") -> 0.2075575546 | Y185: =_xlfn.IFS(AND(S185="y",$D185="Local"), 1, AND(S185="y",$D185<>"Local"),30.3499104327336%, S185="","") -> 0.3034991043 | Z185: =_xlfn.IFS(AND(T185="y",$D185="Local"), 1, AND(T185="y",$D185<>"Local"),29.0043833288201%, T185="","") -> 0.2900438333 | AA185: =_xlfn.IFS(AND(U185="y",$D185="Local"), 1, AND(U185="y",$D185<>"Local"),18.3998538156536%, U185="","") -> 0.1839985382 | AB185: 1 | AD185: 15110.73492 | AE185: 210479.4025 | AF185: 307771.5492 | AG185: 294126.8644 | AH185: 186588.7389
B186: 20,RP19335 | D186: Local | E186: Urban North | F186: COUNCIL LAND BRISB-000/0040 ^09702 | I186: 0 | K186: 138.5799965 | L186: 532.2729243 | M186: 73762.38 | N186: 2016 | O186: =IFERROR(('General Input Sheet'!$G$38/(VLOOKUP(N186,'General Input Sheet'!$E$38:$G$44,3,FALSE))),1) -> 1 | P186: 73762.38 | S186: y | W186: =_xlfn.IFS(AND(Q186="y",$D186="Local"), 1, AND(Q186="y",$D186<>"Local"),1.49009696454663%, Q186="","") ->  | X186: =_xlfn.IFS(AND(R186="y",$D186="Local"), 1, AND(R186="y",$D186<>"Local"),20.7557554582461%, R186="","") ->  | Y186: =_xlfn.IFS(AND(S186="y",$D186="Local"), 1, AND(S186="y",$D186<>"Local"),30.3499104327336%, S186="","") -> 1 | Z186: =_xlfn.IFS(AND(T186="y",$D186="Local"), 1, AND(T186="y",$D186<>"Local"),29.0043833288201%, T186="","") ->  | AA186: =_xlfn.IFS(AND(U186="y",$D186="Local"), 1, AND(U186="y",$D186<>"Local"),18.3998538156536%, U186="","") ->  | AB186: 1 | AF186: 73762.38
B187: 20,RP29113 | D187: Local | E187: Urban North | F187: COUNCIL LAND BRISB-000/0016 ^09268 | I187: 0 | K187: 630.579922 | L187: 47.07845741 | M187: 29686.73 | N187: 2016 | O187: =IFERROR(('General Input Sheet'!$G$38/(VLOOKUP(N187,'General Input Sheet'!$E$38:$G$44,3,FALSE))),1) -> 1 | P187: 29686.73 | S187: y | W187: =_xlfn.IFS(AND(Q187="y",$D187="Local"), 1, AND(Q187="y",$D187<>"Local"),1.49009696454663%, Q187="","") ->  | X187: =_xlfn.IFS(AND(R187="y",$D187="Local"), 1, AND(R187="y",$D187<>"Local"),20.7557554582461%, R187="","") ->  | Y187: =_xlfn.IFS(AND(S187="y",$D187="Local"), 1, AND(S187="y",$D187<>"Local"),30.3499104327336%, S187="","") -> 1 | Z187: =_xlfn.IFS(AND(T187="y",$D187="Local"), 1, AND(T187="y",$D187<>"Local"),29.0043833288201%, T187="","") ->  | AA187: =_xlfn.IFS(AND(U187="y",$D187="Local"), 1, AND(U187="y",$D187<>"Local"),18.3998538156536%, U187="","") ->  | AB187: 1 | AF187: 29686.73
B188: 20,RP37442 | D188: District | E188: Urban South | F188: OPENS SPACE LAND-000/1371 ^00901 | I188: 0 | K188: 298.6619055 | L188: 189.2398359 | M188: 56518.73 | N188: 2016 | O188: =IFERROR(('General Input Sheet'!$G$38/(VLOOKUP(N188,'General Input Sheet'!$E$38:$G$44,3,FALSE))),1) -> 1 | P188: 56518.73 | Q188: y | R188: y | S188: y | T188: y | U188: y | W188: =_xlfn.IFS(AND(Q188="y",$D188="Local"), 1, AND(Q188="y",$D188<>"Local"),1.49009696454663%, Q188="","") -> 0.01490096965 | X188: =_xlfn.IFS(AND(R188="y",$D188="Local"), 1, AND(R188="y",$D188<>"Local"),20.7557554582461%, R188="","") -> 0.2075575546 | Y188: =_xlfn.IFS(AND(S188="y",$D188="Local"), 1, AND(S188="y",$D188<>"Local"),30.3499104327336%, S188="","") -> 0.3034991043 | Z188: =_xlfn.IFS(AND(T188="y",$D188="Local"), 1, AND(T188="y",$D188<>"Local"),29.0043833288201%, T188="","") -> 0.2900438333 | AA188: =_xlfn.IFS(AND(U188="y",$D188="Local"), 1, AND(U188="y",$D188<>"Local"),18.3998538156536%, U188="","") -> 0.1839985382 | AB188: 1 | AD188: 842.1838801 | AE188: 11730.88939 | AF188: 17153.38393 | AG188: 16392.9091 | AH188: 10399.3637
B189: 20,RP9982 | D189: Local | E189: Urban North | F189: COUNCIL LAND BRISB-000/0020 ^05246 | I189: 0 | K189: 125.7834293 | L189: 0.003180069124 | M189: 0.4 | N189: 2016 | O189: =IFERROR(('General Input Sheet'!$G$38/(VLOOKUP(N189,'General Input Sheet'!$E$38:$G$44,3,FALSE))),1) -> 1 | P189: 0.4 | S189: y | W189: =_xlfn.IFS(AND(Q189="y",$D189="Local"), 1, AND(Q189="y",$D189<>"Local"),1.49009696454663%, Q189="","") ->  | X189: =_xlfn.IFS(AND(R189="y",$D189="Local"), 1, AND(R189="y",$D189<>"Local"),20.7557554582461%, R189="","") ->  | Y189: =_xlfn.IFS(AND(S189="y",$D189="Local"), 1, AND(S189="y",$D189<>"Local"),30.3499104327336%, S189="","") -> 1 | Z189: =_xlfn.IFS(AND(T189="y",$D189="Local"), 1, AND(T189="y",$D189<>"Local"),29.0043833288201%, T189="","") ->  | AA189: =_xlfn.IFS(AND(U189="y",$D189="Local"), 1, AND(U189="y",$D189<>"Local"),18.3998538156536%, U189="","") ->  | AB189: 1 | AF189: 0.4
B190: 200,RP46085 | D190: Local | E190: Urban South | F190: OPENS SPACE LAND-000/0110 ^10075 COMMUNITY SERVICE/GROUP | G190: 56000 | H190: 90 | I190: 45 | J190: 60050 | K190: 185.2769748 | L190: 295.0189577 | M190: 54660.22 | N190: 2016 | O190: =IFERROR(('General Input Sheet'!$G$38/(VLOOKUP(N190,'General Input Sheet'!$E$38:$G$44,3,FALSE))),1) -> 1 | P190: 114710.22 | T190: y | W190: =_xlfn.IFS(AND(Q190="y",$D190="Local"), 1, AND(Q190="y",$D190<>"Local"),1.49009696454663%, Q190="","") ->  | X190: =_xlfn.IFS(AND(R190="y",$D190="Local"), 1, AND(R190="y",$D190<>"Local"),20.7557554582461%, R190="","") ->  | Y190: =_xlfn.IFS(AND(S190="y",$D190="Local"), 1, AND(S190="y",$D190<>"Local"),30.3499104327336%, S190="","") ->  | Z190: =_xlfn.IFS(AND(T190="y",$D190="Local"), 1, AND(T190="y",$D190<>"Local"),29.0043833288201%, T190="","") -> 1 | AA190: =_xlfn.IFS(AND(U190="y",$D190="Local"), 1, AND(U190="y",$D190<>"Local"),18.3998538156536%, U190="","") ->  | AB190: 1 | AG190: 114710.22
B191: 201,RP46085 | D191: Local | E191: Urban South | F191: OPENS SPACE LAND-000/0112 ^10075 | I191: 0 | K191: 136.1252414 | L191: 294.9818094 | M191: 40154.47 | N191: 2016 | O191: =IFERROR(('General Input Sheet'!$G$38/(VLOOKUP(N191,'General Input Sheet'!$E$38:$G$44,3,FALSE))),1) -> 1 | P191: 40154.47 | T191: y | W191: =_xlfn.IFS(AND(Q191="y",$D191="Local"), 1, AND(Q191="y",$D191<>"Local"),1.49009696454663%, Q191="","") ->  | X191: =_xlfn.IFS(AND(R191="y",$D191="Local"), 1, AND(R191="y",$D191<>"Local"),20.7557554582461%, R191="","") ->  | Y191: =_xlfn.IFS(AND(S191="y",$D191="Local"), 1, AND(S191="y",$D191<>"Local"),30.3499104327336%, S191="","") ->  | Z191: =_xlfn.IFS(AND(T191="y",$D191="Local"), 1, AND(T191="y",$D191<>"Local"),29.0043833288201%, T191="","") -> 1 | AA191: =_xlfn.IFS(AND(U191="y",$D191="Local"), 1, AND(U191="y",$D191<>"Local"),18.3998538156536%, U191="","") ->  | AB191: 1 | AG191: 40154.47
B192: 204,RP46085 | D192: Local | E192: Urban South | F192: COUNCIL LAND BRISB-000/0118-A ^10075 | I192: 0 | K192: 607.0677834 | L192: 294.9670612 | M192: 179065 | N192: 2016 | O192: =IFERROR(('General Input Sheet'!$G$38/(VLOOKUP(N192,'General Input Sheet'!$E$38:$G$44,3,FALSE))),1) -> 1 | P192: 179065 | T192: y | W192: =_xlfn.IFS(AND(Q192="y",$D192="Local"), 1, AND(Q192="y",$D192<>"Local"),1.49009696454663%, Q192="","") ->  | X192: =_xlfn.IFS(AND(R192="y",$D192="Local"), 1, AND(R192="y",$D192<>"Local"),20.7557554582461%, R192="","") ->  | Y192: =_xlfn.IFS(AND(S192="y",$D192="Local"), 1, AND(S192="y",$D192<>"Local"),30.3499104327336%, S192="","") ->  | Z192: =_xlfn.IFS(AND(T192="y",$D192="Local"), 1, AND(T192="y",$D192<>"Local"),29.0043833288201%, T192="","") -> 1 | AA192: =_xlfn.IFS(AND(U192="y",$D192="Local"), 1, AND(U192="y",$D192<>"Local"),18.3998538156536%, U192="","") ->  | AB192: 1 | AG192: 179065
B193: 205,RP46085 | D193: Local | E193: Urban South | F193: COUNCIL LAND BRISB-000/0120 ^10075 COMMUNITY SERVICE/GROUP | G193: 56000 | H193: 607 | I193: 45 | J193: 83315 | K193: 607.0168993 | L193: 294.9917872 | M193: 179065 | N193: 2016 | O193: =IFERROR(('General Input Sheet'!$G$38/(VLOOKUP(N193,'General Input Sheet'!$E$38:$G$44,3,FALSE))),1) -> 1 | P193: 262380 | T193: y | W193: =_xlfn.IFS(AND(Q193="y",$D193="Local"), 1, AND(Q193="y",$D193<>"Local"),1.49009696454663%, Q193="","") ->  | X193: =_xlfn.IFS(AND(R193="y",$D193="Local"), 1, AND(R193="y",$D193<>"Local"),20.7557554582461%, R193="","") ->  | Y193: =_xlfn.IFS(AND(S193="y",$D193="Local"), 1, AND(S193="y",$D193<>"Local"),30.3499104327336%, S193="","") ->  | Z193: =_xlfn.IFS(AND(T193="y",$D193="Local"), 1, AND(T193="y",$D193<>"Local"),29.0043833288201%, T193="","") -> 1 | AA193: =_xlfn.IFS(AND(U193="y",$D193="Local"), 1, AND(U193="y",$D193<>"Local"),18.3998538156536%, U193="","") ->  | AB193: 1 | AG193: 262380
B194: 206,RP33153 | D194: District | E194: Urban East | F194: COUNCIL LAND BRISB-000/0010-A ^10652 | I194: 0 | K194: 134.5865821 | L194: 248.5322792 | M194: 33449.11 | N194: 2016 | O194: =IFERROR(('General Input Sheet'!$G$38/(VLOOKUP(N194,'General Input Sheet'!$E$38:$G$44,3,FALSE))),1) -> 1 | P194: 33449.11 | Q194: y | R194: y | S194: y | T194: y | U194: y | W194: =_xlfn.IFS(AND(Q194="y",$D194="Local"), 1, AND(Q194="y",$D194<>"Local"),1.49009696454663%, Q194="","") -> 0.01490096965 | X194: =_xlfn.IFS(AND(R194="y",$D194="Local"), 1, AND(R194="y",$D194<>"Local"),20.7557554582461%, R194="","") -> 0.2075575546 | Y194: =_xlfn.IFS(AND(S194="y",$D194="Local"), 1, AND(S194="y",$D194<>"Local"),30.3499104327336%, S194="","") -> 0.3034991043 | Z194: =_xlfn.IFS(AND(T194="y",$D194="Local"), 1, AND(T194="y",$D194<>"Local"),29.0043833288201%, T194="","") -> 0.2900438333 | AA194: =_xlfn.IFS(AND(U194="y",$D194="Local"), 1, AND(U194="y",$D194<>"Local"),18.3998538156536%, U194="","") -> 0.1839985382 | AB194: 1 | AD194: 498.4241728 | AE194: 6942.615475 | AF194: 10151.77493 | AG194: 9701.708084 | AH194: 6154.587343
B195: 206,RP33227 | D195: Local | E195: Urban East | F195: COUNCIL LAND BRISB-000/0038 ^01064 | I195: 0 | K195: 362.0888119 | L195: 481.8362631 | M195: 174467.52 | N195: 2016 | O195: =IFERROR(('General Input Sheet'!$G$38/(VLOOKUP(N195,'General Input Sheet'!$E$38:$G$44,3,FALSE))),1) -> 1 | P195: 174467.52 | R195: y | W195: =_xlfn.IFS(AND(Q195="y",$D195="Local"), 1, AND(Q195="y",$D195<>"Local"),1.49009696454663%, Q195="","") ->  | X195: =_xlfn.IFS(AND(R195="y",$D195="Local"), 1, AND(R195="y",$D195<>"Local"),20.7557554582461%, R195="","") -> 1 | Y195: =_xlfn.IFS(AND(S195="y",$D195="Local"), 1, AND(S195="y",$D195<>"Local"),30.3499104327336%, S195="","") ->  | Z195: =_xlfn.IFS(AND(T195="y",$D195="Local"), 1, AND(T195="y",$D195<>"Local"),29.0043833288201%, T195="","") ->  | AA195: =_xlfn.IFS(AND(U195="y",$D195="Local"), 1, AND(U195="y",$D195<>"Local"),18.3998538156536%, U195="","") ->  | AB195: 1 | AE195: 174467.52
B196: 207,RP33153 | D196: District | E196: Urban East | F196: COUNCIL LAND BRISB-000/0008-A ^10652 | I196: 0 | K196: 179.707226 | L196: 248.4900634 | M196: 44655.46 | N196: 2016 | O196: =IFERROR(('General Input Sheet'!$G$38/(VLOOKUP(N196,'General Input Sheet'!$E$38:$G$44,3,FALSE))),1) -> 1 | P196: 44655.46 | Q196: y | R196: y | S196: y | T196: y | U196: y | W196: =_xlfn.IFS(AND(Q196="y",$D196="Local"), 1, AND(Q196="y",$D196<>"Local"),1.49009696454663%, Q196="","") -> 0.01490096965 | X196: =_xlfn.IFS(AND(R196="y",$D196="Local"), 1, AND(R196="y",$D196<>"Local"),20.7557554582461%, R196="","") -> 0.2075575546 | Y196: =_xlfn.IFS(AND(S196="y",$D196="Local"), 1, AND(S196="y",$D196<>"Local"),30.3499104327336%, S196="","") -> 0.3034991043 | Z196: =_xlfn.IFS(AND(T196="y",$D196="Local"), 1, AND(T196="y",$D196<>"Local"),29.0043833288201%, T196="","") -> 0.2900438333 | AA196: =_xlfn.IFS(AND(U196="y",$D196="Local"), 1, AND(U196="y",$D196<>"Local"),18.3998538156536%, U196="","") -> 0.1839985382 | AB196: 1 | AD196: 665.409654 | AE196: 9268.578076 | AF196: 13552.89211 | AG196: 12952.0408 | AH196: 8216.539361
B197: 207,RP33227 | D197: Local | E197: Urban East | F197: COUNCIL LAND BRISB-000/0038-A ^01064 | I197: 0 | K197: 58.68379011 | L197: 463.2040628 | M197: 27182.57 | N197: 2016 | O197: =IFERROR(('General Input Sheet'!$G$38/(VLOOKUP(N197,'General Input Sheet'!$E$38:$G$44,3,FALSE))),1) -> 1 | P197: 27182.57 | R197: y | W197: =_xlfn.IFS(AND(Q197="y",$D197="Local"), 1, AND(Q197="y",$D197<>"Local"),1.49009696454663%, Q197="","") ->  | X197: =_xlfn.IFS(AND(R197="y",$D197="Local"), 1, AND(R197="y",$D197<>"Local"),20.7557554582461%, R197="","") -> 1 | Y197: =_xlfn.IFS(AND(S197="y",$D197="Local"), 1, AND(S197="y",$D197<>"Local"),30.3499104327336%, S197="","") ->  | Z197: =_xlfn.IFS(AND(T197="y",$D197="Local"), 1, AND(T197="y",$D197<>"Local"),29.0043833288201%, T197="","") ->  | AA197: =_xlfn.IFS(AND(U197="y",$D197="Local"), 1, AND(U197="y",$D197<>"Local"),18.3998538156536%, U197="","") ->  | AB197: 1 | AE197: 27182.57
B198: 207,RP42953 | D198: District | E198: Urban North | F198: COUNCIL LAND BRISB-000/0052 ^07692 | I198: 0 | K198: 151.7465357 | L198: 1636.975558 | M198: 248405.37 | N198: 2016 | O198: =IFERROR(('General Input Sheet'!$G$38/(VLOOKUP(N198,'General Input Sheet'!$E$38:$G$44,3,FALSE))),1) -> 1 | P198: 248405.37 | Q198: y | R198: y | S198: y | T198: y | U198: y | W198: =_xlfn.IFS(AND(Q198="y",$D198="Local"), 1, AND(Q198="y",$D198<>"Local"),1.49009696454663%, Q198="","") -> 0.01490096965 | X198: =_xlfn.IFS(AND(R198="y",$D198="Local"), 1, AND(R198="y",$D198<>"Local"),20.7557554582461%, R198="","") -> 0.2075575546 | Y198: =_xlfn.IFS(AND(S198="y",$D198="Local"), 1, AND(S198="y",$D198<>"Local"),30.3499104327336%, S198="","") -> 0.3034991043 | Z198: =_xlfn.IFS(AND(T198="y",$D198="Local"), 1, AND(T198="y",$D198<>"Local"),29.0043833288201%, T198="","") -> 0.2900438333 | AA198: =_xlfn.IFS(AND(U198="y",$D198="Local"), 1, AND(U198="y",$D198<>"Local"),18.3998538156536%, U198="","") -> 0.1839985382 | AB198: 1 | AD198: 3701.480878 | AE198: 51558.41114 | AF198: 75390.80731 | AG198: 72048.44572 | AH198: 45706.22495
B199: 208,RP33153 | D199: District | E199: Urban East | F199: COUNCIL LAND BRISB-000/0006-A ^10652 | I199: 0 | K199: 133.8715724 | L199: 248.5052607 | M199: 33267.79 | N199: 2016 | O199: =IFERROR(('General Input Sheet'!$G$38/(VLOOKUP(N199,'General Input Sheet'!$E$38:$G$44,3,FALSE))),1) -> 1 | P199: 33267.79 | Q199: y | R199: y | S199: y | T199: y | U199: y | W199: =_xlfn.IFS(AND(Q199="y",$D199="Local"), 1, AND(Q199="y",$D199<>"Local"),1.49009696454663%, Q199="","") -> 0.01490096965 | X199: =_xlfn.IFS(AND(R199="y",$D199="Local"), 1, AND(R199="y",$D199<>"Local"),20.7557554582461%, R199="","") -> 0.2075575546 | Y199: =_xlfn.IFS(AND(S199="y",$D199="Local"), 1, AND(S199="y",$D199<>"Local"),30.3499104327336%, S199="","") -> 0.3034991043 | Z199: =_xlfn.IFS(AND(T199="y",$D199="Local"), 1, AND(T199="y",$D199<>"Local"),29.0043833288201%, T199="","") -> 0.2900438333 | AA199: =_xlfn.IFS(AND(U199="y",$D199="Local"), 1, AND(U199="y",$D199<>"Local"),18.3998538156536%, U199="","") -> 0.1839985382 | AB199: 1 | AD199: 495.722329 | AE199: 6904.981139 | AF199: 10096.74447 | AG199: 9649.117337 | AH199: 6121.224728
B200: 21,RP13352 | D200: District | E200: Urban East | F200: COUNCIL LAND BRISB-000/0337 ^01010 | I200: 0 | K200: 400.4093918 | L200: 464.7087302 | M200: 186073.74 | N200: 2016 | O200: =IFERROR(('General Input Sheet'!$G$38/(VLOOKUP(N200,'General Input Sheet'!$E$38:$G$44,3,FALSE))),1) -> 1 | P200: 186073.74 | Q200: y | R200: y | S200: y | T200: y | U200: y | W200: =_xlfn.IFS(AND(Q200="y",$D200="Local"), 1, AND(Q200="y",$D200<>"Local"),1.49009696454663%, Q200="","") -> 0.01490096965 | X200: =_xlfn.IFS(AND(R200="y",$D200="Local"), 1, AND(R200="y",$D200<>"Local"),20.7557554582461%, R200="","") -> 0.2075575546 | Y200: =_xlfn.IFS(AND(S200="y",$D200="Local"), 1, AND(S200="y",$D200<>"Local"),30.3499104327336%, S200="","") -> 0.3034991043 | Z200: =_xlfn.IFS(AND(T200="y",$D200="Local"), 1, AND(T200="y",$D200<>"Local"),29.0043833288201%, T200="","") -> 0.2900438333 | AA200: =_xlfn.IFS(AND(U200="y",$D200="Local"), 1, AND(U200="y",$D200<>"Local"),18.3998538156536%, U200="","") -> 0.1839985382 | AB200: 1 | AD200: 2772.679152 | AE200: 38621.01045 | AF200: 56473.21343 | AG200: 53969.54082 | AH200: 34237.29615
B201: 21,RP9982 | D201: Local | E201: Urban North | F201: COUNCIL LAND BRISB-000/0018 ^05246 | I201: 0 | K201: 70.32833451 | L201: 788.2345059 | M201: 55435.22 | N201: 2016 | O201: =IFERROR(('General Input Sheet'!$G$38/(VLOOKUP(N201,'General Input Sheet'!$E$38:$G$44,3,FALSE))),1) -> 1 | P201: 55435.22 | S201: y | W201: =_xlfn.IFS(AND(Q201="y",$D201="Local"), 1, AND(Q201="y",$D201<>"Local"),1.49009696454663%, Q201="","") ->  | X201: =_xlfn.IFS(AND(R201="y",$D201="Local"), 1, AND(R201="y",$D201<>"Local"),20.7557554582461%, R201="","") ->  | Y201: =_xlfn.IFS(AND(S201="y",$D201="Local"), 1, AND(S201="y",$D201<>"Local"),30.3499104327336%, S201="","") -> 1 | Z201: =_xlfn.IFS(AND(T201="y",$D201="Local"), 1, AND(T201="y",$D201<>"Local"),29.0043833288201%, T201="","") ->  | AA201: =_xlfn.IFS(AND(U201="y",$D201="Local"), 1, AND(U201="y",$D201<>"Local"),18.3998538156536%, U201="","") ->  | AB201: 1 | AF201: 55435.22
B202: 22,RP13352 | D202: District | E202: Urban East | F202: COUNCIL LAND BRISB-000/0335 ^01010 | I202: 0 | K202: 415.2849888 | L202: 506.5039567 | M202: 210343.49 | N202: 2016 | O202: =IFERROR(('General Input Sheet'!$G$38/(VLOOKUP(N202,'General Input Sheet'!$E$38:$G$44,3,FALSE))),1) -> 1 | P202: 210343.49 | Q202: y | R202: y | S202: y | T202: y | U202: y | W202: =_xlfn.IFS(AND(Q202="y",$D202="Local"), 1, AND(Q202="y",$D202<>"Local"),1.49009696454663%, Q202="","") -> 0.01490096965 | X202: =_xlfn.IFS(AND(R202="y",$D202="Local"), 1, AND(R202="y",$D202<>"Local"),20.7557554582461%, R202="","") -> 0.2075575546 | Y202: =_xlfn.IFS(AND(S202="y",$D202="Local"), 1, AND(S202="y",$D202<>"Local"),30.3499104327336%, S202="","") -> 0.3034991043 | Z202: =_xlfn.IFS(AND(T202="y",$D202="Local"), 1, AND(T202="y",$D202<>"Local"),29.0043833288201%, T202="","") -> 0.2900438333 | AA202: =_xlfn.IFS(AND(U202="y",$D202="Local"), 1, AND(U202="y",$D202<>"Local"),18.3998538156536%, U202="","") -> 0.1839985382 | AB202: 1 | AD202: 3134.32196 | AE202: 43658.38041 | AF202: 63839.06082 | AG202: 61008.83215 | AH202: 38702.89467
... 241 more rows

Sheet Exist Trunk Assets - LFCF
B1: ='Navigation Pane'!B2 -> Brisbane City Council
B2: Parks and Land for Community Facilities
A3: Return to "Future Trunk Assets"
B4: Existing Trunk Assets
C7: Local (single catchment servicing) | E7: District/Metropolitan (Brisbane wide) | G7: Total Current Repalcement Cost
B8: Catchment | C8: Land | D8: Construction | E8: Land | F8: Construction | G8: Land and Construction
B9: Fringe | C9: 7927 | D9: 0 | E9: 17797 | F9: 355940 | G9: =SUM(C9:F9) -> 381664
B10: Urban East | C10: 6874190 | D10: 2198485 | E10: 9628618 | F10: 3153020 | G10: =SUM(C10:F10) -> 21854313
B11: Urban North | C11: 5049181 | D11: 1383395 | E11: 22117308 | F11: 10722695 | G11: 39272579
B12: Urban South | C12: 3919633 | D12: 1768145 | E12: 11211249 | F12: 2872780 | G12: 19771807
B13: Urban West | C13: 9426861 | D13: 1112360 | E13: 12545867 | F13: 4567085 | G13: 27652173
A16: Notes:
A17: Refer to the Public parks and land for community facilities network extrinsic material report for details on the valuation of existing assets for the land for community facilities network

Sheet Future Trunk Assets - LFCF
B2: ='Navigation Pane'!B2 -> Brisbane City Council
B3: Parks and Land for Community Facilities
A4: Return to "Future Trunk Assets"
B5: Future Trunk Assets
B7: Data References | E7: 1. Indirect embellishment costs are on costs or overheads applied to the direct embellishment cost, to deliver the project. Indirect embellishment costs equate to 17% of the direct embellishment cost. 2. Project costs are on costs to undertake detailed design, survey, geotechnical investigations, project management, and supervision of construction works and obtain certification from a Registered Professional Engineer of Queensland. Project costs equate to 13% of the direct and indirect embellishment costs. 3. Contingency costs are based on the project delivery date, and applied to the direct construction cost, indirect construction cost and project cost. Contingencies equate to 7.5% for projects with a delivery date up to 2021 and 15% for projects with a delivery date up to 2026. 4. Total embellishment cost is the sum of direct embellishment cost, indirect embellishment cost, project cost and construction contingency cost. 5. Terminal Value Adjustment is only applicable to items that have an estimated completion date between 2021 and 2026, items value exceeds 20% of the total network value in the same catchment and same year of provision, and items catchment has spare capacity greater than 30%.
B9: Land Valuation Type | D9: Location
K11: Asset Data | AE11: Catchment Asset Allocation | AM11: Asset Usage | AT11: Cost Allocation | AY11: Cost Allocation for Service Cost Schedule
B12: Basic Asset Data | G12: Land Cost Valuation | T12: Refined Asset Value | AE12: Fringe | AF12: Urban East | AG12: Urban North | AH12: Urban South | AI12: Urban West | AJ12: ='Catchment Demand -LFCF'!$C38 -> Totals | AL12: =AE12 -> Fringe | AM12: =AF12 -> Urban East | AN12: =AG12 -> Urban North | AO12: =AH12 -> Urban South | AP12: =AI12 -> Urban West | AQ12: TOTALS | AS12: =AE12 -> Fringe | AT12: =AF12 -> Urban East | AU12: =AG12 -> Urban North | AV12: =AH12 -> Urban South | AW12: =AI12 -> Urban West | AY12: =AE12 -> Fringe | AZ12: =AF12 -> Urban East | BA12: =AG12 -> Urban North | BB12: =AH12 -> Urban South | BC12: =AI12 -> Urban West | BD12: =AQ12 -> TOTALS
B13: Asset ID | C13: LGIP ID | D13: Asset Class | E13: Service Catchment | F13: Description | G13: Land Location/Type | H13: Size of land (m2) | I13: Unit Cost (m2) | J13: Land Value | K13: Site preparation and connection to services (direct construction) cost ($) | L13: Valuation Year | M13: Indirect Cost Escalation % | N13: Indirect Embellishment Costs | O13: Multiplier | P13: Contingency Cost % | Q13: Project Owners Cost % | R13: Work Cost (at Base Year) | S13: Contingency Cost ($) | T13: Year of Provision | U13: Land Cost Escalation | V13: Work Cost Escalation | W13: Spare Capacity % | X13: Share of the total Cost with the same year of provision % | Y13: Terminal Value Analysis | Z13: Final Terminal value adjustment % | AA13: Total Assets Cost (at Base Year) | AB13: Total Asset Cost (escalated) | AC13: Net Present Value of Total Asset Cost | AD13: NPV Total Asset Cost after Terminal Value Adjustment | AE13: Fringe | AF13: Urban East | AG13: Urban North | AH13: Urban South | AI13: Urban West
B14: Councils ID (from GIS, FAR, AMA etc.) | C14: ID from the LGIP drawings | D14: Local/District Park | W14: Applicable to project year of provision at 2024 | Z14: % of cost which is relevant for Summary Cost Calculation | AB14: Gross cost (used for CF forecasts) | AC14: Adjusted Current Day Value | AD14: For Summary Cost Calculation | AJ14: =IFERROR(VLOOKUP(AJ12,Parkscatch,6,FALSE),"") ->  | AS14: =SUM(AS15:AS22) -> 354876.1436 | AT14: 4943116.207 | AU14: 10685018.71 | AV14: 10209744.81 | AW14: 4382043.129 | AY14: =SUM(AY15:AY22) -> 354876.1436 | AZ14: 4943116.207 | BA14: 10685018.71 | BB14: 9208230.46 | BC14: 4382043.129 | BD14: =SUM(BC15:BD22) -> 33955327.78
B15: PCF72 | C15: CDE-CF-001 | D15: District | E15: Urban North | F15: Land acquisition, basic site preparation and connection to services to provide DISTRICT LIBRARY | G15: Carseldine / Bracken Ridge | H15: 3000 | I15: =J15/H15 -> 200 | J15: 600000 | K15: 397633 | L15: 2016 | M15: 0.17 | N15: =ROUND(K15*M15,0) -> 67598 | O15: 1 | P15: =IF(T15="","",IF(T15<=YEAR+5,0.075,IF(AND(T15>YEAR+5,T15<=YEAR+10),0.15,IF(AND(T15>YEAR+10,T15<=YEAR+20),0.2,IF(T15>YEAR+20,0.25,""))))) -> 0.075 | Q15: =ROUND((K15+N15)*13%,0) -> 60480 | R15: =ROUND((K15+N15+Q15+(K15+N15+Q15)*P15),0) -> 565139 | S15: =ROUND((K15+N15+Q15)*P15,0) -> 39428 | T15: 2019 | U15: 0.025 | V15: 0.0187 | W15: =IFERROR(IF(FutureTrunkParks[[#This Row],[Year of Provision]]>2019,VLOOKUP(FutureTrunkParks[[#This Row],[Service Catchment]],'Catchment Demand -LFCF'!$C$8:$M$12,11,FALSE),""),"") ->  | X15: =_xlfn.IFS(FutureTrunkParks[[#This Row],[Year of Provision]]=2019,0,FutureTrunkParks[[#This Row],[Year of Provision]]=2024,FutureTrunkParks[[#This Row],[Total Assets Cost (at Base Year)]]/SUMIFS(AA$15:AA$21,T$15:T$21,"2024",E$15:E$21,FutureTrunkParks[[#This Row],[Service Catchment]])) -> 0 | Y15: =IF(AND(FutureTrunkParks[[#This Row],[Spare Capacity %]]>30%,FutureTrunkParks[[#This Row],[Share of the total Cost with the same year of provision %]]>20%),(1-FutureTrunkParks[[#This Row],[Spare Capacity %]]),1) -> 1 | Z15: =IF(FutureTrunkParks[[#This Row],[ Terminal Value Analysis]]<0,0,FutureTrunkParks[ [ Terminal Value Analysis] ]) -> 1 | AA15: =ROUND((R15+J15),0) -> 1165139 | AB15: =ROUND((R15*(1+V15)^(T15-YEAR)+J15*(1+U15)^(T15-YEAR)),0) -> 1243574 | AC15: =ROUND((AB15*(1/(1+WACC))^(T15-YEAR)),0) -> 1046793 | AD15: =FutureTrunkParks[[#This Row],[Net Present Value of Total Asset Cost]]*FutureTrunkParks[[#This Row],[Final Terminal value adjustment %]] -> 1046793 | AE15: =IF(OR(AE$13=$E15,$D15="Metropolitan",$D15="District"),"y","") -> y | AF15: =IF(OR(AF$13=$E15,$D15="Metropolitan",$D15="District"),"y","") -> y | AG15: y | AH15: y | AI15: y | AJ15: =IF(OR(AJ$10=$E15,$D15="Metropolitan",$D15="District"),"y","") -> y | AL15: =_xlfn.IFS(AND(AE15="y",$D15="Local"), 1, AND(AE15="y",$D15<>"Local"),1.49009696454663%, AE15="","") -> 0.01490096965 | AM15: =_xlfn.IFS(AND(AF15="y",$D15="Local"), 1, AND(AF15="y",$D15<>"Local"),20.7557554582461%, AF15="","") -> 0.2075575546 | AN15: =_xlfn.IFS(AND(AG15="y",$D15="Local"), 1, AND(AG15="y",$D15<>"Local"),30.3499104327336%, AG15="","") -> 0.3034991043 | AO15: =_xlfn.IFS(AND(AH15="y",$D15="Local"), 1, AND(AH15="y",$D15<>"Local"),29.0043833288201%, AH15="","") -> 0.2900438333 | AP15: =_xlfn.IFS(AND(AI15="y",$D15="Local"), 1, AND(AI15="y",$D15<>"Local"),18.3998538156536%, AI15="","") -> 0.1839985382 | AQ15: =SUM(AL15:AP15) -> 1 | AS15: =IF(AL15="","",(AL15/$AQ15)*$AC15) -> 15598.23072 | AT15: 217269.7952 | AU15: 317700.7379 | AV15: 303615.8544 | AW15: 192608.3818 | AY15: =IF(AL15="","",(AL15/$AQ15)*$AD15) -> 15598.23072 | AZ15: 217269.7952 | BA15: 317700.7379 | BB15: 303615.8544 | BC15: 192608.3818 | BD15: =SUM(AY15:BC15) -> 1046793
B16: PCF154 | C16: EAF-CF-001 | D16: District | E16: Urban North | F16: Land acquisition, basic site preparation and connection to services to provide DISTRICT COMMUNITY HUB | G16: Eagle Farm/ Hamiton | H16: 6000 | I16: 1716 | J16: 10296000 | K16: 423786 | L16: 2016 | M16: 0.17 | N16: =ROUND(K16*M16,0) -> 72044 | O16: 1 | P16: 0.15 | Q16: =ROUND((K16+N16)*13%,0) -> 64458 | R16: 644331 | S16: 84043 | T16: 2024 | U16: 0.025 | V16: 0.0187 | W16: =IFERROR(IF(FutureTrunkParks[[#This Row],[Year of Provision]]>2019,VLOOKUP(FutureTrunkParks[[#This Row],[Service Catchment]],'Catchment Demand -LFCF'!$C$8:$M$12,11,FALSE),""),"") -> 0.2411459328 | X16: =_xlfn.IFS(FutureTrunkParks[[#This Row],[Year of Provision]]=2019,0,FutureTrunkParks[[#This Row],[Year of Provision]]=2024,FutureTrunkParks[[#This Row],[Total Assets Cost (at Base Year)]]/SUMIFS(AA$16:AA$21,T$16:T$21,"2024",E$16:E$21,FutureTrunkParks[[#This Row],[Service Catchment]])) -> 0.7079616943 | Y16: =IF(AND(FutureTrunkParks[[#This Row],[Spare Capacity %]]>30%,FutureTrunkParks[[#This Row],[Share of the total Cost with the same year of provision %]]>20%),(1-FutureTrunkParks[[#This Row],[Spare Capacity %]]),1) -> 1 | Z16: =IF(FutureTrunkParks[[#This Row],[ Terminal Value Analysis]]<0,0,FutureTrunkParks[ [ Terminal Value Analysis] ]) -> 1 | AA16: 10940331 | AB16: 13291950 | AC16: 8396397 | AD16: =FutureTrunkParks[[#This Row],[Net Present Value of Total Asset Cost]]*FutureTrunkParks[[#This Row],[Final Terminal value adjustment %]] -> 8396397 | AE16: =IF(OR(AE$13=$E16,$D16="Metropolitan",$D16="District"),"y","") -> y | AF16: y | AG16: y | AH16: y | AI16: y | AJ16: y | AL16: =_xlfn.IFS(AND(AE16="y",$D16="Local"), 1, AND(AE16="y",$D16<>"Local"),1.49009696454663%, AE16="","") -> 0.01490096965 | AM16: =_xlfn.IFS(AND(AF16="y",$D16="Local"), 1, AND(AF16="y",$D16<>"Local"),20.7557554582461%, AF16="","") -> 0.2075575546 | AN16: =_xlfn.IFS(AND(AG16="y",$D16="Local"), 1, AND(AG16="y",$D16<>"Local"),30.3499104327336%, AG16="","") -> 0.3034991043 | AO16: =_xlfn.IFS(AND(AH16="y",$D16="Local"), 1, AND(AH16="y",$D16<>"Local"),29.0043833288201%, AH16="","") -> 0.2900438333 | AP16: =_xlfn.IFS(AND(AI16="y",$D16="Local"), 1, AND(AI16="y",$D16<>"Local"),18.3998538156536%, AI16="","") -> 0.1839985382 | AQ16: 1 | AS16: 125114.4568 | AT16: 1742735.629 | AU16: 2548298.969 | AV16: 2435323.172 | AW16: 1544924.774 | AY16: 125114.4568 | AZ16: 1742735.629 | BA16: 2548298.969 | BB16: 2435323.172 | BC16: 1544924.774 | BD16: =SUM(AY16:BC16) -> 8396397
B17: PCF131 | C17: MIT-CF-001 | D17: District | E17: Urban West | F17: Land acquisition, basic site preparation and connection to services to provide DISTRICT INTEGRATED FACILITY | G17: Mitchelton Centre Neighbourhood Plan area | H17: 11800 | I17: 1316 | J17: 15528800 | K17: 470429 | L17: 2016 | M17: 0.17 | N17: 79973 | O17: 1 | P17: 0.15 | Q17: 71552 | R17: 715247 | S17: 93293 | T17: 2024 | U17: 0.025 | V17: 0.0187 | W17: =IFERROR(IF(FutureTrunkParks[[#This Row],[Year of Provision]]>2019,VLOOKUP(FutureTrunkParks[[#This Row],[Service Catchment]],'Catchment Demand -LFCF'!$C$8:$M$12,11,FALSE),""),"") -> 0.1352461632 | X17: =_xlfn.IFS(FutureTrunkParks[[#This Row],[Year of Provision]]=2019,0,FutureTrunkParks[[#This Row],[Year of Provision]]=2024,FutureTrunkParks[[#This Row],[Total Assets Cost (at Base Year)]]/SUMIFS(AA$16:AA$21,T$16:T$21,"2024",E$16:E$21,FutureTrunkParks[[#This Row],[Service Catchment]])) -> 0.9695719779 | Y17: =IF(AND(FutureTrunkParks[[#This Row],[Spare Capacity %]]>30%,FutureTrunkParks[[#This Row],[Share of the total Cost with the same year of provision %]]>20%),(1-FutureTrunkParks[[#This Row],[Spare Capacity %]]),1) -> 1 | Z17: =IF(FutureTrunkParks[[#This Row],[ Terminal Value Analysis]]<0,0,FutureTrunkParks[ [ Terminal Value Analysis] ]) -> 1 | AA17: 16244047 | AB17: 19749854 | AC17: 12475793 | AD17: =FutureTrunkParks[[#This Row],[Net Present Value of Total Asset Cost]]*FutureTrunkParks[[#This Row],[Final Terminal value adjustment %]] -> 12475793 | AE17: y | AF17: y | AG17: y | AH17: y | AI17: y | AJ17: y | AL17: =_xlfn.IFS(AND(AE17="y",$D17="Local"), 1, AND(AE17="y",$D17<>"Local"),1.49009696454663%, AE17="","") -> 0.01490096965 | AM17: =_xlfn.IFS(AND(AF17="y",$D17="Local"), 1, AND(AF17="y",$D17<>"Local"),20.7557554582461%, AF17="","") -> 0.2075575546 | AN17: =_xlfn.IFS(AND(AG17="y",$D17="Local"), 1, AND(AG17="y",$D17<>"Local"),30.3499104327336%, AG17="","") -> 0.3034991043 | AO17: =_xlfn.IFS(AND(AH17="y",$D17="Local"), 1, AND(AH17="y",$D17<>"Local"),29.0043833288201%, AH17="","") -> 0.2900438333 | AP17: =_xlfn.IFS(AND(AI17="y",$D17="Local"), 1, AND(AI17="y",$D17<>"Local"),18.3998538156536%, AI17="","") -> 0.1839985382 | AQ17: 1 | AS17: 185901.4128 | AT17: 2589445.087 | AU17: 3786392.001 | AV17: 3618526.825 | AW17: 2295527.674 | AY17: 185901.4128 | AZ17: 2589445.087 | BA17: 3786392.001 | BB17: 3618526.825 | BC17: 2295527.674 | BD17: 12475793
B18: PCF275 | C18: ROC-CF-001 | D18: District | E18: Urban East | F18: Land acquisition, basic site preparation and connection to services to provide LOCAL COMMUNITY CENTRE | G18: NW corner Miles Platting Road and Gardner Road | H18: 2000 | I18: 711 | J18: 1422000 | K18: 384903 | L18: 2016 | M18: 0.17 | N18: 65434 | O18: 1 | P18: 0.15 | Q18: 58544 | R18: 585213 | S18: 76332 | T18: 2024 | U18: 0.025 | V18: 0.0187 | W18: =IFERROR(IF(FutureTrunkParks[[#This Row],[Year of Provision]]>2019,VLOOKUP(FutureTrunkParks[[#This Row],[Service Catchment]],'Catchment Demand -LFCF'!$C$8:$M$12,11,FALSE),""),"") -> 0.2283837345 | X18: =_xlfn.IFS(FutureTrunkParks[[#This Row],[Year of Provision]]=2019,0,FutureTrunkParks[[#This Row],[Year of Provision]]=2024,FutureTrunkParks[[#This Row],[Total Assets Cost (at Base Year)]]/SUMIFS(AA$16:AA$21,T$16:T$21,"2024",E$16:E$21,FutureTrunkParks[[#This Row],[Service Catchment]])) -> 1 | Y18: =IF(AND(FutureTrunkParks[[#This Row],[Spare Capacity %]]>30%,FutureTrunkParks[[#This Row],[Share of the total Cost with the same year of provision %]]>20%),(1-FutureTrunkParks[[#This Row],[Spare Capacity %]]),1) -> 1 | Z18: =IF(FutureTrunkParks[[#This Row],[ Terminal Value Analysis]]<0,0,FutureTrunkParks[ [ Terminal Value Analysis] ]) -> 1 | AA18: 2007213 | AB18: 2411279 | AC18: 1523182 | AD18: =FutureTrunkParks[[#This Row],[Net Present Value of Total Asset Cost]]*FutureTrunkParks[[#This Row],[Final Terminal value adjustment %]] -> 1523182 | AE18: y | AF18: y | AG18: y | AH18: y | AI18: y | AJ18: y | AL18: =_xlfn.IFS(AND(AE18="y",$D18="Local"), 1, AND(AE18="y",$D18<>"Local"),1.49009696454663%, AE18="","") -> 0.01490096965 | AM18: =_xlfn.IFS(AND(AF18="y",$D18="Local"), 1, AND(AF18="y",$D18<>"Local"),20.7557554582461%, AF18="","") -> 0.2075575546 | AN18: =_xlfn.IFS(AND(AG18="y",$D18="Local"), 1, AND(AG18="y",$D18<>"Local"),30.3499104327336%, AG18="","") -> 0.3034991043 | AO18: =_xlfn.IFS(AND(AH18="y",$D18="Local"), 1, AND(AH18="y",$D18<>"Local"),29.0043833288201%, AH18="","") -> 0.2900438333 | AP18: =_xlfn.IFS(AND(AI18="y",$D18="Local"), 1, AND(AI18="y",$D18<>"Local"),18.3998538156536%, AI18="","") -> 0.1839985382 | AQ18: 1 | AS18: 22696.88875 | AT18: 316147.9311 | AU18: 462284.3727 | AV18: 441789.5461 | AW18: 280263.2613 | AY18: 22696.88875 | AZ18: 316147.9311 | BA18: 462284.3727 | BB18: 441789.5461 | BC18: 280263.2613 | BD18: 1523182
B19: PCF192 | C19: WES-CF-001 | D19: Local | E19: Urban South | F19: Land acquisition, basic site preparation and connection to services to provide LOCAL COMMUNITY CENTRE AND LIBRARY EXTENSION | G19: South Brisbane Riverside Neighbourhood Plan area | H19: 1800 | I19: 2221 | J19: 3997800 | K19: =202217 -> 202217 | L19: 2016 | M19: 0.17 | N19: 34377 | O19: 1 | P19: 0.15 | Q19: 30757 | R19: 307454 | S19: 40103 | T19: 2024 | U19: 0.025 | V19: 0.0187 | W19: =IFERROR(IF(FutureTrunkParks[[#This Row],[Year of Provision]]>2019,VLOOKUP(FutureTrunkParks[[#This Row],[Service Catchment]],'Catchment Demand -LFCF'!$C$8:$M$12,11,FALSE),""),"") -> 0.3032902194 | X19: =_xlfn.IFS(FutureTrunkParks[[#This Row],[Year of Provision]]=2019,0,FutureTrunkParks[[#This Row],[Year of Provision]]=2024,FutureTrunkParks[[#This Row],[Total Assets Cost (at Base Year)]]/SUMIFS(AA$16:AA$21,T$16:T$21,"2024",E$16:E$21,FutureTrunkParks[[#This Row],[Service Catchment]])) -> 1 | Y19: =IF(AND(FutureTrunkParks[[#This Row],[Spare Capacity %]]>30%,FutureTrunkParks[[#This Row],[Share of the total Cost with the same year of provision %]]>20%),(1-FutureTrunkParks[[#This Row],[Spare Capacity %]]),1) -> 0.6967097806 | Z19: =IF(FutureTrunkParks[[#This Row],[ Terminal Value Analysis]]<0,0,FutureTrunkParks[ [ Terminal Value Analysis] ]) -> 0.6967097806 | AA19: 4305254 | AB19: 5227506 | AC19: 3302165 | AD19: =FutureTrunkParks[[#This Row],[Net Present Value of Total Asset Cost]]*FutureTrunkParks[[#This Row],[Final Terminal value adjustment %]] -> 2300650.653 | AH19: y | AL19: =_xlfn.IFS(AND(AE19="y",$D19="Local"), 1, AND(AE19="y",$D19<>"Local"),1.49009696454663%, AE19="","") ->  | AM19: =_xlfn.IFS(AND(AF19="y",$D19="Local"), 1, AND(AF19="y",$D19<>"Local"),20.7557554582461%, AF19="","") ->  | AN19: =_xlfn.IFS(AND(AG19="y",$D19="Local"), 1, AND(AG19="y",$D19<>"Local"),30.3499104327336%, AG19="","") ->  | AO19: =_xlfn.IFS(AND(AH19="y",$D19="Local"), 1, AND(AH19="y",$D19<>"Local"),29.0043833288201%, AH19="","") -> 1 | AP19: =_xlfn.IFS(AND(AI19="y",$D19="Local"), 1, AND(AI19="y",$D19<>"Local"),18.3998538156536%, AI19="","") ->  | AQ19: 1 | AV19: 3302165 | BB19: 2300650.653 | BD19: 2300650.653
B20: PCF153 | C20: WSR-CF-001 | D20: Local | E20: Urban North | F20: Land acquisition, basic site preparation and connection to services to provide LOCAL COMMUNITY CENTRE | G20: Lutwyche Road Corridor Neighbourhood Plan | H20: 1800 | I20: 2261 | J20: 4069800 | K20: 291467 | L20: 2016 | M20: 0.17 | N20: 49549 | O20: 1 | P20: 0.15 | Q20: 44332 | R20: 443150 | S20: 57802 | T20: 2024 | U20: 0.025 | V20: 0.0187 | W20: =IFERROR(IF(FutureTrunkParks[[#This Row],[Year of Provision]]>2019,VLOOKUP(FutureTrunkParks[[#This Row],[Service Catchment]],'Catchment Demand -LFCF'!$C$8:$M$12,11,FALSE),""),"") -> 0.2411459328 | X20: =_xlfn.IFS(FutureTrunkParks[[#This Row],[Year of Provision]]=2019,0,FutureTrunkParks[[#This Row],[Year of Provision]]=2024,FutureTrunkParks[[#This Row],[Total Assets Cost (at Base Year)]]/SUMIFS(AA$16:AA$21,T$16:T$21,"2024",E$16:E$21,FutureTrunkParks[[#This Row],[Service Catchment]])) -> 0.2920383057 | Y20: =IF(AND(FutureTrunkParks[[#This Row],[Spare Capacity %]]>30%,FutureTrunkParks[[#This Row],[Share of the total Cost with the same year of provision %]]>20%),(1-FutureTrunkParks[[#This Row],[Spare Capacity %]]),1) -> 1 | Z20: =IF(FutureTrunkParks[[#This Row],[ Terminal Value Analysis]]<0,0,FutureTrunkParks[ [ Terminal Value Analysis] ]) -> 1 | AA20: 4512950 | AB20: 5472607 | AC20: 3456993 | AD20: =FutureTrunkParks[[#This Row],[Net Present Value of Total Asset Cost]]*FutureTrunkParks[[#This Row],[Final Terminal value adjustment %]] -> 3456993 | AG20: y | AL20: =_xlfn.IFS(AND(AE20="y",$D20="Local"), 1, AND(AE20="y",$D20<>"Local"),1.49009696454663%, AE20="","") ->  | AM20: =_xlfn.IFS(AND(AF20="y",$D20="Local"), 1, AND(AF20="y",$D20<>"Local"),20.7557554582461%, AF20="","") ->  | AN20: =_xlfn.IFS(AND(AG20="y",$D20="Local"), 1, AND(AG20="y",$D20<>"Local"),30.3499104327336%, AG20="","") -> 1 | AO20: =_xlfn.IFS(AND(AH20="y",$D20="Local"), 1, AND(AH20="y",$D20<>"Local"),29.0043833288201%, AH20="","") ->  | AP20: =_xlfn.IFS(AND(AI20="y",$D20="Local"), 1, AND(AI20="y",$D20<>"Local"),18.3998538156536%, AI20="","") ->  | AQ20: 1 | AU20: 3456993 | BA20: 3456993 | BD20: 3456993
B21: PCF211 | C21: IND-CF-001 | D21: District | E21: Urban West | F21: Basic site preparation and connection to services to provide District Community Hub | G21: Witton Barracks | H21: 2000 | J21: 0 | K21: 335294 | L21: 2016 | M21: 0.17 | N21: 57000 | O21: 1 | P21: 0.15 | Q21: 50998 | R21: 509786 | S21: 66494 | T21: 2024 | U21: 0.025 | V21: 0.0187 | W21: =IFERROR(IF(FutureTrunkParks[[#This Row],[Year of Provision]]>2019,VLOOKUP(FutureTrunkParks[[#This Row],[Service Catchment]],'Catchment Demand -LFCF'!$C$8:$M$12,11,FALSE),""),"") -> 0.1352461632 | X21: =_xlfn.IFS(FutureTrunkParks[[#This Row],[Year of Provision]]=2019,0,FutureTrunkParks[[#This Row],[Year of Provision]]=2024,FutureTrunkParks[[#This Row],[Total Assets Cost (at Base Year)]]/SUMIFS(AA$16:AA$21,T$16:T$21,"2024",E$16:E$21,FutureTrunkParks[[#This Row],[Service Catchment]])) -> 0.03042802205 | Y21: =IF(AND(FutureTrunkParks[[#This Row],[Spare Capacity %]]>30%,FutureTrunkParks[[#This Row],[Share of the total Cost with the same year of provision %]]>20%),(1-FutureTrunkParks[[#This Row],[Spare Capacity %]]),1) -> 1 | Z21: =IF(FutureTrunkParks[[#This Row],[ Terminal Value Analysis]]<0,0,FutureTrunkParks[ [ Terminal Value Analysis] ]) -> 1 | AA21: 509786 | AB21: 591233 | AC21: 373476 | AD21: =FutureTrunkParks[[#This Row],[Net Present Value of Total Asset Cost]]*FutureTrunkParks[[#This Row],[Final Terminal value adjustment %]] -> 373476 | AE21: y | AF21: y | AG21: y | AH21: y | AI21: y | AJ21: y | AL21: 0.01490096965 | AM21: 0.2075575546 | AN21: 0.3034991043 | AO21: 0.2900438333 | AP21: 0.1839985382 | AQ21: 1 | AS21: 5565.154539 | AT21: 77517.76526 | AU21: 113349.6315 | AV21: 108324.4107 | AW21: 68719.03804 | AY21: 5565.154539 | AZ21: 77517.76526 | BA21: 113349.6315 | BB21: 108324.4107 | BC21: 68719.03804 | BD21: 373476
W22: =IFERROR(IF(FutureTrunkParks[[#This Row],[Year of Provision]]>2019,VLOOKUP(FutureTrunkParks[[#This Row],[Service Catchment]],'Catchment Demand -LFCF'!$C$8:$M$12,11,FALSE),""),"") ->  | AA22: =SUM(AA15:AA21) -> 39684720 | AB22: =SUM(AB15:AB21) -> 47988003 | AC22: 30574799 | AD22: 29573284.65

Sheet Catchment Demand -LFCF
B2: ='Navigation Pane'!B2 -> Brisbane City Council
B3: Land for Community Facilities
A4: Return to "Catchment Demand"
B5: Catchment Demand(equivalent persons)
B7: Catchment No | C7: Catchment Name (*) | D7: 2016 | E7: =D7+5 -> 2021 | F7: =E7+5 -> 2026 | G7: 2031 | H7: 2036 | J7: ="NPV Future Demand ("&(D7+1)& " - " &H7+10&")" -> NPV Future Demand (2017 - 2046) | L7: ="Ultimate Demand" -> Ultimate Demand | M7: Spare Capacity
B8: 1 | C8: Fringe | D8: 18971 | E8: 19762 | F8: 20305 | G8: 21481 | H8: 21425 | J8: =NPV(5.91%,E43:N43) -> 1012.170531 | L8: 22125 | M8: =(L8-F8)/F8 -> 0.0896330953
B9: 2 | C9: Urban East | D9: 261140 | E9: 269823 | F9: 282831 | G9: 291232 | H9: 306014 | J9: =NPV(5.91%,E44:N44) -> 15577.28123 | L9: 347425 | M9: =(L9-F9)/F9 -> 0.2283837345
B10: 3 | C10: Urban North | D10: 364760 | E10: 390211 | F10: 413567 | G10: 435381 | H10: 456561 | J10: 36296.82245 | L10: 513297 | M10: 0.2411459328
B11: 4 | C11: Urban South | D11: 348928 | E11: 374505 | F11: 395232 | G11: 429036 | H11: 459171 | J11: 34737.03995 | L11: 515102 | M11: 0.3032902194
B12: 5 | C12: Urban West | D12: 242606 | E12: 247828 | F12: 250728 | G12: 255513 | H12: 261614 | J12: 6248.132514 | L12: 284638 | M12: 0.1352461632
C38: Totals | D38: =SUM(D8:D37) -> 1236405 | E38: =SUM(E8:E37) -> 1302129 | F38: =SUM(F8:F37) -> 1362663 | G38: =SUM(G8:G37) -> 1432643 | J38: =SUM(J8:J37) -> 93871.44667 | L38: =SUM(L8:L37) -> 1682587
F39: =F38-D38 -> 126258
B41: DETAILED Forecast Demand Growth Profile (OPTIONAL)
B42: Catchment No | C42: Catchment Name | D42: 2016 | E42: =D42 +1 -> 2017 | F42: =E42 +1 -> 2018 | G42: 2019 | H42: 2020 | I42: 2021 | J42: 2022 | K42: 2023 | L42: 2024 | M42: 2025 | N42: 2026 | O42: 2027 | P42: 2028 | Q42: 2029 | R42: 2030 | S42: 2031 | T42: 2032 | U42: 2033 | V42: 2034 | W42: 2035 | X42: 2036 | Y42: 2037 | Z42: 2038 | AA42: 2039 | AB42: 2040 | AC42: 2041 | AD42: 2042 | AE42: 2043 | AF42: 2044 | AG42: 2045 | AH42: 2046
B43: =B8 -> 1 | C43: =C8 -> Fringe | E43: =(E8-D8)/5 -> 158.2 | F43: 158.2 | G43: 158.2 | H43: 158.2 | I43: 158.2 | J43: =(F8-E8)/5 -> 108.6 | K43: 108.6 | L43: 108.6 | M43: 108.6 | N43: 108.6
B44: =B9 -> 2 | C44: Urban East | E44: =(E9-D9)/5 -> 1736.6 | F44: 1736.6 | G44: 1736.6 | H44: 1736.6 | I44: 1736.6 | J44: =(F9-E9)/5 -> 2601.6 | K44: 2601.6 | L44: 2601.6 | M44: 2601.6 | N44: 2601.6
B45: 3 | C45: Urban North | E45: 5090.2 | F45: 5090.2 | G45: 5090.2 | H45: 5090.2 | I45: 5090.2 | J45: 4671.2 | K45: 4671.2 | L45: 4671.2 | M45: 4671.2 | N45: 4671.2
B46: 4 | C46: Urban South | E46: 5115.4 | F46: 5115.4 | G46: 5115.4 | H46: 5115.4 | I46: 5115.4 | J46: 4145.4 | K46: 4145.4 | L46: 4145.4 | M46: 4145.4 | N46: 4145.4
B47: 5 | C47: Urban West | E47: 1044.4 | F47: 1044.4 | G47: 1044.4 | H47: 1044.4 | I47: 1044.4 | J47: 580 | K47: 580 | L47: 580 | M47: 580 | N47: 580

Sheet Summary Cost Schedule
B2: ='Navigation Pane'!B2 -> Brisbane City Council
A4: Return to Navigation Pane
B5: Summary Cost Schedule
B7: Catchment | D7: Demand | G7: Cost of Trunk Infrastrcutrue | J7: Cost per Unit Demand (Average) | K7: Cost per Unit Demand (Marginal)
B8: No | C8: Name | D8: Existing (A) | E8: NPV Future (B) | F8: TOTAL (A)+ (B) | G8: Existing (C) | H8: NPV Future (D) | I8: TOTAL (C)+ (D)
B9: Land for Community Facilities
B10: ='Catchment Demand -LFCF'!B43 -> 1 | C10: ='Catchment Demand -LFCF'!C43 -> Fringe | D10: =IFERROR(VLOOKUP($C10,'Catchment Demand -LFCF'!$C$8:$J$37,2,FALSE),"") -> 18971 | E10: =IFERROR(VLOOKUP($C10,'Catchment Demand -LFCF'!$C$8:$J$37,8,FALSE),"") -> 1012.170531 | F10: =IFERROR(D10+E10,"") -> 19983.17053 | G10: 1158168 | H10: =HLOOKUP(C10,'Future Trunk Assets - LFCF'!$AY$12:$BC$14,3,FALSE) -> 354876.1436 | I10: =G10+H10 -> 1513044.144 | J10: =IFERROR(I10/F10,0) -> 75.71592012 | K10: =H10/E10 -> 350.6090455
B11: ='Catchment Demand -LFCF'!B44 -> 2 | C11: ='Catchment Demand -LFCF'!C44 -> Urban East | D11: =IFERROR(VLOOKUP($C11,'Catchment Demand -LFCF'!$C$8:$J$37,2,FALSE),"") -> 261140 | E11: =IFERROR(VLOOKUP($C11,'Catchment Demand -LFCF'!$C$8:$J$37,8,FALSE),"") -> 15577.28123 | F11: =IFERROR(D11+E11,"") -> 276717.2812 | G11: 25094533 | H11: =HLOOKUP(C11,'Future Trunk Assets - LFCF'!$AY$12:$BC$14,3,FALSE) -> 4943116.207 | I11: =G11+H11 -> 30037649.21 | J11: =IFERROR(I11/F11,0) -> 108.5499578 | K11: =H11/E11 -> 317.328559
B12: ='Catchment Demand -LFCF'!B45 -> 3 | C12: ='Catchment Demand -LFCF'!C45 -> Urban North | D12: =IFERROR(VLOOKUP($C12,'Catchment Demand -LFCF'!$C$8:$J$37,2,FALSE),"") -> 364760 | E12: =IFERROR(VLOOKUP($C12,'Catchment Demand -LFCF'!$C$8:$J$37,8,FALSE),"") -> 36296.82245 | F12: 401056.8224 | G12: 29860388 | H12: =HLOOKUP(C12,'Future Trunk Assets - LFCF'!$AY$12:$BC$14,3,FALSE) -> 10685018.71 | I12: 40545406.71 | J12: 101.0964144 | K12: 294.3789013
B13: ='Catchment Demand -LFCF'!B46 -> 4 | C13: ='Catchment Demand -LFCF'!C46 -> Urban South | D13: =IFERROR(VLOOKUP($C13,'Catchment Demand -LFCF'!$C$8:$J$37,2,FALSE),"") -> 348928 | E13: =IFERROR(VLOOKUP($C13,'Catchment Demand -LFCF'!$C$8:$J$37,8,FALSE),"") -> 34737.03995 | F13: 383665.0399 | G13: 28076946 | H13: =HLOOKUP(C13,'Future Trunk Assets - LFCF'!$AY$12:$BC$14,3,FALSE) -> 9208230.46 | I13: 37285176.46 | J13: 97.1815844 | K13: 265.0839126
B14: ='Catchment Demand -LFCF'!B47 -> 5 | C14: ='Catchment Demand -LFCF'!C47 -> Urban West | D14: =IFERROR(VLOOKUP($C14,'Catchment Demand -LFCF'!$C$8:$J$37,2,FALSE),"") -> 242606 | E14: =IFERROR(VLOOKUP($C14,'Catchment Demand -LFCF'!$C$8:$J$37,8,FALSE),"") -> 6248.132514 | F14: 248854.1325 | G14: 24742502 | H14: =HLOOKUP(C14,'Future Trunk Assets - LFCF'!$AY$12:$BC$14,3,FALSE) -> 4382043.129 | I14: 29124545.13 | J14: 117.0346051 | K14: 701.3364585
C15: Totals | D15: =SUM(D10:D14) -> 1236405 | E15: 93871.44667 | F15: 1330276.447 | G15: 108932537 | H15: 29573284.65 | I15: 138505821.7
